Directorate,Department,Expenditure Type,Ref.Doc.1,Vendor Name,Expenditure Amount (exc VAT),Payment Date,
Delivery Units,Adults and Health,Other Services,1015397802,Aisa Medical Ltd,"2,672.37",11/05/2022,
Delivery Units,Adults and Health,Professional Services,1015474802,Recruitment Team Nine Limited,540,11/05/2022,
Delivery Units,Adults and Health,Professional Services,1015725802,Recruitment Team Nine Limited,810,17/05/2022,
Delivery Units,Adults and Health,Other Services,1015815902,Aisa Medical Ltd,"2,625.67",23/05/2022,
Delivery Units,Adults and Health,Professional Services,1015953402,Recruitment Team Nine Limited,810,23/05/2022,
Delivery Units,Adults and Health,Other Services,1016102901,Sparkes Medical Services Ltd,196.5,27/05/2022,
Delivery Units,Adults and Health,Professional Services,1016138402,Recruitment Team Nine Limited,270,31/05/2022,
Delivery Units,Adults and Health,Other Transfer Payments to Soc,1015410502,POhWER,"28,554.00",06/05/2022,
Delivery Units,Adults and Health,Other Transfer Payments to Soc,1015715802,Age UK Barnet,"37,500.00",19/05/2022,
Delivery Units,Adults and Health,Other Transfer Payments to Soc,1015852502,BARNET MENCAP,"28,583.37",20/05/2022,
Delivery Units,Adults and Health,Other Establishments - Third P,1015868101,HERTFORDSHIRE PARTNERSHIP,"107,517.64",18/05/2022,
Delivery Units,Adults and Health,Other Services,1015850201,APPLE TREE COURT CARE HOME,500,17/05/2022,
Delivery Units,Adults and Health,Other Services,1015648002,THE BARNETGROUP LIMITED,"24,025.09",12/05/2022,
Delivery Units,Adults and Health,Other Agencies - Third Party P,1014987601,BARNET ENFIELD & HARINGEY MENTAL,"4,363.00",11/05/2022,
Delivery Units,Adults and Health,Other Agencies - Third Party P,1014988001,BARNET ENFIELD & HARINGEY MENTAL,"4,363.00",11/05/2022,
Delivery Units,Adults and Health,Other Agencies - Third Party P,1014989501,BARNET ENFIELD & HARINGEY MENTAL,"3,053.67",11/05/2022,
Delivery Units,Adults and Health,Other Agencies - Third Party P,1016013702,BARNET ENFIELD & HARINGEY MENTAL,"39,000.00",25/05/2022,
Delivery Units,Adults and Health,Cleaning and domestic material,1015715501,G.B.HOLDINGS LTD,29.5,11/05/2022,
Delivery Units,Adults and Health,Other Services,1015901201,Carter Security Ltd,694.58,19/05/2022,
Delivery Units,Adults and Health,Water Services,1015902501,Castle Water Ltd,41.47,19/05/2022,
Delivery Units,Adults and Health,Training,1016110501,HUNTERSJOY LTD,375,27/05/2022,
Delivery Units,Adults and Health,Other Services,1016042202,PARK RETAIL LTD,994,30/05/2022,
Delivery Units,Adults and Health,Other Services,1015390602,Patient Transport (UK) Ltd,480,06/05/2022,
Delivery Units,Adults and Health,Transport Hire Charges,1015855701,Oak Tree Reliance Ltd,145,17/05/2022,
Delivery Units,Adults and Health,Translation Exp / Interpret,1015611402,D.A. Languages Ltd,44,31/05/2022,
Delivery Units,Adults and Health,Other Services,1015847801,East London Cleaners,300,17/05/2022,
Delivery Units,Adults and Health,Stationery,1015848002,Banner Group Limited,49.89,19/05/2022,
Delivery Units,Adults and Health,Other Services,1015869802,BACK CARE SOLUTIONS LIMITED,38.5,25/05/2022,
Delivery Units,Adults and Health,Other Services,1016043201,Osiq Ltd T/A Silverbirch hotel ,"1,395.00",25/05/2022,
Delivery Units,Adults and Health,Other Services,1016042501,Osiq Ltd T/A Silverbirch hotel ,630,30/05/2022,
Delivery Units,Adults and Health,Other Services,1016043801,Osiq Ltd T/A Silverbirch hotel ,630,30/05/2022,
Delivery Units,Adults and Health,Other Transfer Payments to Soc,1015479601,Eduhez Ltd,"1,400.00",03/05/2022,
Delivery Units,Adults and Health,Other Services,1015752601,CMG Consultants Limited,"2,750.00",12/05/2022,
Delivery Units,Adults and Health,Other Services,1015820401,CMG Consultants Limited,"1,700.00",17/05/2022,
Delivery Units,Adults and Health,Other Transfer Payments to Soc,1016044001,Kevin Scheuring Ltd,610,25/05/2022,
Delivery Units,Adults and Health,Grant Payments,1015795901,Barnet Homes Limited,"150,000.00",18/05/2022,
Delivery Units,Adults and Health,Grant Payments,1015814902,Age UK Barnet,"793,000.00",20/05/2022,
Delivery Units,Adults and Health,Other Services,1015062502,HANDS FREE COMPUTING LTD,474,09/05/2022,
Delivery Units,Adults and Health,Other Services,1015722201,GOOD IMPRESSIONS (LONDON) LIMITED,240,18/05/2022,
Delivery Units,Adults and Health,Other Services,1016041601,HANDS FREE COMPUTING LTD,370,25/05/2022,
Delivery Units,Adults and Health,Other Agencies - Third Party P,90461080,AUTUMN GARDENS,"4,800.00",04/05/2022,
Delivery Units,Adults and Health,Other Agencies - Third Party P,90461082,AUTUMN GARDENS,"3,440.00",04/05/2022,
Delivery Units,Adults and Health,Other Agencies - Third Party P,90461083,AUTUMN GARDENS,"4,800.00",04/05/2022,
Delivery Units,Adults and Health,Other Agencies - Third Party P,90461086,AUTUMN GARDENS,"4,800.00",04/05/2022,
Delivery Units,Adults and Health,Other Agencies - Third Party P,90461594,ABBEY RAVENSCROFT PARK NURSING HOME,385.71,09/05/2022,
Delivery Units,Adults and Health,Other Agencies - Third Party P,90461595,ABBEY RAVENSCROFT PARK NURSING HOME,385.71,09/05/2022,
Delivery Units,Adults and Health,Other Agencies - Third Party P,90461596,ABBEY RAVENSCROFT PARK NURSING HOME,385.71,09/05/2022,
Delivery Units,Adults and Health,Other Agencies - Third Party P,90461597,ABBEY RAVENSCROFT PARK NURSING HOME,471.43,09/05/2022,
Delivery Units,Adults and Health,Other Agencies - Third Party P,90461598,ABBEY RAVENSCROFT PARK NURSING HOME,385.71,09/05/2022,
Delivery Units,Adults and Health,Other Agencies - Third Party P,90461600,ABBEY RAVENSCROFT PARK NURSING HOME,385.71,09/05/2022,
Delivery Units,Adults and Health,Other Agencies - Third Party P,90461602,ABBEY RAVENSCROFT PARK NURSING HOME,385.71,09/05/2022,
Delivery Units,Adults and Health,Other Agencies - Third Party P,90461603,ABBEY RAVENSCROFT PARK NURSING HOME,385.71,09/05/2022,
Delivery Units,Adults and Health,Other Agencies - Third Party P,90461604,ABBEY RAVENSCROFT PARK NURSING HOME,385.71,09/05/2022,
Delivery Units,Adults and Health,Other Agencies - Third Party P,90461606,ABBEY RAVENSCROFT PARK NURSING HOME,385.71,09/05/2022,
Delivery Units,Adults and Health,Other Agencies - Third Party P,90461607,ABBEY RAVENSCROFT PARK NURSING HOME,385.71,09/05/2022,
Delivery Units,Adults and Health,Other Agencies - Third Party P,90461608,ABBEY RAVENSCROFT PARK NURSING HOME,385.71,09/05/2022,
Delivery Units,Adults and Health,Other Agencies - Third Party P,90461610,ABBEY RAVENSCROFT PARK NURSING HOME,385.71,09/05/2022,
Delivery Units,Adults and Health,Other Agencies - Third Party P,90462274,ABBEY RAVENSCROFT PARK NURSING HOME,"3,214.29",13/05/2022,
Delivery Units,Adults and Health,Other Agencies - Third Party P,90462275,ABBEY RAVENSCROFT PARK NURSING HOME,"3,728.57",13/05/2022,
Delivery Units,Adults and Health,Other Agencies - Third Party P,90462276,ABBEY RAVENSCROFT PARK NURSING HOME,"5,314.29",13/05/2022,
Delivery Units,Adults and Health,Other Agencies - Third Party P,90462864,AGUDAS ISRAEL HOUSING ASSCTN LTD,"2,648.57",16/05/2022,
Delivery Units,Adults and Health,Other Agencies - Third Party P,90463081,FERNBANK NURSING HOME.,"3,542.68",16/05/2022,
Delivery Units,Adults and Health,Other Agencies - Third Party P,90463082,FERNBANK NURSING HOME.,"7,361.88",16/05/2022,
Delivery Units,Adults and Health,Other Agencies - Third Party P,90463084,Barchester Healthcare Homes Ltd (Brook,"4,207.14",16/05/2022,
Delivery Units,Adults and Health,Other Agencies - Third Party P,90463086,SANCTUARY CARE LTD,"2,573.84",16/05/2022,
Delivery Units,Adults and Health,Other Agencies - Third Party P,90463723,Karuna Manor,"4,207.14",17/05/2022,
Delivery Units,Adults and Health,Other Agencies - Third Party P,90463725,Karuna Manor,"2,373.71",17/05/2022,
Delivery Units,Adults and Health,Other Agencies - Third Party P,90463744,COOPERSCROFT CARE HOME,"7,085.71",17/05/2022,
Delivery Units,Adults and Health,Other Agencies - Third Party P,90463748,GCH North London Ltd,"3,060.00",17/05/2022,
Delivery Units,Adults and Health,Other Agencies - Third Party P,90463749,HC One Beamish Ltd,"2,676.67",17/05/2022,
Delivery Units,Adults and Health,Other Agencies - Third Party P,90463772,HUSKARDS NEW CARE LTD,"2,445.68",17/05/2022,
Delivery Units,Adults and Health,Other Agencies - Third Party P,90464724,WESTMINSTER HEALTH CARE LTD,"2,566.53",19/05/2022,
Delivery Units,Adults and Health,Other Agencies - Third Party P,90464725,WESTMINSTER HEALTH CARE LTD,"5,007.65",19/05/2022,
Delivery Units,Adults and Health,Other Agencies - Third Party P,90464726,WESTMINSTER HEALTH CARE LTD,"2,878.57",19/05/2022,
Delivery Units,Adults and Health,Other Agencies - Third Party P,90464727,WESTMINSTER HEALTH CARE LTD,"4,926.34",19/05/2022,
Delivery Units,Adults and Health,Other Agencies - Third Party P,90464728,WESTMINSTER HEALTH CARE LTD,"2,483.74",19/05/2022,
Delivery Units,Adults and Health,Other Agencies - Third Party P,90464729,WESTMINSTER HEALTH CARE LTD,"4,846.11",19/05/2022,
Delivery Units,Adults and Health,Other Agencies - Third Party P,90464730,WESTMINSTER HEALTH CARE LTD,"2,785.71",19/05/2022,
Delivery Units,Adults and Health,Other Agencies - Third Party P,90464731,WESTMINSTER HEALTH CARE LTD,"4,767.43",19/05/2022,
Delivery Units,Adults and Health,Other Agencies - Third Party P,90464735,Victoria Care Centre,"2,940.64",19/05/2022,
Delivery Units,Adults and Health,Other Agencies - Third Party P,90464738,HUSKARDS NEW CARE LTD,"2,366.79",19/05/2022,
Delivery Units,Adults and Health,Other Agencies - Third Party P,90465104,Hamberley Care 1 Ltd,"3,198.86",20/05/2022,
Delivery Units,Adults and Health,Other Agencies - Third Party P,90465138,ASPEN VILLAGES LTD,"2,780.66",23/05/2022,
Delivery Units,Adults and Health,Other Agencies - Third Party P,90465139,ASPEN VILLAGES LTD,"2,873.35",23/05/2022,
Delivery Units,Adults and Health,Other Agencies - Third Party P,90465124,CARE UK COMMUNITY PARTNERSHIPS,"5,726.14",23/05/2022,
Delivery Units,Adults and Health,Other Agencies - Third Party P,90466973,BENSLOW MANAGEMENT COMPANY LIMITED,"4,262.06",24/05/2022,
Delivery Units,Adults and Health,Other Agencies - Third Party P,90466950,CEDARS NURSING HOME,"4,071.43",24/05/2022,
Delivery Units,Adults and Health,Other Agencies - Third Party P,90466951,CEDARS NURSING HOME,"4,207.14",24/05/2022,
Delivery Units,Adults and Health,Other Agencies - Third Party P,90466957,CEDARS NURSING HOME,"3,792.86",24/05/2022,
Delivery Units,Adults and Health,Other Agencies - Third Party P,90466958,CEDARS NURSING HOME,"3,919.29",24/05/2022,
Delivery Units,Adults and Health,Other Agencies - Third Party P,90466959,CEDARS NURSING HOME,"5,571.43",24/05/2022,
Delivery Units,Adults and Health,Other Agencies - Third Party P,90466960,CEDARS NURSING HOME,"5,166.69",24/05/2022,
Delivery Units,Adults and Health,Other Agencies - Third Party P,90466961,CEDARS NURSING HOME,"5,338.91",24/05/2022,
Delivery Units,Adults and Health,Other Agencies - Third Party P,90466962,CEDARS NURSING HOME,"5,142.86",24/05/2022,
Delivery Units,Adults and Health,Other Agencies - Third Party P,90466963,CEDARS NURSING HOME,"5,314.29",24/05/2022,
Delivery Units,Adults and Health,Other Agencies - Third Party P,90466966,CEDARS NURSING HOME,"5,142.86",24/05/2022,
Delivery Units,Adults and Health,Other Agencies - Third Party P,90466967,CEDARS NURSING HOME,"5,314.29",24/05/2022,
Delivery Units,Adults and Health,Other Agencies - Third Party P,90466968,CEDARS NURSING HOME,"4,285.71",24/05/2022,
Delivery Units,Adults and Health,Other Agencies - Third Party P,90466969,CEDARS NURSING HOME,"4,428.57",24/05/2022,
Delivery Units,Adults and Health,Other Agencies - Third Party P,90466972,CEDARS NURSING HOME,514.29,24/05/2022,
Delivery Units,Adults and Health,Other Agencies - Third Party P,90466980,FERNBANK NURSING HOME.,"17,051.55",25/05/2022,
Delivery Units,Adults and Health,Other Agencies - Third Party P,90468270,CEDARS NURSING HOME,"4,628.57",30/05/2022,
Delivery Units,Adults and Health,Other Agencies - Third Party P,90468271,CEDARS NURSING HOME,"5,314.29",30/05/2022,
Delivery Units,Adults and Health,Other Agencies - Third Party P,90468272,CEDARS NURSING HOME,"5,142.86",30/05/2022,
Delivery Units,Adults and Health,Other Agencies - Third Party P,90468273,CEDARS NURSING HOME,"5,314.29",30/05/2022,
Delivery Units,Adults and Health,Other Agencies - Third Party P,90468274,CEDARS NURSING HOME,"5,142.86",30/05/2022,
Delivery Units,Adults and Health,Other Agencies - Third Party P,90468275,CEDARS NURSING HOME,"5,314.29",30/05/2022,
Delivery Units,Adults and Health,Other Agencies - Third Party P,90468276,CEDARS NURSING HOME,"5,314.29",30/05/2022,
Delivery Units,Adults and Health,Other Agencies - Third Party P,90468277,CEDARS NURSING HOME,"4,800.00",30/05/2022,
Delivery Units,Adults and Health,Other Agencies - Third Party P,90468278,CEDARS NURSING HOME,"5,314.29",30/05/2022,
Delivery Units,Adults and Health,Other Agencies - Third Party P,90468279,CEDARS NURSING HOME,"5,142.86",30/05/2022,
Delivery Units,Adults and Health,Other Agencies - Third Party P,90468280,CEDARS NURSING HOME,"5,314.29",30/05/2022,
Delivery Units,Adults and Health,Other Agencies - Third Party P,90468281,CEDARS NURSING HOME,"5,314.29",30/05/2022,
Delivery Units,Adults and Health,Other Agencies - Third Party P,90468282,CEDARS NURSING HOME,"50,057.14",30/05/2022,
Delivery Units,Adults and Health,Other Agencies - Third Party P,90468283,CEDARS NURSING HOME,"4,800.00",30/05/2022,
Delivery Units,Adults and Health,Other Agencies - Third Party P,90468284,CEDARS NURSING HOME,"5,314.29",30/05/2022,
Delivery Units,Adults and Health,Other Agencies - Third Party P,90468285,CEDARS NURSING HOME,"5,142.86",30/05/2022,
Delivery Units,Adults and Health,Other Agencies - Third Party P,90468286,CEDARS NURSING HOME,"5,314.29",30/05/2022,
Delivery Units,Adults and Health,Other Agencies - Third Party P,90468297,CEDARS NURSING HOME,"-9,414.28",30/05/2022,
Delivery Units,Adults and Health,Other Agencies - Third Party P,90468482,CARLTON COURT (TLC GROUP),"5,200.00",31/05/2022,
Delivery Units,Adults and Health,Other Agencies - Third Party P,90468485,CARLTON COURT (TLC GROUP),"5,200.00",31/05/2022,
Delivery Units,Adults and Health,Other Agencies - Third Party P,90468554,CARLTON COURT (TLC GROUP),"5,200.00",31/05/2022,
Delivery Units,Adults and Health,Other Agencies - Third Party P,90468617,CARLTON COURT (TLC GROUP),"5,400.00",31/05/2022,
Delivery Units,Adults and Health,Other Agencies - Third Party P,90468668,CARLTON COURT (TLC GROUP),"5,200.00",31/05/2022,
Delivery Units,Adults and Health,Other Agencies - Third Party P,90468678,CARLTON COURT (TLC GROUP),"8,571.43",31/05/2022,
Delivery Units,Adults and Health,Other Agencies - Third Party P,90468793,CARLTON COURT (TLC GROUP),"5,200.00",31/05/2022,
Delivery Units,Adults and Health,Other Agencies - Third Party P,90468805,CARLTON COURT (TLC GROUP),"7,985.71",31/05/2022,
Delivery Units,Adults and Health,Other Agencies - Third Party P,90468325,LIFESTYLE CARE PLC,"2,798.40",31/05/2022,
Delivery Units,Adults and Health,Other Agencies - Third Party P,90468329,FOUR SEASONS HEALTH CARE,"2,715.92",31/05/2022,
Delivery Units,Adults and Health,Other Agencies - Third Party P,90468330,Brownlow Enterprises Ltd,"2,822.00",31/05/2022,
Delivery Units,Adults and Health,Other Agencies - Third Party P,90468334,SONESTA NURSING HOME LTD.,"2,663.44",31/05/2022,
Delivery Units,Adults and Health,Other Agencies - Third Party P,90468337,SAGE NURSING HOME,"3,800.00",31/05/2022,
Delivery Units,Adults and Health,Other Agencies - Third Party P,90468339,ASHTON LODGE CARE CENTRE,"3,881.16",31/05/2022,
Delivery Units,Adults and Health,Other Agencies - Third Party P,90468344,Brownlow Enterprises Ltd,403.16,31/05/2022,
Delivery Units,Adults and Health,Other Agencies - Third Party P,90468349,JEWISH CARE,"8,682.28",31/05/2022,
Delivery Units,Adults and Health,Other Agencies - Third Party P,90468352,ASHTON LODGE CARE CENTRE,"3,404.52",31/05/2022,
Delivery Units,Adults and Health,Other Agencies - Third Party P,90468353,JEWISH CARE,"3,103.91",31/05/2022,
Delivery Units,Adults and Health,Other Agencies - Third Party P,90468354,BUPA CARE HOMES,"2,591.80",31/05/2022,
Delivery Units,Adults and Health,Other Agencies - Third Party P,90468357,BUPA NURSING HOMES LTD - ARKLEY,"-5,524.76",31/05/2022,
Delivery Units,Adults and Health,Other Agencies - Third Party P,90468358,APPLE TREE COURT CARE HOME,0.04,31/05/2022,
Delivery Units,Adults and Health,Other Agencies - Third Party P,90468359,APPLE TREE COURT CARE HOME,"-7,721.30",31/05/2022,
Delivery Units,Adults and Health,Other Agencies - Third Party P,90468360,FOUR SEASONS HEALTH CARE,-260.2,31/05/2022,
Delivery Units,Adults and Health,Other Agencies - Third Party P,90468362,FOUR SEASONS HEALTH CARE,"2,715.92",31/05/2022,
Delivery Units,Adults and Health,Other Agencies - Third Party P,90468363,FOUR SEASONS HEALTH CARE,"2,715.92",31/05/2022,
Delivery Units,Adults and Health,Other Agencies - Third Party P,90468364,APPLE TREE COURT CARE HOME,"3,286.40",31/05/2022,
Delivery Units,Adults and Health,Other Agencies - Third Party P,90468365,Brownlow Enterprises Ltd,"-2,922.79",31/05/2022,
Delivery Units,Adults and Health,Other Agencies - Third Party P,90468366,BUPA CARE HOMES,"2,822.00",31/05/2022,
Delivery Units,Adults and Health,Other Agencies - Third Party P,90468367,JEWISH CARE,767.42,31/05/2022,
Delivery Units,Adults and Health,Other Agencies - Third Party P,90468391,BUPA NURSING HOMES LTD - ARKLEY,"2,822.00",31/05/2022,
Delivery Units,Adults and Health,Other Agencies - Third Party P,90468395,JEWISH CARE,"3,103.91",31/05/2022,
Delivery Units,Adults and Health,Other Agencies - Third Party P,90468404,ASHTON LODGE CARE CENTRE,"3,400.00",31/05/2022,
Delivery Units,Adults and Health,Other Agencies - Third Party P,90468406,ASHTON LODGE CARE CENTRE,"4,016.52",31/05/2022,
Delivery Units,Adults and Health,Other Agencies - Third Party P,90468411,JEWISH CARE,"3,103.91",31/05/2022,
Delivery Units,Adults and Health,Other Agencies - Third Party P,90468413,APPLE TREE COURT CARE HOME,"3,800.00",31/05/2022,
Delivery Units,Adults and Health,Other Agencies - Third Party P,90468416,BUPA CARE HOMES,"14,249.33",31/05/2022,
Delivery Units,Adults and Health,Other Agencies - Third Party P,90468417,LIFESTYLE CARE PLC,"12,140.72",31/05/2022,
Delivery Units,Adults and Health,Other Agencies - Third Party P,90468419,FOUR SEASONS HEALTH CARE,"2,715.92",31/05/2022,
Delivery Units,Adults and Health,Other Agencies - Third Party P,90468420,FOUR SEASONS HEALTH CARE,"2,715.92",31/05/2022,
Delivery Units,Adults and Health,Other Agencies - Third Party P,90468422,BUPA NURSING HOMES LTD - ARKLEY,"2,822.00",31/05/2022,
Delivery Units,Adults and Health,Other Agencies - Third Party P,90468423,SONESTA NURSING HOME LTD.,"2,663.44",31/05/2022,
Delivery Units,Adults and Health,Other Agencies - Third Party P,90468427,APPLE TREE COURT CARE HOME,"3,286.40",31/05/2022,
Delivery Units,Adults and Health,Other Agencies - Third Party P,90468431,SONESTA NURSING HOME LTD.,"2,663.44",31/05/2022,
Delivery Units,Adults and Health,Other Agencies - Third Party P,90468432,JEWISH CARE,"3,103.91",31/05/2022,
Delivery Units,Adults and Health,Other Agencies - Third Party P,90468437,New Century Care (Finchley),"4,144.32",31/05/2022,
Delivery Units,Adults and Health,Other Agencies - Third Party P,90468438,APPLE TREE COURT CARE HOME,"3,753.20",31/05/2022,
Delivery Units,Adults and Health,Other Agencies - Third Party P,90468440,New Century Care (Finchley),782.91,31/05/2022,
Delivery Units,Adults and Health,Other Agencies - Third Party P,90468445,FOUR SEASONS HEALTH CARE,"2,715.92",31/05/2022,
Delivery Units,Adults and Health,Other Agencies - Third Party P,90468446,LIFESTYLE CARE PLC,"2,798.40",31/05/2022,
Delivery Units,Adults and Health,Other Agencies - Third Party P,90468447,JEWISH CARE,"3,103.91",31/05/2022,
Delivery Units,Adults and Health,Other Agencies - Third Party P,90468448,BUPA CARE HOMES,-604.71,31/05/2022,
Delivery Units,Adults and Health,Other Agencies - Third Party P,90468449,JEWISH CARE,"3,103.91",31/05/2022,
Delivery Units,Adults and Health,Other Agencies - Third Party P,90468451,APPLE TREE COURT CARE HOME,"4,800.00",31/05/2022,
Delivery Units,Adults and Health,Other Agencies - Third Party P,90468454,ASHTON LODGE CARE CENTRE,"3,849.60",31/05/2022,
Delivery Units,Adults and Health,Other Agencies - Third Party P,90468455,ASHTON LODGE CARE CENTRE,628.57,31/05/2022,
Delivery Units,Adults and Health,Other Agencies - Third Party P,90468456,LIFESTYLE CARE PLC,"2,798.40",31/05/2022,
Delivery Units,Adults and Health,Other Agencies - Third Party P,90468457,ASHTON LODGE CARE CENTRE,"3,800.00",31/05/2022,
Delivery Units,Adults and Health,Other Agencies - Third Party P,90468459,ASHTON LODGE CARE CENTRE,"4,612.00",31/05/2022,
Delivery Units,Adults and Health,Other Agencies - Third Party P,90468460,SAGE NURSING HOME,"4,600.00",31/05/2022,
Delivery Units,Adults and Health,Other Agencies - Third Party P,90468462,APPLE TREE COURT CARE HOME,"4,049.60",31/05/2022,
Delivery Units,Adults and Health,Other Agencies - Third Party P,90468463,BUPA NURSING HOMES LTD - ARKLEY,"3,200.00",31/05/2022,
Delivery Units,Adults and Health,Other Agencies - Third Party P,90468467,JEWISH CARE,"3,166.91",31/05/2022,
Delivery Units,Adults and Health,Other Agencies - Third Party P,90468473,BUPA CARE HOMES,"2,822.00",31/05/2022,
Delivery Units,Adults and Health,Other Agencies - Third Party P,90468476,JEWISH CARE,42.86,31/05/2022,
Delivery Units,Adults and Health,Other Agencies - Third Party P,90468477,SONESTA NURSING HOME LTD.,"2,663.44",31/05/2022,
Delivery Units,Adults and Health,Other Agencies - Third Party P,90468478,SONESTA NURSING HOME LTD.,"2,663.44",31/05/2022,
Delivery Units,Adults and Health,Other Agencies - Third Party P,90468486,JEWISH CARE,"3,103.99",31/05/2022,
Delivery Units,Adults and Health,Other Agencies - Third Party P,90468488,APPLE TREE COURT CARE HOME,"4,400.00",31/05/2022,
Delivery Units,Adults and Health,Other Agencies - Third Party P,90468489,Aarandale Manor Care Home,"4,049.60",31/05/2022,
Delivery Units,Adults and Health,Other Agencies - Third Party P,90468495,BUPA CARE HOMES,"4,837.71",31/05/2022,
Delivery Units,Adults and Health,Other Agencies - Third Party P,90468496,JEWISH CARE,"12,875.80",31/05/2022,
Delivery Units,Adults and Health,Other Agencies - Third Party P,90468497,Lancam Care Services Limited,"3,700.00",31/05/2022,
Delivery Units,Adults and Health,Other Agencies - Third Party P,90468499,APPLE TREE COURT CARE HOME,"6,685.72",31/05/2022,
Delivery Units,Adults and Health,Other Agencies - Third Party P,90468502,LIFESTYLE CARE PLC,"2,798.40",31/05/2022,
Delivery Units,Adults and Health,Other Agencies - Third Party P,90468507,SONESTA NURSING HOME LTD.,"2,663.44",31/05/2022,
Delivery Units,Adults and Health,Other Agencies - Third Party P,90468512,APPLE TREE COURT CARE HOME,"3,753.20",31/05/2022,
Delivery Units,Adults and Health,Other Agencies - Third Party P,90468519,LIFESTYLE CARE PLC,"2,798.40",31/05/2022,
Delivery Units,Adults and Health,Other Agencies - Third Party P,90468523,BUPA NURSING HOMES LTD - ARKLEY,"9,124.00",31/05/2022,
Delivery Units,Adults and Health,Other Agencies - Third Party P,90468526,APPLE TREE COURT CARE HOME,"3,753.20",31/05/2022,
Delivery Units,Adults and Health,Other Agencies - Third Party P,90468527,LIFESTYLE CARE PLC,"2,798.40",31/05/2022,
Delivery Units,Adults and Health,Other Agencies - Third Party P,90468530,LIFESTYLE CARE PLC,"-1,599.09",31/05/2022,
Delivery Units,Adults and Health,Other Agencies - Third Party P,90468531,FOUR SEASONS HEALTH CARE,"2,715.92",31/05/2022,
Delivery Units,Adults and Health,Other Agencies - Third Party P,90468533,ASHTON LODGE CARE CENTRE,"4,049.60",31/05/2022,
Delivery Units,Adults and Health,Other Agencies - Third Party P,90468534,APPLE TREE COURT CARE HOME,"4,800.00",31/05/2022,
Delivery Units,Adults and Health,Other Agencies - Third Party P,90468537,APPLE TREE COURT CARE HOME,"3,800.00",31/05/2022,
Delivery Units,Adults and Health,Other Agencies - Third Party P,90468543,Aarandale Manor Care Home,"6,000.00",31/05/2022,
Delivery Units,Adults and Health,Other Agencies - Third Party P,90468547,JEWISH CARE,"3,103.91",31/05/2022,
Delivery Units,Adults and Health,Other Agencies - Third Party P,90468551,Aarandale Manor Care Home,"4,049.60",31/05/2022,
Delivery Units,Adults and Health,Other Agencies - Third Party P,90468556,ASHTON LODGE CARE CENTRE,"3,400.00",31/05/2022,
Delivery Units,Adults and Health,Other Agencies - Third Party P,90468566,Lancam Care Services Limited,"3,900.00",31/05/2022,
Delivery Units,Adults and Health,Other Agencies - Third Party P,90468568,SAGE NURSING HOME,"4,800.00",31/05/2022,
Delivery Units,Adults and Health,Other Agencies - Third Party P,90468570,FOUR SEASONS HEALTH CARE,-872.97,31/05/2022,
Delivery Units,Adults and Health,Other Agencies - Third Party P,90468571,LIFESTYLE CARE PLC,"2,798.40",31/05/2022,
Delivery Units,Adults and Health,Other Agencies - Third Party P,90468573,ELEANOR PALMER TRUST NO 2 A/C.,"3,920.29",31/05/2022,
Delivery Units,Adults and Health,Other Agencies - Third Party P,90468575,LIFESTYLE CARE PLC,"4,195.48",31/05/2022,
Delivery Units,Adults and Health,Other Agencies - Third Party P,90468577,JEWISH CARE,"3,166.91",31/05/2022,
Delivery Units,Adults and Health,Other Agencies - Third Party P,90468578,Brownlow Enterprises Ltd,"5,644.00",31/05/2022,
Delivery Units,Adults and Health,Other Agencies - Third Party P,90468579,Brownlow Enterprises Ltd,"5,644.00",31/05/2022,
Delivery Units,Adults and Health,Other Agencies - Third Party P,90468580,JEWISH CARE,"-7,452.02",31/05/2022,
Delivery Units,Adults and Health,Other Agencies - Third Party P,90468587,ASHTON LODGE CARE CENTRE,"3,400.00",31/05/2022,
Delivery Units,Adults and Health,Other Agencies - Third Party P,90468589,JEWISH CARE,"3,809.93",31/05/2022,
Delivery Units,Adults and Health,Other Agencies - Third Party P,90468598,JEWISH CARE,"3,103.91",31/05/2022,
Delivery Units,Adults and Health,Other Agencies - Third Party P,90468601,BUPA CARE HOMES,"2,822.00",31/05/2022,
Delivery Units,Adults and Health,Other Agencies - Third Party P,90468610,Brownlow Enterprises Ltd,"-2,922.79",31/05/2022,
Delivery Units,Adults and Health,Other Agencies - Third Party P,90468611,SONESTA NURSING HOME LTD.,"-2,458.18",31/05/2022,
Delivery Units,Adults and Health,Other Agencies - Third Party P,90468614,JEWISH CARE,"3,103.91",31/05/2022,
Delivery Units,Adults and Health,Other Agencies - Third Party P,90468615,SONESTA NURSING HOME LTD.,"2,663.44",31/05/2022,
Delivery Units,Adults and Health,Other Agencies - Third Party P,90468619,APPLE TREE COURT CARE HOME,"3,286.40",31/05/2022,
Delivery Units,Adults and Health,Other Agencies - Third Party P,90468626,APPLE TREE COURT CARE HOME,"4,800.00",31/05/2022,
Delivery Units,Adults and Health,Other Agencies - Third Party P,90468629,Brownlow Enterprises Ltd,-201.57,31/05/2022,
Delivery Units,Adults and Health,Other Agencies - Third Party P,90468630,ASHTON LODGE CARE CENTRE,"-8,506.45",31/05/2022,
Delivery Units,Adults and Health,Other Agencies - Third Party P,90468633,BUPA NURSING HOMES LTD - ARKLEY,"3,962.00",31/05/2022,
Delivery Units,Adults and Health,Other Agencies - Third Party P,90468634,BUPA CARE HOMES,"-1,914.93",31/05/2022,
Delivery Units,Adults and Health,Other Agencies - Third Party P,90468636,Brownlow Enterprises Ltd,"-2,922.79",31/05/2022,
Delivery Units,Adults and Health,Other Agencies - Third Party P,90468638,JEWISH CARE,"3,103.91",31/05/2022,
Delivery Units,Adults and Health,Other Agencies - Third Party P,90468639,JEWISH CARE,"3,166.91",31/05/2022,
Delivery Units,Adults and Health,Other Agencies - Third Party P,90468647,SONESTA NURSING HOME LTD.,"-12,100.00",31/05/2022,
Delivery Units,Adults and Health,Other Agencies - Third Party P,90468648,Brownlow Enterprises Ltd,"-2,922.79",31/05/2022,
Delivery Units,Adults and Health,Other Agencies - Third Party P,90468649,FOUR SEASONS HEALTH CARE,"2,715.92",31/05/2022,
Delivery Units,Adults and Health,Other Agencies - Third Party P,90468651,Aarandale Manor Care Home,"6,400.00",31/05/2022,
Delivery Units,Adults and Health,Other Agencies - Third Party P,90468653,APPLE TREE COURT CARE HOME,"3,286.40",31/05/2022,
Delivery Units,Adults and Health,Other Agencies - Third Party P,90468657,LIFESTYLE CARE PLC,"2,798.40",31/05/2022,
Delivery Units,Adults and Health,Other Agencies - Third Party P,90468659,JEWISH CARE,"6,353.32",31/05/2022,
Delivery Units,Adults and Health,Other Agencies - Third Party P,90468665,ELEANOR PALMER TRUST NO 2 A/C.,"3,440.28",31/05/2022,
Delivery Units,Adults and Health,Other Agencies - Third Party P,90468666,LIFESTYLE CARE PLC,"2,798.40",31/05/2022,
Delivery Units,Adults and Health,Other Agencies - Third Party P,90468667,APPLE TREE COURT CARE HOME,"3,286.40",31/05/2022,
Delivery Units,Adults and Health,Other Agencies - Third Party P,90468672,Aarandale Manor Care Home,"4,049.60",31/05/2022,
Delivery Units,Adults and Health,Other Agencies - Third Party P,90468677,Brownlow Enterprises Ltd,"5,644.00",31/05/2022,
Delivery Units,Adults and Health,Other Agencies - Third Party P,90468679,FOUR SEASONS HEALTH CARE,"3,394.90",31/05/2022,
Delivery Units,Adults and Health,Other Agencies - Third Party P,90468680,FOUR SEASONS HEALTH CARE,"4,461.87",31/05/2022,
Delivery Units,Adults and Health,Other Agencies - Third Party P,90468691,JEWISH CARE,"3,103.91",31/05/2022,
Delivery Units,Adults and Health,Other Agencies - Third Party P,90468696,APPLE TREE COURT CARE HOME,"2,493.08",31/05/2022,
Delivery Units,Adults and Health,Other Agencies - Third Party P,90468698,Aarandale Manor Care Home,"3,036.19",31/05/2022,
Delivery Units,Adults and Health,Other Agencies - Third Party P,90468703,Brownlow Enterprises Ltd,"2,822.00",31/05/2022,
Delivery Units,Adults and Health,Other Agencies - Third Party P,90468709,JEWISH CARE,"3,103.91",31/05/2022,
Delivery Units,Adults and Health,Other Agencies - Third Party P,90468710,ASHTON LODGE CARE CENTRE,"3,422.76",31/05/2022,
Delivery Units,Adults and Health,Other Agencies - Third Party P,90468717,JEWISH CARE,"2,682.48",31/05/2022,
Delivery Units,Adults and Health,Other Agencies - Third Party P,90468718,FOUR SEASONS HEALTH CARE,"2,715.92",31/05/2022,
Delivery Units,Adults and Health,Other Agencies - Third Party P,90468722,ASHTON LODGE CARE CENTRE,"4,832.52",31/05/2022,
Delivery Units,Adults and Health,Other Agencies - Third Party P,90468723,APPLE TREE COURT CARE HOME,"3,764.00",31/05/2022,
Delivery Units,Adults and Health,Other Agencies - Third Party P,90468727,APPLE TREE COURT CARE HOME,"3,286.40",31/05/2022,
Delivery Units,Adults and Health,Other Agencies - Third Party P,90468728,APPLE TREE COURT CARE HOME,"3,286.40",31/05/2022,
Delivery Units,Adults and Health,Other Agencies - Third Party P,90468735,APPLE TREE COURT CARE HOME,"3,753.20",31/05/2022,
Delivery Units,Adults and Health,Other Agencies - Third Party P,90468740,LIFESTYLE CARE PLC,"2,798.40",31/05/2022,
Delivery Units,Adults and Health,Other Agencies - Third Party P,90468745,FOUR SEASONS HEALTH CARE,"2,715.92",31/05/2022,
Delivery Units,Adults and Health,Other Agencies - Third Party P,90468753,FOUR SEASONS HEALTH CARE,"2,715.92",31/05/2022,
Delivery Units,Adults and Health,Other Agencies - Third Party P,90468754,APPLE TREE COURT CARE HOME,"3,286.40",31/05/2022,
Delivery Units,Adults and Health,Other Agencies - Third Party P,90468755,JEWISH CARE,"3,166.91",31/05/2022,
Delivery Units,Adults and Health,Other Agencies - Third Party P,90468759,SONESTA NURSING HOME LTD.,"2,663.44",31/05/2022,
Delivery Units,Adults and Health,Other Agencies - Third Party P,90468763,SONESTA NURSING HOME LTD.,"2,663.44",31/05/2022,
Delivery Units,Adults and Health,Other Agencies - Third Party P,90468766,BUPA NURSING HOMES LTD - ARKLEY,"2,822.00",31/05/2022,
Delivery Units,Adults and Health,Other Agencies - Third Party P,90468767,ASHTON LODGE CARE CENTRE,"4,049.60",31/05/2022,
Delivery Units,Adults and Health,Other Agencies - Third Party P,90468769,ELEANOR PALMER TRUST NO 2 A/C.,"3,440.28",31/05/2022,
Delivery Units,Adults and Health,Other Agencies - Third Party P,90468771,APPLE TREE COURT CARE HOME,"3,249.60",31/05/2022,
Delivery Units,Adults and Health,Other Agencies - Third Party P,90468775,LIFESTYLE CARE PLC,"2,798.40",31/05/2022,
Delivery Units,Adults and Health,Other Agencies - Third Party P,90468782,Aarandale Manor Care Home,"4,049.60",31/05/2022,
Delivery Units,Adults and Health,Other Agencies - Third Party P,90468784,New Century Care (Finchley),"4,758.60",31/05/2022,
Delivery Units,Adults and Health,Other Agencies - Third Party P,90468785,LIFESTYLE CARE PLC,"2,798.40",31/05/2022,
Delivery Units,Adults and Health,Other Agencies - Third Party P,90468786,ELEANOR PALMER TRUST NO 2 A/C.,"4,600.00",31/05/2022,
Delivery Units,Adults and Health,Other Agencies - Third Party P,90468788,LIFESTYLE CARE PLC,-299.83,31/05/2022,
Delivery Units,Adults and Health,Other Agencies - Third Party P,90468789,JEWISH CARE,"3,166.91",31/05/2022,
Delivery Units,Adults and Health,Other Agencies - Third Party P,90468790,ELEANOR PALMER TRUST NO 2 A/C.,"3,920.29",31/05/2022,
Delivery Units,Adults and Health,Other Agencies - Third Party P,90468791,Lancam Care Services Limited,"3,700.00",31/05/2022,
Delivery Units,Adults and Health,Other Agencies - Third Party P,90468794,LIFESTYLE CARE PLC,"2,798.40",31/05/2022,
Delivery Units,Adults and Health,Other Agencies - Third Party P,90468797,Aarandale Manor Care Home,"2,314.06",31/05/2022,
Delivery Units,Adults and Health,Other Agencies - Third Party P,90468802,Brownlow Enterprises Ltd,"5,644.00",31/05/2022,
Delivery Units,Adults and Health,Other Agencies - Third Party P,90468806,SONESTA NURSING HOME LTD.,"14,078.18",31/05/2022,
Delivery Units,Adults and Health,Other Agencies - Third Party P,90468809,APPLE TREE COURT CARE HOME,"2,400.00",31/05/2022,
Delivery Units,Adults and Health,Other Agencies - Third Party P,90459816,Achieve Together Limited,"3,030.04",03/05/2022,
Delivery Units,Adults and Health,Other Agencies - Third Party P,90459818,Achieve Together Limited,"5,379.16",03/05/2022,
Delivery Units,Adults and Health,Other Agencies - Third Party P,90459827,LIVABILITY,"1,203.22",03/05/2022,
Delivery Units,Adults and Health,Other Agencies - Third Party P,90460612,Runwood Homes Ltd,"2,991.81",03/05/2022,
Delivery Units,Adults and Health,Other Agencies - Third Party P,90460613,Runwood Homes Ltd,"2,702.28",03/05/2022,
Delivery Units,Adults and Health,Other Agencies - Third Party P,90460614,Runwood Homes Ltd,"2,991.81",03/05/2022,
Delivery Units,Adults and Health,Other Agencies - Third Party P,90460615,Runwood Homes Ltd,"2,895.30",03/05/2022,
Delivery Units,Adults and Health,Other Agencies - Third Party P,90460616,Runwood Homes Ltd,"4,342.95",03/05/2022,
Delivery Units,Adults and Health,Other Agencies - Third Party P,90461084,AUTUMN GARDENS,"3,200.00",04/05/2022,
Delivery Units,Adults and Health,Other Agencies - Third Party P,90415897,Ashfield Residential Care Home,392.15,04/05/2022,
Delivery Units,Adults and Health,Other Agencies - Third Party P,90415898,Ashfield Residential Care Home,392.15,04/05/2022,
Delivery Units,Adults and Health,Other Agencies - Third Party P,90415899,Ashfield Residential Care Home,653.57,04/05/2022,
Delivery Units,Adults and Health,Other Agencies - Third Party P,90415900,Ashfield Residential Care Home,203.58,04/05/2022,
Delivery Units,Adults and Health,Other Agencies - Third Party P,90417414,Ashfield Residential Care Home,"3,278.57",04/05/2022,
Delivery Units,Adults and Health,Other Agencies - Third Party P,90417415,Ashfield Residential Care Home,"2,892.86",04/05/2022,
Delivery Units,Adults and Health,Other Agencies - Third Party P,90417416,Ashfield Residential Care Home,"3,278.57",04/05/2022,
Delivery Units,Adults and Health,Other Agencies - Third Party P,90425926,Ashfield Residential Care Home,"3,387.86",04/05/2022,
Delivery Units,Adults and Health,Other Agencies - Third Party P,90425927,Ashfield Residential Care Home,"2,989.29",04/05/2022,
Delivery Units,Adults and Health,Other Agencies - Third Party P,90425929,Ashfield Residential Care Home,"3,387.86",04/05/2022,
Delivery Units,Adults and Health,Other Agencies - Third Party P,90427619,Ashfield Residential Care Home,"2,420.00",04/05/2022,
Delivery Units,Adults and Health,Other Agencies - Third Party P,90436074,Ashfield Residential Care Home,"3,410.00",04/05/2022,
Delivery Units,Adults and Health,Other Agencies - Third Party P,90436075,Ashfield Residential Care Home,"3,387.86",04/05/2022,
Delivery Units,Adults and Health,Other Agencies - Third Party P,90436076,Ashfield Residential Care Home,"3,387.86",04/05/2022,
Delivery Units,Adults and Health,Other Agencies - Third Party P,90436077,Ashfield Residential Care Home,"2,989.29",04/05/2022,
Delivery Units,Adults and Health,Other Agencies - Third Party P,90444867,Ashfield Residential Care Home,770,04/05/2022,
Delivery Units,Adults and Health,Other Agencies - Third Party P,90444868,Ashfield Residential Care Home,"3,080.00",04/05/2022,
Delivery Units,Adults and Health,Other Agencies - Third Party P,90444869,Ashfield Residential Care Home,"3,060.00",04/05/2022,
Delivery Units,Adults and Health,Other Agencies - Third Party P,90444870,Ashfield Residential Care Home,"3,060.00",04/05/2022,
Delivery Units,Adults and Health,Other Agencies - Third Party P,90444871,Ashfield Residential Care Home,"2,700.00",04/05/2022,
Delivery Units,Adults and Health,Other Agencies - Third Party P,90445644,Ashfield Residential Care Home,"2,989.29",04/05/2022,
Delivery Units,Adults and Health,Other Agencies - Third Party P,90445645,Ashfield Residential Care Home,"3,387.86",04/05/2022,
Delivery Units,Adults and Health,Other Agencies - Third Party P,90450810,Ashfield Residential Care Home,"3,387.86",04/05/2022,
Delivery Units,Adults and Health,Other Agencies - Third Party P,90450811,Ashfield Residential Care Home,"3,410.00",04/05/2022,
Delivery Units,Adults and Health,Other Agencies - Third Party P,90450812,Ashfield Residential Care Home,110,04/05/2022,
Delivery Units,Adults and Health,Other Agencies - Third Party P,90450813,Ashfield Residential Care Home,"3,387.86",04/05/2022,
Delivery Units,Adults and Health,Other Agencies - Third Party P,90450814,Ashfield Residential Care Home,"2,989.29",04/05/2022,
Delivery Units,Adults and Health,Other Agencies - Third Party P,90461078,ANASTASIA LODGE,678.57,04/05/2022,
Delivery Units,Adults and Health,Other Agencies - Third Party P,90461079,ANASTASIA LODGE,"3,480.00",04/05/2022,
Delivery Units,Adults and Health,Other Agencies - Third Party P,90461601,ABBEY RAVENSCROFT PARK NURSING HOME,415.74,09/05/2022,
Delivery Units,Adults and Health,Other Agencies - Third Party P,90461622,Elizabeth Finn Homes Ltd,"3,857.14",09/05/2022,
Delivery Units,Adults and Health,Other Agencies - Third Party P,90462278,AGUDAS ISRAEL HOUSING ASSCTN LTD,"4,285.71",13/05/2022,
Delivery Units,Adults and Health,Other Agencies - Third Party P,90462279,AGUDAS ISRAEL HOUSING ASSCTN LTD,"5,250.00",13/05/2022,
Delivery Units,Adults and Health,Other Agencies - Third Party P,90462244,THE WOODSIDE HOME,"2,540.00",13/05/2022,
Delivery Units,Adults and Health,Other Agencies - Third Party P,90462245,THE WOODSIDE HOME,"2,800.00",13/05/2022,
Delivery Units,Adults and Health,Other Agencies - Third Party P,90462246,THE WOODSIDE HOME,"2,540.00",13/05/2022,
Delivery Units,Adults and Health,Other Agencies - Third Party P,90462247,THE WOODSIDE HOME,"2,540.00",13/05/2022,
Delivery Units,Adults and Health,Other Agencies - Third Party P,90462248,THE WOODSIDE HOME,"2,540.00",13/05/2022,
Delivery Units,Adults and Health,Other Agencies - Third Party P,90462249,THE WOODSIDE HOME,"2,540.00",13/05/2022,
Delivery Units,Adults and Health,Other Agencies - Third Party P,90462250,THE WOODSIDE HOME,"2,676.00",13/05/2022,
Delivery Units,Adults and Health,Other Agencies - Third Party P,90462251,THE WOODSIDE HOME,"2,676.00",13/05/2022,
Delivery Units,Adults and Health,Other Agencies - Third Party P,90462252,THE WOODSIDE HOME,635,13/05/2022,
Delivery Units,Adults and Health,Other Agencies - Third Party P,90462253,THE WOODSIDE HOME,"2,800.00",13/05/2022,
Delivery Units,Adults and Health,Other Agencies - Third Party P,90462256,EASTSIDE HOUSE CARE HOME,"1,445.73",13/05/2022,
Delivery Units,Adults and Health,Other Agencies - Third Party P,90462257,EASTSIDE HOUSE CARE HOME,"3,180.00",13/05/2022,
Delivery Units,Adults and Health,Other Agencies - Third Party P,90462260,EASTSIDE HOUSE CARE HOME,"3,400.00",13/05/2022,
Delivery Units,Adults and Health,Other Agencies - Third Party P,90462263,Haling Park Care Home,"3,800.00",13/05/2022,
Delivery Units,Adults and Health,Other Agencies - Third Party P,90462265,VENTRY RESIDENTIAL CARE LTD,"3,064.29",13/05/2022,
Delivery Units,Adults and Health,Other Agencies - Third Party P,90462266,Ventry Residential Care - Ernest Dene,"3,300.00",13/05/2022,
Delivery Units,Adults and Health,Other Agencies - Third Party P,90462267,Ventry Residential Care - Ernest Dene,"3,300.00",13/05/2022,
Delivery Units,Adults and Health,Other Agencies - Third Party P,90462268,Ventry Residential Care - Ernest Dene,"1,870.00",13/05/2022,
Delivery Units,Adults and Health,Other Agencies - Third Party P,90462269,Ventry Residential Care - Ernest Dene,"3,300.00",13/05/2022,
Delivery Units,Adults and Health,Other Agencies - Third Party P,90462270,Ventry Residential Care - Ernest Dene,"3,278.57",13/05/2022,
Delivery Units,Adults and Health,Other Agencies - Third Party P,90462271,Ventry Residential Care - Ernest Dene,"3,278.57",13/05/2022,
Delivery Units,Adults and Health,Other Agencies - Third Party P,90462273,Ventry Residential Care - Ernest Dene,"3,278.57",13/05/2022,
Delivery Units,Adults and Health,Other Agencies - Third Party P,90462280,Ashfield Residential Care Home,"3,278.57",13/05/2022,
Delivery Units,Adults and Health,Other Agencies - Third Party P,90462281,Ashfield Residential Care Home,"3,300.00",13/05/2022,
Delivery Units,Adults and Health,Other Agencies - Third Party P,90462282,Ashfield Residential Care Home,"3,278.57",13/05/2022,
Delivery Units,Adults and Health,Other Agencies - Third Party P,90462283,Ashfield Residential Care Home,"2,892.86",13/05/2022,
Delivery Units,Adults and Health,Other Agencies - Third Party P,90463089,GCH (North London) t/a The Tudors,"2,346.00",16/05/2022,
Delivery Units,Adults and Health,Other Agencies - Third Party P,90463077,Jah-Jireh Charity Homes,"3,055.71",16/05/2022,
Delivery Units,Adults and Health,Other Agencies - Third Party P,90463091,LIVABILITY,"3,596.56",16/05/2022,
Delivery Units,Adults and Health,Other Agencies - Third Party P,90463095,LIVABILITY,"4,538.56",16/05/2022,
Delivery Units,Adults and Health,Other Agencies - Third Party P,90462755,HILTON LODGE LTD.,"3,000.00",16/05/2022,
Delivery Units,Adults and Health,Other Agencies - Third Party P,90463074,GREEN TREES,"3,764.33",16/05/2022,
Delivery Units,Adults and Health,Other Agencies - Third Party P,90463075,GREEN TREES,"3,542.99",16/05/2022,
Delivery Units,Adults and Health,Other Agencies - Third Party P,90463076,GREEN TREES,"3,631.34",16/05/2022,
Delivery Units,Adults and Health,Other Agencies - Third Party P,90463078,THE CHRISTIAN CARE TRUST,"4,225.00",16/05/2022,
Delivery Units,Adults and Health,Other Agencies - Third Party P,90463079,THE CHRISTIAN CARE TRUST,"2,898.80",16/05/2022,
Delivery Units,Adults and Health,Other Agencies - Third Party P,90463087,SANCTUARY CARE LTD,"2,978.48",16/05/2022,
Delivery Units,Adults and Health,Other Agencies - Third Party P,90463101,Oakland Primecare Ltd,"6,257.57",16/05/2022,
Delivery Units,Adults and Health,Other Agencies - Third Party P,90463106,EASTSIDE HOUSE CARE HOME,"3,400.00",16/05/2022,
Delivery Units,Adults and Health,Other Agencies - Third Party P,90463107,NIGHTINGALE HOUSE,"2,972.91",16/05/2022,
Delivery Units,Adults and Health,Other Agencies - Third Party P,90458264,SYDMAR LODGE,-749.25,17/05/2022,
Delivery Units,Adults and Health,Other Agencies - Third Party P,90463713,TENTERDEN HOUSE,"4,280.26",17/05/2022,
Delivery Units,Adults and Health,Other Agencies - Third Party P,90463736,SYDMAR LODGE,"5,535.71",17/05/2022,
Delivery Units,Adults and Health,Other Agencies - Third Party P,90463738,SYDMAR LODGE,"5,535.71",17/05/2022,
Delivery Units,Adults and Health,Other Agencies - Third Party P,90463739,SYDMAR LODGE,"5,535.71",17/05/2022,
Delivery Units,Adults and Health,Other Agencies - Third Party P,90463740,SYDMAR LODGE,"6,045.00",17/05/2022,
Delivery Units,Adults and Health,Other Agencies - Third Party P,90456468,Wilton House Ltd,"-1,684.82",17/05/2022,
Delivery Units,Adults and Health,Other Agencies - Third Party P,90463722,Karuna Manor,"4,207.14",17/05/2022,
Delivery Units,Adults and Health,Other Agencies - Third Party P,90463724,Karuna Manor,"6,642.86",17/05/2022,
Delivery Units,Adults and Health,Other Agencies - Third Party P,90463743,B & M CARE,"4,428.57",17/05/2022,
Delivery Units,Adults and Health,Other Agencies - Third Party P,90463755,MEERA NURSING HOME LIMITED,"3,164.13",17/05/2022,
Delivery Units,Adults and Health,Other Agencies - Third Party P,90463761,St Martins Residential Homes Ltd,"2,700.00",17/05/2022,
Delivery Units,Adults and Health,Other Agencies - Third Party P,90463762,St Martins Residential Homes Ltd,"2,700.00",17/05/2022,
Delivery Units,Adults and Health,Other Agencies - Third Party P,90463766,B & M CARE,"3,764.29",17/05/2022,
Delivery Units,Adults and Health,Other Agencies - Third Party P,90463768,B & M CARE,"4,207.14",17/05/2022,
Delivery Units,Adults and Health,Other Agencies - Third Party P,90463769,B & M CARE,"4,207.14",17/05/2022,
Delivery Units,Adults and Health,Other Agencies - Third Party P,90464905,TBG Mosaic,"2,380.00",19/05/2022,
Delivery Units,Adults and Health,Other Agencies - Third Party P,90464906,TBG Mosaic,"2,380.00",19/05/2022,
Delivery Units,Adults and Health,Other Agencies - Third Party P,90464907,TBG Mosaic,"2,380.00",19/05/2022,
Delivery Units,Adults and Health,Other Agencies - Third Party P,90464908,TBG Mosaic,"2,380.00",19/05/2022,
Delivery Units,Adults and Health,Other Agencies - Third Party P,90464910,TBG Mosaic,"2,516.00",19/05/2022,
Delivery Units,Adults and Health,Other Agencies - Third Party P,90464911,TBG Mosaic,"-3,775.88",19/05/2022,
Delivery Units,Adults and Health,Other Agencies - Third Party P,90464912,TBG Mosaic,"2,516.00",19/05/2022,
Delivery Units,Adults and Health,Other Agencies - Third Party P,90464913,TBG Mosaic,"2,516.00",19/05/2022,
Delivery Units,Adults and Health,Other Agencies - Third Party P,90464914,TBG Mosaic,"2,380.00",19/05/2022,
Delivery Units,Adults and Health,Other Agencies - Third Party P,90464916,TBG Mosaic,"2,380.00",19/05/2022,
Delivery Units,Adults and Health,Other Agencies - Third Party P,90464917,TBG Mosaic,"2,516.00",19/05/2022,
Delivery Units,Adults and Health,Other Agencies - Third Party P,90464918,TBG Mosaic,"2,380.00",19/05/2022,
Delivery Units,Adults and Health,Other Agencies - Third Party P,90464919,TBG Mosaic,"2,380.00",19/05/2022,
Delivery Units,Adults and Health,Other Agencies - Third Party P,90464920,TBG Mosaic,"2,380.00",19/05/2022,
Delivery Units,Adults and Health,Other Agencies - Third Party P,90464921,TBG Mosaic,"5,555.20",19/05/2022,
Delivery Units,Adults and Health,Other Agencies - Third Party P,90464922,TBG Mosaic,"4,292.00",19/05/2022,
Delivery Units,Adults and Health,Other Agencies - Third Party P,90464923,TBG Mosaic,0.04,19/05/2022,
Delivery Units,Adults and Health,Other Agencies - Third Party P,90464924,TBG Mosaic,"9,376.00",19/05/2022,
Delivery Units,Adults and Health,Other Agencies - Third Party P,90464925,TBG Mosaic,"2,516.00",19/05/2022,
Delivery Units,Adults and Health,Other Agencies - Third Party P,90464926,TBG Mosaic,"2,516.00",19/05/2022,
Delivery Units,Adults and Health,Other Agencies - Third Party P,90464927,TBG Mosaic,"2,380.00",19/05/2022,
Delivery Units,Adults and Health,Other Agencies - Third Party P,90464928,TBG Mosaic,"2,380.00",19/05/2022,
Delivery Units,Adults and Health,Other Agencies - Third Party P,90464929,TBG Mosaic,"2,380.00",19/05/2022,
Delivery Units,Adults and Health,Other Agencies - Third Party P,90464930,TBG Mosaic,"2,920.00",19/05/2022,
Delivery Units,Adults and Health,Other Agencies - Third Party P,90464931,TBG Mosaic,"2,380.00",19/05/2022,
Delivery Units,Adults and Health,Other Agencies - Third Party P,90464932,TBG Mosaic,"2,380.00",19/05/2022,
Delivery Units,Adults and Health,Other Agencies - Third Party P,90464933,TBG Mosaic,"2,516.00",19/05/2022,
Delivery Units,Adults and Health,Other Agencies - Third Party P,90464934,TBG Mosaic,"2,516.00",19/05/2022,
Delivery Units,Adults and Health,Other Agencies - Third Party P,90464935,TBG Mosaic,"2,380.00",19/05/2022,
Delivery Units,Adults and Health,Other Agencies - Third Party P,90464936,TBG Mosaic,"2,676.00",19/05/2022,
Delivery Units,Adults and Health,Other Agencies - Third Party P,90464937,TBG Mosaic,"2,516.00",19/05/2022,
Delivery Units,Adults and Health,Other Agencies - Third Party P,90464938,TBG Mosaic,"2,380.00",19/05/2022,
Delivery Units,Adults and Health,Other Agencies - Third Party P,90464939,TBG Mosaic,"2,516.00",19/05/2022,
Delivery Units,Adults and Health,Other Agencies - Third Party P,90464941,TBG Mosaic,"4,062.40",19/05/2022,
Delivery Units,Adults and Health,Other Agencies - Third Party P,90464942,TBG Mosaic,"2,380.00",19/05/2022,
Delivery Units,Adults and Health,Other Agencies - Third Party P,90464944,TBG Mosaic,"2,380.00",19/05/2022,
Delivery Units,Adults and Health,Other Agencies - Third Party P,90464945,TBG Mosaic,"2,380.00",19/05/2022,
Delivery Units,Adults and Health,Other Agencies - Third Party P,90464946,TBG Mosaic,"2,380.00",19/05/2022,
Delivery Units,Adults and Health,Other Agencies - Third Party P,90464947,TBG Mosaic,"2,380.00",19/05/2022,
Delivery Units,Adults and Health,Other Agencies - Third Party P,90464948,TBG Mosaic,"4,430.40",19/05/2022,
Delivery Units,Adults and Health,Other Agencies - Third Party P,90464949,TBG Mosaic,"2,380.00",19/05/2022,
Delivery Units,Adults and Health,Other Agencies - Third Party P,90464951,TBG Mosaic,"2,380.00",19/05/2022,
Delivery Units,Adults and Health,Other Agencies - Third Party P,90464952,TBG Mosaic,"2,516.00",19/05/2022,
Delivery Units,Adults and Health,Other Agencies - Third Party P,90464953,TBG Mosaic,"2,380.00",19/05/2022,
Delivery Units,Adults and Health,Other Agencies - Third Party P,90464954,TBG Mosaic,"2,516.00",19/05/2022,
Delivery Units,Adults and Health,Other Agencies - Third Party P,90464955,TBG Mosaic,"2,516.00",19/05/2022,
Delivery Units,Adults and Health,Other Agencies - Third Party P,90464956,TBG Mosaic,"2,380.00",19/05/2022,
Delivery Units,Adults and Health,Other Agencies - Third Party P,90464957,TBG Mosaic,"2,516.00",19/05/2022,
Delivery Units,Adults and Health,Other Agencies - Third Party P,90464958,TBG Mosaic,"2,857.92",19/05/2022,
Delivery Units,Adults and Health,Other Agencies - Third Party P,90464959,TBG Mosaic,"2,380.00",19/05/2022,
Delivery Units,Adults and Health,Other Agencies - Third Party P,90464960,TBG Mosaic,"2,540.00",19/05/2022,
Delivery Units,Adults and Health,Other Agencies - Third Party P,90464961,TBG Mosaic,"2,516.00",19/05/2022,
Delivery Units,Adults and Health,Other Agencies - Third Party P,90464962,TBG Mosaic,"2,380.00",19/05/2022,
Delivery Units,Adults and Health,Other Agencies - Third Party P,90464963,TBG Mosaic,"2,516.00",19/05/2022,
Delivery Units,Adults and Health,Other Agencies - Third Party P,90464964,TBG Mosaic,"2,516.00",19/05/2022,
Delivery Units,Adults and Health,Other Agencies - Third Party P,90464965,TBG Mosaic,"2,516.00",19/05/2022,
Delivery Units,Adults and Health,Other Agencies - Third Party P,90464971,TBG Mosaic,"2,380.00",19/05/2022,
Delivery Units,Adults and Health,Other Agencies - Third Party P,90464972,TBG Mosaic,"5,555.20",19/05/2022,
Delivery Units,Adults and Health,Other Agencies - Third Party P,90464973,TBG Mosaic,"4,292.00",19/05/2022,
Delivery Units,Adults and Health,Other Agencies - Third Party P,90464974,TBG Mosaic,0.04,19/05/2022,
Delivery Units,Adults and Health,Other Agencies - Third Party P,90464975,TBG Mosaic,"9,376.00",19/05/2022,
Delivery Units,Adults and Health,Other Agencies - Third Party P,90464976,TBG Mosaic,"2,516.00",19/05/2022,
Delivery Units,Adults and Health,Other Agencies - Third Party P,90464977,TBG Mosaic,"2,516.00",19/05/2022,
Delivery Units,Adults and Health,Other Agencies - Third Party P,90464978,TBG Mosaic,"2,380.00",19/05/2022,
Delivery Units,Adults and Health,Other Agencies - Third Party P,90464979,TBG Mosaic,"2,380.00",19/05/2022,
Delivery Units,Adults and Health,Other Agencies - Third Party P,90464980,TBG Mosaic,"2,380.00",19/05/2022,
Delivery Units,Adults and Health,Other Agencies - Third Party P,90464981,TBG Mosaic,"2,932.86",19/05/2022,
Delivery Units,Adults and Health,Other Agencies - Third Party P,90464982,TBG Mosaic,"2,380.00",19/05/2022,
Delivery Units,Adults and Health,Other Agencies - Third Party P,90464983,TBG Mosaic,"2,380.00",19/05/2022,
Delivery Units,Adults and Health,Other Agencies - Third Party P,90464984,TBG Mosaic,"2,516.00",19/05/2022,
Delivery Units,Adults and Health,Other Agencies - Third Party P,90464985,TBG Mosaic,"2,516.00",19/05/2022,
Delivery Units,Adults and Health,Other Agencies - Third Party P,90464986,TBG Mosaic,"2,380.00",19/05/2022,
Delivery Units,Adults and Health,Other Agencies - Third Party P,90464987,TBG Mosaic,"2,693.14",19/05/2022,
Delivery Units,Adults and Health,Other Agencies - Third Party P,90464988,TBG Mosaic,"2,380.00",19/05/2022,
Delivery Units,Adults and Health,Other Agencies - Third Party P,90464989,TBG Mosaic,"2,516.00",19/05/2022,
Delivery Units,Adults and Health,Other Agencies - Third Party P,90464990,TBG Mosaic,"2,380.00",19/05/2022,
Delivery Units,Adults and Health,Other Agencies - Third Party P,90464991,TBG Mosaic,"2,516.00",19/05/2022,
Delivery Units,Adults and Health,Other Agencies - Third Party P,90464992,TBG Mosaic,"2,516.00",19/05/2022,
Delivery Units,Adults and Health,Other Agencies - Third Party P,90464993,TBG Mosaic,"2,380.00",19/05/2022,
Delivery Units,Adults and Health,Other Agencies - Third Party P,90464994,TBG Mosaic,"2,516.00",19/05/2022,
Delivery Units,Adults and Health,Other Agencies - Third Party P,90464996,TBG Mosaic,"2,857.92",19/05/2022,
Delivery Units,Adults and Health,Other Agencies - Third Party P,90464997,TBG Mosaic,"2,380.00",19/05/2022,
Delivery Units,Adults and Health,Other Agencies - Third Party P,90464998,TBG Mosaic,"2,557.14",19/05/2022,
Delivery Units,Adults and Health,Other Agencies - Third Party P,90464999,TBG Mosaic,"2,516.00",19/05/2022,
Delivery Units,Adults and Health,Other Agencies - Third Party P,90465000,TBG Mosaic,"2,380.00",19/05/2022,
Delivery Units,Adults and Health,Other Agencies - Third Party P,90465001,TBG Mosaic,"2,516.00",19/05/2022,
Delivery Units,Adults and Health,Other Agencies - Third Party P,90465002,TBG Mosaic,"2,516.00",19/05/2022,
Delivery Units,Adults and Health,Other Agencies - Third Party P,90465003,TBG Mosaic,"2,516.00",19/05/2022,
Delivery Units,Adults and Health,Other Agencies - Third Party P,90465005,TBG Mosaic,"2,380.00",19/05/2022,
Delivery Units,Adults and Health,Other Agencies - Third Party P,90465006,TBG Mosaic,"2,380.00",19/05/2022,
Delivery Units,Adults and Health,Other Agencies - Third Party P,90465007,TBG Mosaic,"2,380.00",19/05/2022,
Delivery Units,Adults and Health,Other Agencies - Third Party P,90465008,TBG Mosaic,"2,380.00",19/05/2022,
Delivery Units,Adults and Health,Other Agencies - Third Party P,90465010,TBG Mosaic,"2,516.00",19/05/2022,
Delivery Units,Adults and Health,Other Agencies - Third Party P,90465011,TBG Mosaic,"-6,459.31",19/05/2022,
Delivery Units,Adults and Health,Other Agencies - Third Party P,90465012,TBG Mosaic,"2,516.00",19/05/2022,
Delivery Units,Adults and Health,Other Agencies - Third Party P,90465013,TBG Mosaic,"2,516.00",19/05/2022,
Delivery Units,Adults and Health,Other Agencies - Third Party P,90465014,TBG Mosaic,"2,380.00",19/05/2022,
Delivery Units,Adults and Health,Other Agencies - Third Party P,90465016,TBG Mosaic,"2,380.00",19/05/2022,
Delivery Units,Adults and Health,Other Agencies - Third Party P,90465017,TBG Mosaic,"2,516.00",19/05/2022,
Delivery Units,Adults and Health,Other Agencies - Third Party P,90465018,TBG Mosaic,"2,380.00",19/05/2022,
Delivery Units,Adults and Health,Other Agencies - Third Party P,90465019,TBG Mosaic,"2,380.00",19/05/2022,
Delivery Units,Adults and Health,Other Agencies - Third Party P,90465020,TBG Mosaic,"2,516.00",19/05/2022,
Delivery Units,Adults and Health,Other Agencies - Third Party P,90465021,TBG Mosaic,"2,380.00",19/05/2022,
Delivery Units,Adults and Health,Other Agencies - Third Party P,90465022,TBG Mosaic,"2,516.00",19/05/2022,
Delivery Units,Adults and Health,Other Agencies - Third Party P,90465024,TBG Mosaic,"4,062.40",19/05/2022,
Delivery Units,Adults and Health,Other Agencies - Third Party P,90465025,TBG Mosaic,"2,380.00",19/05/2022,
Delivery Units,Adults and Health,Other Agencies - Third Party P,90465027,TBG Mosaic,"2,380.00",19/05/2022,
Delivery Units,Adults and Health,Other Agencies - Third Party P,90465028,TBG Mosaic,"2,380.00",19/05/2022,
Delivery Units,Adults and Health,Other Agencies - Third Party P,90465029,TBG Mosaic,"2,380.00",19/05/2022,
Delivery Units,Adults and Health,Other Agencies - Third Party P,90465030,TBG Mosaic,"2,380.00",19/05/2022,
Delivery Units,Adults and Health,Other Agencies - Third Party P,90465031,TBG Mosaic,"4,430.40",19/05/2022,
Delivery Units,Adults and Health,Other Agencies - Third Party P,90465032,TBG Mosaic,"2,380.00",19/05/2022,
Delivery Units,Adults and Health,Other Agencies - Third Party P,90464732,WESTMINSTER HEALTH CARE LTD,"5,357.14",19/05/2022,
Delivery Units,Adults and Health,Other Agencies - Third Party P,90464734,WESTMINSTER HEALTH CARE LTD,-714.28,19/05/2022,
Delivery Units,Adults and Health,Other Agencies - Third Party P,90464737,Alexandra House (Runwood Homes),"2,770.07",19/05/2022,
Delivery Units,Adults and Health,Other Agencies - Third Party P,90464741,HILTON LODGE LTD.,"3,000.00",19/05/2022,
Delivery Units,Adults and Health,Other Agencies - Third Party P,90466952,CEDARS NURSING HOME,"5,142.86",24/05/2022,
Delivery Units,Adults and Health,Other Agencies - Third Party P,90466953,CEDARS NURSING HOME,"5,314.29",24/05/2022,
Delivery Units,Adults and Health,Other Agencies - Third Party P,90466970,CEDARS NURSING HOME,"4,285.71",24/05/2022,
Delivery Units,Adults and Health,Other Agencies - Third Party P,90466971,CEDARS NURSING HOME,"4,428.57",24/05/2022,
Delivery Units,Adults and Health,Other Agencies - Third Party P,90466977,Barchester Healthcare,"5,280.00",25/05/2022,
Delivery Units,Adults and Health,Other Agencies - Third Party P,90466978,A.H.J. David Ltd t/a Florence House,"3,200.00",25/05/2022,
Delivery Units,Adults and Health,Other Agencies - Third Party P,90466979,A.H.J. David Ltd t/a Florence House,"3,200.00",25/05/2022,
Delivery Units,Adults and Health,Other Agencies - Third Party P,90467250,Bowerswood House Retirement Home Ltd,"2,480.00",27/05/2022,
Delivery Units,Adults and Health,Other Agencies - Third Party P,90467527,DR FRENCH MEMORIAL HOME LTD,"3,542.86",30/05/2022,
Delivery Units,Adults and Health,Other Agencies - Third Party P,90467528,DR FRENCH MEMORIAL HOME LTD,"3,764.29",30/05/2022,
Delivery Units,Adults and Health,Other Agencies - Third Party P,90467529,DR FRENCH MEMORIAL HOME LTD,"3,875.00",30/05/2022,
Delivery Units,Adults and Health,Other Agencies - Third Party P,90467530,DR FRENCH MEMORIAL HOME LTD,"3,875.00",30/05/2022,
Delivery Units,Adults and Health,Other Agencies - Third Party P,90467531,DR FRENCH MEMORIAL HOME LTD,"3,875.00",30/05/2022,
Delivery Units,Adults and Health,Other Agencies - Third Party P,90467533,DR FRENCH MEMORIAL HOME LTD,"3,857.14",30/05/2022,
Delivery Units,Adults and Health,Other Agencies - Third Party P,90467534,DR FRENCH MEMORIAL HOME LTD,"3,750.00",30/05/2022,
Delivery Units,Adults and Health,Other Agencies - Third Party P,90467536,DR FRENCH MEMORIAL HOME LTD,"3,875.00",30/05/2022,
Delivery Units,Adults and Health,Other Agencies - Third Party P,90467537,DR FRENCH MEMORIAL HOME LTD,"3,875.00",30/05/2022,
Delivery Units,Adults and Health,Other Agencies - Third Party P,90467539,Achieve Together Limited,"3,030.04",30/05/2022,
Delivery Units,Adults and Health,Other Agencies - Third Party P,90467541,Achieve Together Limited,"5,379.16",30/05/2022,
Delivery Units,Adults and Health,Other Agencies - Third Party P,90468390,ROSEACRES CARE HOME LIMITED,"-1,638.72",31/05/2022,
Delivery Units,Adults and Health,Other Agencies - Third Party P,90468394,ROSEACRES CARE HOME LIMITED,"3,252.86",31/05/2022,
Delivery Units,Adults and Health,Other Agencies - Third Party P,90468401,ROSEACRES CARE HOME LIMITED,"-2,082.32",31/05/2022,
Delivery Units,Adults and Health,Other Agencies - Third Party P,90468415,CATHERINE LODGE,"3,400.00",31/05/2022,
Delivery Units,Adults and Health,Other Agencies - Third Party P,90468452,CATHERINE LODGE,"3,800.00",31/05/2022,
Delivery Units,Adults and Health,Other Agencies - Third Party P,90468469,CATHERINE LODGE,"3,200.00",31/05/2022,
Delivery Units,Adults and Health,Other Agencies - Third Party P,90468487,ROSEACRES CARE HOME LIMITED,"2,900.00",31/05/2022,
Delivery Units,Adults and Health,Other Agencies - Third Party P,90468498,ROSEACRES CARE HOME LIMITED,"10,071.33",31/05/2022,
Delivery Units,Adults and Health,Other Agencies - Third Party P,90468501,CATHERINE LODGE,"3,580.00",31/05/2022,
Delivery Units,Adults and Health,Other Agencies - Third Party P,90468503,CARLTON COURT (TLC GROUP),"5,800.00",31/05/2022,
Delivery Units,Adults and Health,Other Agencies - Third Party P,90468511,CARLTON COURT (TLC GROUP),"5,400.00",31/05/2022,
Delivery Units,Adults and Health,Other Agencies - Third Party P,90468513,ROSEACRES CARE HOME LIMITED,"3,400.00",31/05/2022,
Delivery Units,Adults and Health,Other Agencies - Third Party P,90468525,ROSEACRES CARE HOME LIMITED,"3,200.00",31/05/2022,
Delivery Units,Adults and Health,Other Agencies - Third Party P,90468544,CATHERINE LODGE,"3,800.00",31/05/2022,
Delivery Units,Adults and Health,Other Agencies - Third Party P,90468553,ROSEACRES CARE HOME LIMITED,"2,900.00",31/05/2022,
Delivery Units,Adults and Health,Other Agencies - Third Party P,90468557,CARLTON COURT (TLC GROUP),"-14,571.43",31/05/2022,
Delivery Units,Adults and Health,Other Agencies - Third Party P,90468574,ROSEACRES CARE HOME LIMITED,"2,900.00",31/05/2022,
Delivery Units,Adults and Health,Other Agencies - Third Party P,90468588,ROSEACRES CARE HOME LIMITED,"3,252.86",31/05/2022,
Delivery Units,Adults and Health,Other Agencies - Third Party P,90468595,CATHERINE LODGE,"1,707.29",31/05/2022,
Delivery Units,Adults and Health,Other Agencies - Third Party P,90468596,CATHERINE LODGE,"3,000.00",31/05/2022,
Delivery Units,Adults and Health,Other Agencies - Third Party P,90468599,ROSEACRES CARE HOME LIMITED,"2,853.14",31/05/2022,
Delivery Units,Adults and Health,Other Agencies - Third Party P,90468600,CARLTON COURT (TLC GROUP),"2,380.00",31/05/2022,
Delivery Units,Adults and Health,Other Agencies - Third Party P,90468605,ROSEACRES CARE HOME LIMITED,"3,252.86",31/05/2022,
Delivery Units,Adults and Health,Other Agencies - Third Party P,90468641,ROSEACRES CARE HOME LIMITED,"3,400.00",31/05/2022,
Delivery Units,Adults and Health,Other Agencies - Third Party P,90468646,ROSEACRES CARE HOME LIMITED,"3,400.00",31/05/2022,
Delivery Units,Adults and Health,Other Agencies - Third Party P,90468654,CATHERINE LODGE,"3,200.00",31/05/2022,
Delivery Units,Adults and Health,Other Agencies - Third Party P,90468658,ROSEACRES CARE HOME LIMITED,"2,900.00",31/05/2022,
Delivery Units,Adults and Health,Other Agencies - Third Party P,90468664,ROSEACRES CARE HOME LIMITED,"2,900.00",31/05/2022,
Delivery Units,Adults and Health,Other Agencies - Third Party P,90468690,ROSEACRES CARE HOME LIMITED,"2,853.14",31/05/2022,
Delivery Units,Adults and Health,Other Agencies - Third Party P,90468716,ROSEACRES CARE HOME LIMITED,"2,853.14",31/05/2022,
Delivery Units,Adults and Health,Other Agencies - Third Party P,90468726,ROSEACRES CARE HOME LIMITED,"3,400.00",31/05/2022,
Delivery Units,Adults and Health,Other Agencies - Third Party P,90468776,ROSEACRES CARE HOME LIMITED,"3,200.00",31/05/2022,
Delivery Units,Adults and Health,Other Agencies - Third Party P,90468778,ROSEACRES CARE HOME LIMITED,"3,400.00",31/05/2022,
Delivery Units,Adults and Health,Other Agencies - Third Party P,90468807,ROSEACRES CARE HOME LIMITED,"3,157.14",31/05/2022,
Delivery Units,Adults and Health,Other Agencies - Third Party P,90468808,CATHERINE LODGE,"3,121.43",31/05/2022,
Delivery Units,Adults and Health,Other Agencies - Third Party P,90468429,WOODFIELD HOUSE,"15,080.00",31/05/2022,
Delivery Units,Adults and Health,Other Agencies - Third Party P,90468550,WOODFIELD HOUSE,"6,445.44",31/05/2022,
Delivery Units,Adults and Health,Other Agencies - Third Party P,90468335,NAZARETH HOUSE,"2,717.14",31/05/2022,
Delivery Units,Adults and Health,Other Agencies - Third Party P,90468336,THE LIMES RESIDENTIAL HOME,"2,853.14",31/05/2022,
Delivery Units,Adults and Health,Other Agencies - Third Party P,90468338,ELM PARK LODGE,"3,047.04",31/05/2022,
Delivery Units,Adults and Health,Other Agencies - Third Party P,90468340,JEWISH CARE,"2,836.14",31/05/2022,
Delivery Units,Adults and Health,Other Agencies - Third Party P,90468342,ELEANOR PALMER TRUST NO 2 A/C.,"3,372.85",31/05/2022,
Delivery Units,Adults and Health,Other Agencies - Third Party P,90468348,NAZARETH HOUSE,"2,717.14",31/05/2022,
Delivery Units,Adults and Health,Other Agencies - Third Party P,90468355,THE LIMES RESIDENTIAL HOME,"3,292.86",31/05/2022,
Delivery Units,Adults and Health,Other Agencies - Third Party P,90468356,JEWISH CARE,"2,836.14",31/05/2022,
Delivery Units,Adults and Health,Other Agencies - Third Party P,90468368,JEWISH CARE,"2,978.94",31/05/2022,
Delivery Units,Adults and Health,Other Agencies - Third Party P,90468369,JEWISH CARE,"2,978.94",31/05/2022,
Delivery Units,Adults and Health,Other Agencies - Third Party P,90468370,JEWISH CARE,"2,641.80",31/05/2022,
Delivery Units,Adults and Health,Other Agencies - Third Party P,90468376,BUPA CARE HOMES,"2,516.00",31/05/2022,
Delivery Units,Adults and Health,Other Agencies - Third Party P,90468381,ELEANOR PALMER TRUST NO 2 A/C.,"3,413.30",31/05/2022,
Delivery Units,Adults and Health,Other Agencies - Third Party P,90468384,JEWISH CARE,"4,265.48",31/05/2022,
Delivery Units,Adults and Health,Other Agencies - Third Party P,90468387,JEWISH CARE,"2,499.00",31/05/2022,
Delivery Units,Adults and Health,Other Agencies - Third Party P,90468389,JEWISH CARE,"2,836.14",31/05/2022,
Delivery Units,Adults and Health,Other Agencies - Third Party P,90468402,APPLE TREE COURT CARE HOME,"3,400.00",31/05/2022,
Delivery Units,Adults and Health,Other Agencies - Third Party P,90468405,JEWISH CARE,"4,825.16",31/05/2022,
Delivery Units,Adults and Health,Other Agencies - Third Party P,90468407,ASHTON LODGE CARE CENTRE,"4,016.52",31/05/2022,
Delivery Units,Adults and Health,Other Agencies - Third Party P,90468408,NAZARETH HOUSE,"-13,260.00",31/05/2022,
Delivery Units,Adults and Health,Other Agencies - Third Party P,90468409,NAZARETH HOUSE,"2,853.14",31/05/2022,
Delivery Units,Adults and Health,Other Agencies - Third Party P,90468410,ELEANOR PALMER TRUST NO 2 A/C.,"3,372.85",31/05/2022,
Delivery Units,Adults and Health,Other Agencies - Third Party P,90468412,JEWISH CARE,"2,978.94",31/05/2022,
Delivery Units,Adults and Health,Other Agencies - Third Party P,90468414,JEWISH CARE,"2,641.80",31/05/2022,
Delivery Units,Adults and Health,Other Agencies - Third Party P,90468426,NAZARETH HOUSE,"-8,755.00",31/05/2022,
Delivery Units,Adults and Health,Other Agencies - Third Party P,90468430,JEWISH CARE,"2,978.94",31/05/2022,
Delivery Units,Adults and Health,Other Agencies - Third Party P,90468433,JEWISH CARE,"2,978.94",31/05/2022,
Delivery Units,Adults and Health,Other Agencies - Third Party P,90468434,THE LIMES RESIDENTIAL HOME,"3,252.86",31/05/2022,
Delivery Units,Adults and Health,Other Agencies - Third Party P,90468435,JEWISH CARE,"2,836.14",31/05/2022,
Delivery Units,Adults and Health,Other Agencies - Third Party P,90468441,JEWISH CARE,"2,836.14",31/05/2022,
Delivery Units,Adults and Health,Other Agencies - Third Party P,90468442,ELEANOR PALMER TRUST NO 2 A/C.,"3,372.85",31/05/2022,
Delivery Units,Adults and Health,Other Agencies - Third Party P,90468443,ELEANOR PALMER TRUST NO 2 A/C.,"3,372.85",31/05/2022,
Delivery Units,Adults and Health,Other Agencies - Third Party P,90468444,ELEANOR PALMER TRUST NO 2 A/C.,"3,372.85",31/05/2022,
Delivery Units,Adults and Health,Other Agencies - Third Party P,90468450,NAZARETH HOUSE,"2,717.14",31/05/2022,
Delivery Units,Adults and Health,Other Agencies - Third Party P,90468453,Aarandale Manor Care Home,"4,200.00",31/05/2022,
Delivery Units,Adults and Health,Other Agencies - Third Party P,90468458,NAZARETH HOUSE,"2,853.14",31/05/2022,
Delivery Units,Adults and Health,Other Agencies - Third Party P,90468461,Aarandale Manor Care Home,"5,000.00",31/05/2022,
Delivery Units,Adults and Health,Other Agencies - Third Party P,90468465,JEWISH CARE,"2,978.94",31/05/2022,
Delivery Units,Adults and Health,Other Agencies - Third Party P,90468466,NAZARETH HOUSE,"2,853.14",31/05/2022,
Delivery Units,Adults and Health,Other Agencies - Third Party P,90468468,NAZARETH HOUSE,"2,853.14",31/05/2022,
Delivery Units,Adults and Health,Other Agencies - Third Party P,90468471,BUPA NURSING HOMES LTD - ARKLEY,"2,800.00",31/05/2022,
Delivery Units,Adults and Health,Other Agencies - Third Party P,90468472,NAZARETH HOUSE,"-4,403.00",31/05/2022,
Delivery Units,Adults and Health,Other Agencies - Third Party P,90468479,NAZARETH HOUSE,"2,380.00",31/05/2022,
Delivery Units,Adults and Health,Other Agencies - Third Party P,90468480,ELM PARK LODGE,"3,400.00",31/05/2022,
Delivery Units,Adults and Health,Other Agencies - Third Party P,90468484,NAZARETH HOUSE,"2,853.14",31/05/2022,
Delivery Units,Adults and Health,Other Agencies - Third Party P,90468490,JEWISH CARE,"2,641.80",31/05/2022,
Delivery Units,Adults and Health,Other Agencies - Third Party P,90468492,NAZARETH HOUSE,"2,717.14",31/05/2022,
Delivery Units,Adults and Health,Other Agencies - Third Party P,90468493,JEWISH CARE,"7,658.40",31/05/2022,
Delivery Units,Adults and Health,Other Agencies - Third Party P,90468500,JEWISH CARE,"2,978.94",31/05/2022,
Delivery Units,Adults and Health,Other Agencies - Third Party P,90468504,JEWISH CARE,"2,978.94",31/05/2022,
Delivery Units,Adults and Health,Other Agencies - Third Party P,90468505,CLOVELLY HOUSE RESID. HOME LTD,214.29,31/05/2022,
Delivery Units,Adults and Health,Other Agencies - Third Party P,90468506,NAZARETH HOUSE,"3,780.00",31/05/2022,
Delivery Units,Adults and Health,Other Agencies - Third Party P,90468510,JEWISH CARE,"5,070.40",31/05/2022,
Delivery Units,Adults and Health,Other Agencies - Third Party P,90468514,JEWISH CARE,"-1,123.70",31/05/2022,
Delivery Units,Adults and Health,Other Agencies - Third Party P,90468515,JEWISH CARE,"2,836.14",31/05/2022,
Delivery Units,Adults and Health,Other Agencies - Third Party P,90468516,NAZARETH HOUSE,"2,853.14",31/05/2022,
Delivery Units,Adults and Health,Other Agencies - Third Party P,90468521,LIFESTYLE CARE PLC,"3,200.00",31/05/2022,
Delivery Units,Adults and Health,Other Agencies - Third Party P,90468522,CLOVELLY HOUSE RESID. HOME LTD,"3,252.86",31/05/2022,
Delivery Units,Adults and Health,Other Agencies - Third Party P,90468524,JEWISH CARE,"2,978.94",31/05/2022,
Delivery Units,Adults and Health,Other Agencies - Third Party P,90468528,THE LIMES RESIDENTIAL HOME,"3,392.86",31/05/2022,
Delivery Units,Adults and Health,Other Agencies - Third Party P,90468532,NAZARETH HOUSE,"2,853.14",31/05/2022,
Delivery Units,Adults and Health,Other Agencies - Third Party P,90468536,CLOVELLY HOUSE RESID. HOME LTD,"3,252.86",31/05/2022,
Delivery Units,Adults and Health,Other Agencies - Third Party P,90468540,BUPA CARE HOMES,"3,000.00",31/05/2022,
Delivery Units,Adults and Health,Other Agencies - Third Party P,90468545,THE LIMES RESIDENTIAL HOME,"3,372.85",31/05/2022,
Delivery Units,Adults and Health,Other Agencies - Third Party P,90468546,JEWISH CARE,"2,978.94",31/05/2022,
Delivery Units,Adults and Health,Other Agencies - Third Party P,90468549,NAZARETH HOUSE,-911.43,31/05/2022,
Delivery Units,Adults and Health,Other Agencies - Third Party P,90468552,BUPA CARE HOMES,"3,298.60",31/05/2022,
Delivery Units,Adults and Health,Other Agencies - Third Party P,90468555,SAGE NURSING HOME,"3,280.00",31/05/2022,
Delivery Units,Adults and Health,Other Agencies - Third Party P,90468558,ELEANOR PALMER TRUST NO 2 A/C.,"3,372.85",31/05/2022,
Delivery Units,Adults and Health,Other Agencies - Third Party P,90468559,JEWISH CARE,"2,978.94",31/05/2022,
Delivery Units,Adults and Health,Other Agencies - Third Party P,90468560,NAZARETH HOUSE,"2,853.14",31/05/2022,
Delivery Units,Adults and Health,Other Agencies - Third Party P,90468562,NAZARETH HOUSE,"-6,379.86",31/05/2022,
Delivery Units,Adults and Health,Other Agencies - Third Party P,90468563,NAZARETH HOUSE,"2,853.14",31/05/2022,
Delivery Units,Adults and Health,Other Agencies - Third Party P,90468564,NAZARETH HOUSE,"2,853.14",31/05/2022,
Delivery Units,Adults and Health,Other Agencies - Third Party P,90468572,ELEANOR PALMER TRUST NO 2 A/C.,"3,372.86",31/05/2022,
Delivery Units,Adults and Health,Other Agencies - Third Party P,90468576,NAZARETH HOUSE,"2,694.29",31/05/2022,
Delivery Units,Adults and Health,Other Agencies - Third Party P,90468591,SAGE NURSING HOME,"2,400.00",31/05/2022,
Delivery Units,Adults and Health,Other Agencies - Third Party P,90468597,THE LIMES RESIDENTIAL HOME,"2,853.14",31/05/2022,
Delivery Units,Adults and Health,Other Agencies - Third Party P,90468602,NAZARETH HOUSE,"2,717.14",31/05/2022,
Delivery Units,Adults and Health,Other Agencies - Third Party P,90468604,THE LIMES RESIDENTIAL HOME,"2,853.14",31/05/2022,
Delivery Units,Adults and Health,Other Agencies - Third Party P,90468606,NAZARETH HOUSE,"2,853.14",31/05/2022,
Delivery Units,Adults and Health,Other Agencies - Third Party P,90468609,SAGE NURSING HOME,"2,800.00",31/05/2022,
Delivery Units,Adults and Health,Other Agencies - Third Party P,90468613,ELEANOR PALMER TRUST NO 2 A/C.,"3,372.85",31/05/2022,
Delivery Units,Adults and Health,Other Agencies - Third Party P,90468618,ELEANOR PALMER TRUST NO 2 A/C.,"3,372.85",31/05/2022,
Delivery Units,Adults and Health,Other Agencies - Third Party P,90468621,JEWISH CARE,"2,836.14",31/05/2022,
Delivery Units,Adults and Health,Other Agencies - Third Party P,90468622,JEWISH CARE,"2,978.94",31/05/2022,
Delivery Units,Adults and Health,Other Agencies - Third Party P,90468623,NAZARETH HOUSE,358.57,31/05/2022,
Delivery Units,Adults and Health,Other Agencies - Third Party P,90468627,APPLE TREE COURT CARE HOME,"4,400.00",31/05/2022,
Delivery Units,Adults and Health,Other Agencies - Third Party P,90468628,JEWISH CARE,"2,978.94",31/05/2022,
Delivery Units,Adults and Health,Other Agencies - Third Party P,90468631,JEWISH CARE,"2,737.15",31/05/2022,
Delivery Units,Adults and Health,Other Agencies - Third Party P,90468635,JEWISH CARE,"2,978.94",31/05/2022,
Delivery Units,Adults and Health,Other Agencies - Third Party P,90468637,JEWISH CARE,"2,978.94",31/05/2022,
Delivery Units,Adults and Health,Other Agencies - Third Party P,90468640,ELEANOR PALMER TRUST NO 2 A/C.,"3,372.85",31/05/2022,
Delivery Units,Adults and Health,Other Agencies - Third Party P,90468642,BUPA CARE HOMES,"2,760.00",31/05/2022,
Delivery Units,Adults and Health,Other Agencies - Third Party P,90468643,BUPA CARE HOMES,"2,800.00",31/05/2022,
Delivery Units,Adults and Health,Other Agencies - Third Party P,90468644,LIFESTYLE CARE PLC,"3,600.00",31/05/2022,
Delivery Units,Adults and Health,Other Agencies - Third Party P,90468650,NAZARETH HOUSE,"2,853.14",31/05/2022,
Delivery Units,Adults and Health,Other Agencies - Third Party P,90468655,BUPA CARE HOMES,"2,800.00",31/05/2022,
Delivery Units,Adults and Health,Other Agencies - Third Party P,90468662,JEWISH CARE,"2,978.94",31/05/2022,
Delivery Units,Adults and Health,Other Agencies - Third Party P,90468669,ELEANOR PALMER TRUST NO 2 A/C.,"3,372.85",31/05/2022,
Delivery Units,Adults and Health,Other Agencies - Third Party P,90468673,NAZARETH HOUSE,"2,853.14",31/05/2022,
Delivery Units,Adults and Health,Other Agencies - Third Party P,90468674,APPLE TREE COURT CARE HOME,"3,800.00",31/05/2022,
Delivery Units,Adults and Health,Other Agencies - Third Party P,90468675,JEWISH CARE,"3,800.00",31/05/2022,
Delivery Units,Adults and Health,Other Agencies - Third Party P,90468681,NAZARETH HOUSE,"2,902.86",31/05/2022,
Delivery Units,Adults and Health,Other Agencies - Third Party P,90468682,CLOVELLY HOUSE RESID. HOME LTD,"3,764.29",31/05/2022,
Delivery Units,Adults and Health,Other Agencies - Third Party P,90468700,JEWISH CARE,"2,978.94",31/05/2022,
Delivery Units,Adults and Health,Other Agencies - Third Party P,90468705,ELEANOR PALMER TRUST NO 2 A/C.,"3,413.30",31/05/2022,
Delivery Units,Adults and Health,Other Agencies - Third Party P,90468713,ELEANOR PALMER TRUST NO 2 A/C.,"3,372.85",31/05/2022,
Delivery Units,Adults and Health,Other Agencies - Third Party P,90468714,ELEANOR PALMER TRUST NO 2 A/C.,"3,372.85",31/05/2022,
Delivery Units,Adults and Health,Other Agencies - Third Party P,90468721,NAZARETH HOUSE,"2,717.14",31/05/2022,
Delivery Units,Adults and Health,Other Agencies - Third Party P,90468725,JEWISH CARE,"2,978.94",31/05/2022,
Delivery Units,Adults and Health,Other Agencies - Third Party P,90468729,THE LIMES RESIDENTIAL HOME,"3,252.86",31/05/2022,
Delivery Units,Adults and Health,Other Agencies - Third Party P,90468731,NAZARETH HOUSE,"2,853.14",31/05/2022,
Delivery Units,Adults and Health,Other Agencies - Third Party P,90468732,NAZARETH HOUSE,"2,717.14",31/05/2022,
Delivery Units,Adults and Health,Other Agencies - Third Party P,90468734,JEWISH CARE,"2,499.00",31/05/2022,
Delivery Units,Adults and Health,Other Agencies - Third Party P,90468737,NAZARETH HOUSE,"3,800.00",31/05/2022,
Delivery Units,Adults and Health,Other Agencies - Third Party P,90468738,JEWISH CARE,"2,978.94",31/05/2022,
Delivery Units,Adults and Health,Other Agencies - Third Party P,90468742,JEWISH CARE,"2,836.14",31/05/2022,
Delivery Units,Adults and Health,Other Agencies - Third Party P,90468746,NAZARETH HOUSE,"2,717.14",31/05/2022,
Delivery Units,Adults and Health,Other Agencies - Third Party P,90468748,CLOVELLY HOUSE RESID. HOME LTD,"3,252.86",31/05/2022,
Delivery Units,Adults and Health,Other Agencies - Third Party P,90468749,THE LIMES RESIDENTIAL HOME,"3,252.86",31/05/2022,
Delivery Units,Adults and Health,Other Agencies - Third Party P,90468750,NAZARETH HOUSE,"2,853.14",31/05/2022,
Delivery Units,Adults and Health,Other Agencies - Third Party P,90468751,JEWISH CARE,"2,978.94",31/05/2022,
Delivery Units,Adults and Health,Other Agencies - Third Party P,90468756,NAZARETH HOUSE,"2,717.14",31/05/2022,
Delivery Units,Adults and Health,Other Agencies - Third Party P,90468757,ELEANOR PALMER TRUST NO 2 A/C.,"3,372.85",31/05/2022,
Delivery Units,Adults and Health,Other Agencies - Third Party P,90468758,NAZARETH HOUSE,"2,853.14",31/05/2022,
Delivery Units,Adults and Health,Other Agencies - Third Party P,90468761,NAZARETH HOUSE,"12,697.94",31/05/2022,
Delivery Units,Adults and Health,Other Agencies - Third Party P,90468764,BUPA CARE HOMES,"2,920.00",31/05/2022,
Delivery Units,Adults and Health,Other Agencies - Third Party P,90468765,THE LIMES RESIDENTIAL HOME,"3,352.86",31/05/2022,
Delivery Units,Adults and Health,Other Agencies - Third Party P,90468768,NAZARETH HOUSE,"2,717.14",31/05/2022,
Delivery Units,Adults and Health,Other Agencies - Third Party P,90468770,NAZARETH HOUSE,"2,717.14",31/05/2022,
Delivery Units,Adults and Health,Other Agencies - Third Party P,90468779,NAZARETH HOUSE,"2,853.14",31/05/2022,
Delivery Units,Adults and Health,Other Agencies - Third Party P,90468780,JEWISH CARE,"2,978.94",31/05/2022,
Delivery Units,Adults and Health,Other Agencies - Third Party P,90468781,JEWISH CARE,"2,978.94",31/05/2022,
Delivery Units,Adults and Health,Other Agencies - Third Party P,90468787,NAZARETH HOUSE,"2,853.14",31/05/2022,
Delivery Units,Adults and Health,Other Agencies - Third Party P,90468792,ELEANOR PALMER TRUST NO 2 A/C.,"3,372.85",31/05/2022,
Delivery Units,Adults and Health,Other Agencies - Third Party P,90468796,SAGE NURSING HOME,"3,600.00",31/05/2022,
Delivery Units,Adults and Health,Other Agencies - Third Party P,90468799,NAZARETH HOUSE,"2,853.14",31/05/2022,
Delivery Units,Adults and Health,Other Agencies - Third Party P,90468800,NAZARETH HOUSE,74.28,31/05/2022,
Delivery Units,Adults and Health,Other Agencies - Third Party P,90468803,CLOVELLY HOUSE RESID. HOME LTD,"3,100.00",31/05/2022,
Delivery Units,Adults and Health,Other Agencies - Third Party P,90459893,High Quality Home Care Ltd  t/a Right at,890,03/05/2022,
Delivery Units,Adults and Health,Other Agencies - Third Party P,90459894,High Quality Home Care Ltd  t/a Right at,890,03/05/2022,
Delivery Units,Adults and Health,Other Agencies - Third Party P,90459896,High Quality Home Care Ltd  t/a Right at,890,03/05/2022,
Delivery Units,Adults and Health,Other Agencies - Third Party P,90459898,High Quality Home Care Ltd  t/a Right at,890,03/05/2022,
Delivery Units,Adults and Health,Other Agencies - Third Party P,90459900,High Quality Home Care Ltd  t/a Right at,890,03/05/2022,
Delivery Units,Adults and Health,Other Agencies - Third Party P,90459901,High Quality Home Care Ltd  t/a Right at,890,03/05/2022,
Delivery Units,Adults and Health,Other Agencies - Third Party P,90459903,High Quality Home Care Ltd  t/a Right at,890,03/05/2022,
Delivery Units,Adults and Health,Other Agencies - Third Party P,90459905,High Quality Home Care Ltd  t/a Right at,890,03/05/2022,
Delivery Units,Adults and Health,Other Agencies - Third Party P,90460347,Primera Assisted Living Ltd,268.98,03/05/2022,
Delivery Units,Adults and Health,Other Agencies - Third Party P,90460348,Primera Assisted Living Ltd,313.88,03/05/2022,
Delivery Units,Adults and Health,Other Agencies - Third Party P,90460349,Primera Assisted Living Ltd,94.15,03/05/2022,
Delivery Units,Adults and Health,Other Agencies - Third Party P,90460350,Primera Assisted Living Ltd,215.2,03/05/2022,
Delivery Units,Adults and Health,Other Agencies - Third Party P,90460351,Primera Assisted Living Ltd,170.35,03/05/2022,
Delivery Units,Adults and Health,Other Agencies - Third Party P,90460352,Primera Assisted Living Ltd,268.98,03/05/2022,
Delivery Units,Adults and Health,Other Agencies - Third Party P,90460353,Primera Assisted Living Ltd,313.88,03/05/2022,
Delivery Units,Adults and Health,Other Agencies - Third Party P,90460354,Primera Assisted Living Ltd,94.15,03/05/2022,
Delivery Units,Adults and Health,Other Agencies - Third Party P,90460355,Primera Assisted Living Ltd,215.2,03/05/2022,
Delivery Units,Adults and Health,Other Agencies - Third Party P,90460356,Primera Assisted Living Ltd,170.35,03/05/2022,
Delivery Units,Adults and Health,Other Agencies - Third Party P,90460357,Primera Assisted Living Ltd,268.98,03/05/2022,
Delivery Units,Adults and Health,Other Agencies - Third Party P,90460358,Primera Assisted Living Ltd,313.88,03/05/2022,
Delivery Units,Adults and Health,Other Agencies - Third Party P,90460359,Primera Assisted Living Ltd,94.15,03/05/2022,
Delivery Units,Adults and Health,Other Agencies - Third Party P,90460360,Primera Assisted Living Ltd,215.2,03/05/2022,
Delivery Units,Adults and Health,Other Agencies - Third Party P,90460361,Primera Assisted Living Ltd,268.98,03/05/2022,
Delivery Units,Adults and Health,Other Agencies - Third Party P,90460362,Primera Assisted Living Ltd,313.88,03/05/2022,
Delivery Units,Adults and Health,Other Agencies - Third Party P,90460363,Primera Assisted Living Ltd,94.15,03/05/2022,
Delivery Units,Adults and Health,Other Agencies - Third Party P,90460364,Primera Assisted Living Ltd,215.2,03/05/2022,
Delivery Units,Adults and Health,Other Agencies - Third Party P,90460365,Primera Assisted Living Ltd,170.35,03/05/2022,
Delivery Units,Adults and Health,Other Agencies - Third Party P,90460366,Evergreen Homecare Service Ltd,710.85,03/05/2022,
Delivery Units,Adults and Health,Other Agencies - Third Party P,90460368,Evergreen Homecare Service Ltd,"1,270.78",03/05/2022,
Delivery Units,Adults and Health,Other Agencies - Third Party P,90460369,Evergreen Homecare Service Ltd,304.64,03/05/2022,
Delivery Units,Adults and Health,Other Agencies - Third Party P,90460370,Evergreen Homecare Service Ltd,270.76,03/05/2022,
Delivery Units,Adults and Health,Other Agencies - Third Party P,90460371,Evergreen Homecare Service Ltd,812.42,03/05/2022,
Delivery Units,Adults and Health,Other Agencies - Third Party P,90460372,Evergreen Homecare Service Ltd,135.38,03/05/2022,
Delivery Units,Adults and Health,Other Agencies - Third Party P,90460374,Evergreen Homecare Service Ltd,710.85,03/05/2022,
Delivery Units,Adults and Health,Other Agencies - Third Party P,90460376,Evergreen Homecare Service Ltd,304.64,03/05/2022,
Delivery Units,Adults and Health,Other Agencies - Third Party P,90460377,Evergreen Homecare Service Ltd,"1,270.78",03/05/2022,
Delivery Units,Adults and Health,Other Agencies - Third Party P,90460378,Evergreen Homecare Service Ltd,270.76,03/05/2022,
Delivery Units,Adults and Health,Other Agencies - Third Party P,90460379,Evergreen Homecare Service Ltd,812.42,03/05/2022,
Delivery Units,Adults and Health,Other Agencies - Third Party P,90460380,Evergreen Homecare Service Ltd,135.38,03/05/2022,
Delivery Units,Adults and Health,Other Agencies - Third Party P,90460382,Evergreen Homecare Service Ltd,710.85,03/05/2022,
Delivery Units,Adults and Health,Other Agencies - Third Party P,90460384,Evergreen Homecare Service Ltd,"1,270.78",03/05/2022,
Delivery Units,Adults and Health,Other Agencies - Third Party P,90460385,Evergreen Homecare Service Ltd,304.64,03/05/2022,
Delivery Units,Adults and Health,Other Agencies - Third Party P,90460386,Evergreen Homecare Service Ltd,270.76,03/05/2022,
Delivery Units,Adults and Health,Other Agencies - Third Party P,90460387,Evergreen Homecare Service Ltd,812.42,03/05/2022,
Delivery Units,Adults and Health,Other Agencies - Third Party P,90460388,Evergreen Homecare Service Ltd,135.38,03/05/2022,
Delivery Units,Adults and Health,Other Agencies - Third Party P,90460390,Evergreen Homecare Service Ltd,710.85,03/05/2022,
Delivery Units,Adults and Health,Other Agencies - Third Party P,90460392,Evergreen Homecare Service Ltd,304.64,03/05/2022,
Delivery Units,Adults and Health,Other Agencies - Third Party P,90460393,Evergreen Homecare Service Ltd,"1,270.78",03/05/2022,
Delivery Units,Adults and Health,Other Agencies - Third Party P,90460394,Evergreen Homecare Service Ltd,270.76,03/05/2022,
Delivery Units,Adults and Health,Other Agencies - Third Party P,90460395,Evergreen Homecare Service Ltd,812.42,03/05/2022,
Delivery Units,Adults and Health,Other Agencies - Third Party P,90460396,Evergreen Homecare Service Ltd,135.38,03/05/2022,
Delivery Units,Adults and Health,Other Agencies - Third Party P,90460397,City Homecare Ltd,756.5,03/05/2022,
Delivery Units,Adults and Health,Other Agencies - Third Party P,90460398,City Homecare Ltd,208.25,03/05/2022,
Delivery Units,Adults and Health,Other Agencies - Third Party P,90460399,City Homecare Ltd,208.25,03/05/2022,
Delivery Units,Adults and Health,Other Agencies - Third Party P,90460400,City Homecare Ltd,187,03/05/2022,
Delivery Units,Adults and Health,Other Agencies - Third Party P,90460401,City Homecare Ltd,148.75,03/05/2022,
Delivery Units,Adults and Health,Other Agencies - Third Party P,90460402,City Homecare Ltd,327.25,03/05/2022,
Delivery Units,Adults and Health,Other Agencies - Third Party P,90460403,City Homecare Ltd,297.5,03/05/2022,
Delivery Units,Adults and Health,Other Agencies - Third Party P,90460405,City Homecare Ltd,327.25,03/05/2022,
Delivery Units,Adults and Health,Other Agencies - Third Party P,90460406,City Homecare Ltd,191.25,03/05/2022,
Delivery Units,Adults and Health,Other Agencies - Third Party P,90460408,City Homecare Ltd,85,03/05/2022,
Delivery Units,Adults and Health,Other Agencies - Third Party P,90460409,City Homecare Ltd,76.5,03/05/2022,
Delivery Units,Adults and Health,Other Agencies - Third Party P,90460410,City Homecare Ltd,242.25,03/05/2022,
Delivery Units,Adults and Health,Other Agencies - Third Party P,90460413,City Homecare Ltd,170,03/05/2022,
Delivery Units,Adults and Health,Other Agencies - Third Party P,90460414,City Homecare Ltd,89.25,03/05/2022,
Delivery Units,Adults and Health,Other Agencies - Third Party P,90460415,City Homecare Ltd,208.25,03/05/2022,
Delivery Units,Adults and Health,Other Agencies - Third Party P,90460416,City Homecare Ltd,178.5,03/05/2022,
Delivery Units,Adults and Health,Other Agencies - Third Party P,90460420,City Homecare Ltd,89.25,03/05/2022,
Delivery Units,Adults and Health,Other Agencies - Third Party P,90460422,City Homecare Ltd,59.5,03/05/2022,
Delivery Units,Adults and Health,Other Agencies - Third Party P,90460423,City Homecare Ltd,178.5,03/05/2022,
Delivery Units,Adults and Health,Other Agencies - Third Party P,90460425,City Homecare Ltd,89.25,03/05/2022,
Delivery Units,Adults and Health,Other Agencies - Third Party P,90460426,City Homecare Ltd,148.75,03/05/2022,
Delivery Units,Adults and Health,Other Agencies - Third Party P,90460427,City Homecare Ltd,773.5,03/05/2022,
Delivery Units,Adults and Health,Other Agencies - Third Party P,90460428,City Homecare Ltd,208.25,03/05/2022,
Delivery Units,Adults and Health,Other Agencies - Third Party P,90460429,City Homecare Ltd,208.25,03/05/2022,
Delivery Units,Adults and Health,Other Agencies - Third Party P,90460430,City Homecare Ltd,204,03/05/2022,
Delivery Units,Adults and Health,Other Agencies - Third Party P,90460431,City Homecare Ltd,148.75,03/05/2022,
Delivery Units,Adults and Health,Other Agencies - Third Party P,90460432,City Homecare Ltd,327.25,03/05/2022,
Delivery Units,Adults and Health,Other Agencies - Third Party P,90460433,City Homecare Ltd,297.5,03/05/2022,
Delivery Units,Adults and Health,Other Agencies - Third Party P,90460435,City Homecare Ltd,327.25,03/05/2022,
Delivery Units,Adults and Health,Other Agencies - Third Party P,90460436,City Homecare Ltd,178.5,03/05/2022,
Delivery Units,Adults and Health,Other Agencies - Third Party P,90460438,City Homecare Ltd,85,03/05/2022,
Delivery Units,Adults and Health,Other Agencies - Third Party P,90460439,City Homecare Ltd,76.5,03/05/2022,
Delivery Units,Adults and Health,Other Agencies - Third Party P,90460440,City Homecare Ltd,242.25,03/05/2022,
Delivery Units,Adults and Health,Other Agencies - Third Party P,90460443,City Homecare Ltd,85,03/05/2022,
Delivery Units,Adults and Health,Other Agencies - Third Party P,90460444,City Homecare Ltd,89.25,03/05/2022,
Delivery Units,Adults and Health,Other Agencies - Third Party P,90460445,City Homecare Ltd,208.25,03/05/2022,
Delivery Units,Adults and Health,Other Agencies - Third Party P,90460446,City Homecare Ltd,178.5,03/05/2022,
Delivery Units,Adults and Health,Other Agencies - Third Party P,90460450,City Homecare Ltd,89.25,03/05/2022,
Delivery Units,Adults and Health,Other Agencies - Third Party P,90460452,City Homecare Ltd,59.5,03/05/2022,
Delivery Units,Adults and Health,Other Agencies - Third Party P,90460453,City Homecare Ltd,178.5,03/05/2022,
Delivery Units,Adults and Health,Other Agencies - Third Party P,90460455,City Homecare Ltd,89.25,03/05/2022,
Delivery Units,Adults and Health,Other Agencies - Third Party P,90460456,City Homecare Ltd,208.25,03/05/2022,
Delivery Units,Adults and Health,Other Agencies - Third Party P,90460457,City Homecare Ltd,442,03/05/2022,
Delivery Units,Adults and Health,Other Agencies - Third Party P,90460458,City Homecare Ltd,208.25,03/05/2022,
Delivery Units,Adults and Health,Other Agencies - Third Party P,90460459,City Homecare Ltd,208.25,03/05/2022,
Delivery Units,Adults and Health,Other Agencies - Third Party P,90460460,City Homecare Ltd,204,03/05/2022,
Delivery Units,Adults and Health,Other Agencies - Third Party P,90460461,City Homecare Ltd,148.75,03/05/2022,
Delivery Units,Adults and Health,Other Agencies - Third Party P,90460462,City Homecare Ltd,327.25,03/05/2022,
Delivery Units,Adults and Health,Other Agencies - Third Party P,90460463,City Homecare Ltd,297.5,03/05/2022,
Delivery Units,Adults and Health,Other Agencies - Third Party P,90460465,City Homecare Ltd,327.25,03/05/2022,
Delivery Units,Adults and Health,Other Agencies - Third Party P,90460466,City Homecare Ltd,191.25,03/05/2022,
Delivery Units,Adults and Health,Other Agencies - Third Party P,90460468,City Homecare Ltd,85,03/05/2022,
Delivery Units,Adults and Health,Other Agencies - Third Party P,90460469,City Homecare Ltd,76.5,03/05/2022,
Delivery Units,Adults and Health,Other Agencies - Third Party P,90460470,City Homecare Ltd,242.25,03/05/2022,
Delivery Units,Adults and Health,Other Agencies - Third Party P,90460473,City Homecare Ltd,25.5,03/05/2022,
Delivery Units,Adults and Health,Other Agencies - Third Party P,90460474,City Homecare Ltd,208.25,03/05/2022,
Delivery Units,Adults and Health,Other Agencies - Third Party P,90460475,City Homecare Ltd,178.5,03/05/2022,
Delivery Units,Adults and Health,Other Agencies - Third Party P,90460479,City Homecare Ltd,89.25,03/05/2022,
Delivery Units,Adults and Health,Other Agencies - Third Party P,90460480,City Homecare Ltd,148.75,03/05/2022,
Delivery Units,Adults and Health,Other Agencies - Third Party P,90460481,City Homecare Ltd,59.5,03/05/2022,
Delivery Units,Adults and Health,Other Agencies - Third Party P,90460482,City Homecare Ltd,178.5,03/05/2022,
Delivery Units,Adults and Health,Other Agencies - Third Party P,90460484,City Homecare Ltd,89.25,03/05/2022,
Delivery Units,Adults and Health,Other Agencies - Third Party P,90460485,City Homecare Ltd,161.5,03/05/2022,
Delivery Units,Adults and Health,Other Agencies - Third Party P,90460486,City Homecare Ltd,208.25,03/05/2022,
Delivery Units,Adults and Health,Other Agencies - Third Party P,90460487,City Homecare Ltd,208.25,03/05/2022,
Delivery Units,Adults and Health,Other Agencies - Third Party P,90460488,City Homecare Ltd,204,03/05/2022,
Delivery Units,Adults and Health,Other Agencies - Third Party P,90460489,City Homecare Ltd,148.75,03/05/2022,
Delivery Units,Adults and Health,Other Agencies - Third Party P,90460490,City Homecare Ltd,327.25,03/05/2022,
Delivery Units,Adults and Health,Other Agencies - Third Party P,90460491,City Homecare Ltd,297.5,03/05/2022,
Delivery Units,Adults and Health,Other Agencies - Third Party P,90460493,City Homecare Ltd,327.25,03/05/2022,
Delivery Units,Adults and Health,Other Agencies - Third Party P,90460494,City Homecare Ltd,182.75,03/05/2022,
Delivery Units,Adults and Health,Other Agencies - Third Party P,90460496,City Homecare Ltd,85,03/05/2022,
Delivery Units,Adults and Health,Other Agencies - Third Party P,90460497,City Homecare Ltd,76.5,03/05/2022,
Delivery Units,Adults and Health,Other Agencies - Third Party P,90460498,City Homecare Ltd,242.25,03/05/2022,
Delivery Units,Adults and Health,Other Agencies - Third Party P,90460501,City Homecare Ltd,208.25,03/05/2022,
Delivery Units,Adults and Health,Other Agencies - Third Party P,90460502,City Homecare Ltd,178.5,03/05/2022,
Delivery Units,Adults and Health,Other Agencies - Third Party P,90460506,City Homecare Ltd,89.25,03/05/2022,
Delivery Units,Adults and Health,Other Agencies - Third Party P,90460507,City Homecare Ltd,106.25,03/05/2022,
Delivery Units,Adults and Health,Other Agencies - Third Party P,90460508,City Homecare Ltd,59.5,03/05/2022,
Delivery Units,Adults and Health,Other Agencies - Third Party P,90460509,City Homecare Ltd,178.5,03/05/2022,
Delivery Units,Adults and Health,Other Agencies - Third Party P,90460511,City Homecare Ltd,89.25,03/05/2022,
Delivery Units,Adults and Health,Other Agencies - Third Party P,90460513,City Homecare Ltd,76.5,03/05/2022,
Delivery Units,Adults and Health,Other Agencies - Third Party P,90460517,Hertsmere Valley Care Services Limited,365.4,03/05/2022,
Delivery Units,Adults and Health,Other Agencies - Third Party P,90460520,Hertsmere Valley Care Services Limited,365.4,03/05/2022,
Delivery Units,Adults and Health,Other Agencies - Third Party P,90460617,Homecare Alliance Ltd,"1,290.56",03/05/2022,
Delivery Units,Adults and Health,Other Agencies - Third Party P,90460625,Bliss Care and Training Ltd,808.92,03/05/2022,
Delivery Units,Adults and Health,Other Agencies - Third Party P,90460629,Bliss Care and Training Ltd,231.28,03/05/2022,
Delivery Units,Adults and Health,Other Agencies - Third Party P,90460630,Bliss Care and Training Ltd,"2,380.28",03/05/2022,
Delivery Units,Adults and Health,Other Agencies - Third Party P,90460634,Bliss Care and Training Ltd,72.86,03/05/2022,
Delivery Units,Adults and Health,Other Agencies - Third Party P,90460637,Bliss Care and Training Ltd,"1,287.26",03/05/2022,
Delivery Units,Adults and Health,Other Agencies - Third Party P,90460638,Bliss Care and Training Ltd,"3,173.64",03/05/2022,
Delivery Units,Adults and Health,Other Agencies - Third Party P,90460641,Bliss Care and Training Ltd,"1,003.81",03/05/2022,
Delivery Units,Adults and Health,Other Agencies - Third Party P,90460642,Bliss Care and Training Ltd,113.33,03/05/2022,
Delivery Units,Adults and Health,Other Agencies - Third Party P,90460643,Bliss Care and Training Ltd,"2,311.68",03/05/2022,
Delivery Units,Adults and Health,Other Agencies - Third Party P,90460645,Bliss Care and Training Ltd,49.52,03/05/2022,
Delivery Units,Adults and Health,Other Agencies - Third Party P,90460646,Bliss Care and Training Ltd,"2,127.64",03/05/2022,
Delivery Units,Adults and Health,Other Agencies - Third Party P,90460647,Thames Homecare Services Ltd,599.2,03/05/2022,
Delivery Units,Adults and Health,Other Agencies - Third Party P,90460649,Thames Homecare Services Ltd,599.2,03/05/2022,
Delivery Units,Adults and Health,Other Agencies - Third Party P,90460650,Thames Homecare Services Ltd,179.76,03/05/2022,
Delivery Units,Adults and Health,Other Agencies - Third Party P,90460651,Thames Homecare Services Ltd,179.76,03/05/2022,
Delivery Units,Adults and Health,Other Agencies - Third Party P,90460652,Bliss Care and Training Ltd,808.92,03/05/2022,
Delivery Units,Adults and Health,Other Agencies - Third Party P,90460653,Bliss Care and Training Ltd,566.72,03/05/2022,
Delivery Units,Adults and Health,Other Agencies - Third Party P,90460654,Thames Homecare Services Ltd,719.04,03/05/2022,
Delivery Units,Adults and Health,Other Agencies - Third Party P,90460655,Bliss Care and Training Ltd,346.64,03/05/2022,
Delivery Units,Adults and Health,Other Agencies - Third Party P,90460656,Thames Homecare Services Ltd,719.04,03/05/2022,
Delivery Units,Adults and Health,Other Agencies - Third Party P,90460657,Bliss Care and Training Ltd,577.92,03/05/2022,
Delivery Units,Adults and Health,Other Agencies - Third Party P,90460660,Thames Homecare Services Ltd,359.52,03/05/2022,
Delivery Units,Adults and Health,Other Agencies - Third Party P,90460661,Thames Homecare Services Ltd,359.52,03/05/2022,
Delivery Units,Adults and Health,Other Agencies - Third Party P,90460662,Thames Homecare Services Ltd,778.96,03/05/2022,
Delivery Units,Adults and Health,Other Agencies - Third Party P,90460663,Thames Homecare Services Ltd,778.96,03/05/2022,
Delivery Units,Adults and Health,Other Agencies - Third Party P,90460664,Thames Homecare Services Ltd,813.2,03/05/2022,
Delivery Units,Adults and Health,Other Agencies - Third Party P,90460665,Thames Homecare Services Ltd,813.2,03/05/2022,
Delivery Units,Adults and Health,Other Agencies - Third Party P,90460668,Thames Homecare Services Ltd,286.76,03/05/2022,
Delivery Units,Adults and Health,Other Agencies - Third Party P,90460669,Thames Homecare Services Ltd,286.76,03/05/2022,
Delivery Units,Adults and Health,Other Agencies - Third Party P,90460672,Thames Homecare Services Ltd,299.6,03/05/2022,
Delivery Units,Adults and Health,Other Agencies - Third Party P,90460673,Thames Homecare Services Ltd,299.6,03/05/2022,
Delivery Units,Adults and Health,Other Agencies - Third Party P,90460674,Thames Homecare Services Ltd,209.72,03/05/2022,
Delivery Units,Adults and Health,Other Agencies - Third Party P,90460675,Thames Homecare Services Ltd,209.72,03/05/2022,
Delivery Units,Adults and Health,Other Agencies - Third Party P,90460676,Thames Homecare Services Ltd,124.12,03/05/2022,
Delivery Units,Adults and Health,Other Agencies - Third Party P,90460677,Thames Homecare Services Ltd,145.52,03/05/2022,
Delivery Units,Adults and Health,Other Agencies - Third Party P,90460678,Thames Homecare Services Ltd,796.08,03/05/2022,
Delivery Units,Adults and Health,Other Agencies - Third Party P,90460679,Thames Homecare Services Ltd,808.92,03/05/2022,
Delivery Units,Adults and Health,Other Agencies - Third Party P,90460680,Thames Homecare Services Ltd,389.48,03/05/2022,
Delivery Units,Adults and Health,Other Agencies - Third Party P,90460681,Thames Homecare Services Ltd,389.48,03/05/2022,
Delivery Units,Adults and Health,Other Agencies - Third Party P,90460682,Thames Homecare Services Ltd,179.76,03/05/2022,
Delivery Units,Adults and Health,Other Agencies - Third Party P,90460683,Thames Homecare Services Ltd,175.48,03/05/2022,
Delivery Units,Adults and Health,Other Agencies - Third Party P,90460684,Thames Homecare Services Ltd,111.28,03/05/2022,
Delivery Units,Adults and Health,Other Agencies - Third Party P,90460685,Thames Homecare Services Ltd,119.84,03/05/2022,
Delivery Units,Adults and Health,Other Agencies - Third Party P,90460686,Thames Homecare Services Ltd,226.84,03/05/2022,
Delivery Units,Adults and Health,Other Agencies - Third Party P,90460687,Thames Homecare Services Ltd,226.84,03/05/2022,
Delivery Units,Adults and Health,Other Agencies - Third Party P,90460688,Thames Homecare Services Ltd,719.04,03/05/2022,
Delivery Units,Adults and Health,Other Agencies - Third Party P,90460689,Thames Homecare Services Ltd,719.04,03/05/2022,
Delivery Units,Adults and Health,Other Agencies - Third Party P,90460690,Thames Homecare Services Ltd,77.04,03/05/2022,
Delivery Units,Adults and Health,Other Agencies - Third Party P,90460691,Thames Homecare Services Ltd,85.6,03/05/2022,
Delivery Units,Adults and Health,Other Agencies - Third Party P,90460692,Thames Homecare Services Ltd,778.96,03/05/2022,
Delivery Units,Adults and Health,Other Agencies - Third Party P,90460693,Thames Homecare Services Ltd,778.96,03/05/2022,
Delivery Units,Adults and Health,Other Agencies - Third Party P,90460694,Thames Homecare Services Ltd,329.56,03/05/2022,
Delivery Units,Adults and Health,Other Agencies - Third Party P,90460695,Thames Homecare Services Ltd,329.56,03/05/2022,
Delivery Units,Adults and Health,Other Agencies - Third Party P,90460696,Thames Homecare Services Ltd,282.48,03/05/2022,
Delivery Units,Adults and Health,Other Agencies - Third Party P,90460697,Thames Homecare Services Ltd,256.8,03/05/2022,
Delivery Units,Adults and Health,Other Agencies - Third Party P,90460698,Thames Homecare Services Ltd,449.4,03/05/2022,
Delivery Units,Adults and Health,Other Agencies - Third Party P,90460699,Thames Homecare Services Ltd,479.36,03/05/2022,
Delivery Units,Adults and Health,Other Agencies - Third Party P,90460700,Thames Homecare Services Ltd,599.2,03/05/2022,
Delivery Units,Adults and Health,Other Agencies - Third Party P,90460701,Thames Homecare Services Ltd,599.2,03/05/2022,
Delivery Units,Adults and Health,Other Agencies - Third Party P,90460702,Thames Homecare Services Ltd,539.28,03/05/2022,
Delivery Units,Adults and Health,Other Agencies - Third Party P,90460703,Thames Homecare Services Ltd,539.28,03/05/2022,
Delivery Units,Adults and Health,Other Agencies - Third Party P,90460704,Thames Homecare Services Ltd,470.8,03/05/2022,
Delivery Units,Adults and Health,Other Agencies - Third Party P,90460705,Thames Homecare Services Ltd,479.36,03/05/2022,
Delivery Units,Adults and Health,Other Agencies - Third Party P,90460708,Thames Homecare Services Ltd,316.72,03/05/2022,
Delivery Units,Adults and Health,Other Agencies - Third Party P,90460709,Thames Homecare Services Ltd,316.72,03/05/2022,
Delivery Units,Adults and Health,Other Agencies - Third Party P,90460710,Thames Homecare Services Ltd,693.36,03/05/2022,
Delivery Units,Adults and Health,Other Agencies - Third Party P,90460711,Thames Homecare Services Ltd,757.56,03/05/2022,
Delivery Units,Adults and Health,Other Agencies - Third Party P,90460713,Bliss Care and Training Ltd,693.56,03/05/2022,
Delivery Units,Adults and Health,Other Agencies - Third Party P,90460717,Thames Homecare Services Ltd,693.36,03/05/2022,
Delivery Units,Adults and Health,Other Agencies - Third Party P,90460718,Thames Homecare Services Ltd,693.36,03/05/2022,
Delivery Units,Adults and Health,Other Agencies - Third Party P,90460721,Thames Homecare Services Ltd,851.72,03/05/2022,
Delivery Units,Adults and Health,Other Agencies - Third Party P,90460722,Thames Homecare Services Ltd,813.2,03/05/2022,
Delivery Units,Adults and Health,Other Agencies - Third Party P,90460723,Thames Homecare Services Ltd,299.6,03/05/2022,
Delivery Units,Adults and Health,Other Agencies - Third Party P,90460724,Thames Homecare Services Ltd,299.6,03/05/2022,
Delivery Units,Adults and Health,Other Agencies - Third Party P,90460725,Thames Homecare Services Ltd,59.92,03/05/2022,
Delivery Units,Adults and Health,Other Agencies - Third Party P,90460726,Thames Homecare Services Ltd,59.92,03/05/2022,
Delivery Units,Adults and Health,Other Agencies - Third Party P,90460729,Thames Homecare Services Ltd,17.12,03/05/2022,
Delivery Units,Adults and Health,Other Agencies - Third Party P,90460730,Thames Homecare Services Ltd,17.12,03/05/2022,
Delivery Units,Adults and Health,Other Agencies - Third Party P,90460731,Thames Homecare Services Ltd,89.88,03/05/2022,
Delivery Units,Adults and Health,Other Agencies - Third Party P,90460732,Thames Homecare Services Ltd,47.08,03/05/2022,
Delivery Units,Adults and Health,Other Agencies - Third Party P,90460733,Thames Homecare Services Ltd,719.04,03/05/2022,
Delivery Units,Adults and Health,Other Agencies - Third Party P,90460734,Thames Homecare Services Ltd,719.04,03/05/2022,
Delivery Units,Adults and Health,Other Agencies - Third Party P,90460735,Thames Homecare Services Ltd,209.72,03/05/2022,
Delivery Units,Adults and Health,Other Agencies - Third Party P,90460736,Thames Homecare Services Ltd,209.72,03/05/2022,
Delivery Units,Adults and Health,Other Agencies - Third Party P,90460737,Thames Homecare Services Ltd,124.12,03/05/2022,
Delivery Units,Adults and Health,Other Agencies - Third Party P,90460738,Thames Homecare Services Ltd,124.12,03/05/2022,
Delivery Units,Adults and Health,Other Agencies - Third Party P,90460739,Thames Homecare Services Ltd,"1,801.88",03/05/2022,
Delivery Units,Adults and Health,Other Agencies - Third Party P,90460740,Thames Homecare Services Ltd,"1,801.88",03/05/2022,
Delivery Units,Adults and Health,Other Agencies - Third Party P,90460743,Thames Homecare Services Ltd,269.64,03/05/2022,
Delivery Units,Adults and Health,Other Agencies - Third Party P,90460744,Thames Homecare Services Ltd,269.64,03/05/2022,
Delivery Units,Adults and Health,Other Agencies - Third Party P,90460745,Thames Homecare Services Ltd,231.12,03/05/2022,
Delivery Units,Adults and Health,Other Agencies - Third Party P,90460746,Thames Homecare Services Ltd,214,03/05/2022,
Delivery Units,Adults and Health,Other Agencies - Third Party P,90460749,Thames Homecare Services Ltd,222.56,03/05/2022,
Delivery Units,Adults and Health,Other Agencies - Third Party P,90460752,Thames Homecare Services Ltd,214,03/05/2022,
Delivery Units,Adults and Health,Other Agencies - Third Party P,90460753,Thames Homecare Services Ltd,226.84,03/05/2022,
Delivery Units,Adults and Health,Other Agencies - Third Party P,90460756,Thames Homecare Services Ltd,453.68,03/05/2022,
Delivery Units,Adults and Health,Other Agencies - Third Party P,90460757,Thames Homecare Services Ltd,453.68,03/05/2022,
Delivery Units,Adults and Health,Other Agencies - Third Party P,90460758,Thames Homecare Services Ltd,359.52,03/05/2022,
Delivery Units,Adults and Health,Other Agencies - Third Party P,90460759,Thames Homecare Services Ltd,359.52,03/05/2022,
Delivery Units,Adults and Health,Other Agencies - Third Party P,90460760,Thames Homecare Services Ltd,141.24,03/05/2022,
Delivery Units,Adults and Health,Other Agencies - Third Party P,90460761,Thames Homecare Services Ltd,111.28,03/05/2022,
Delivery Units,Adults and Health,Other Agencies - Third Party P,90460762,Thames Homecare Services Ltd,89.88,03/05/2022,
Delivery Units,Adults and Health,Other Agencies - Third Party P,90460763,Thames Homecare Services Ltd,89.88,03/05/2022,
Delivery Units,Adults and Health,Other Agencies - Third Party P,90460764,Thames Homecare Services Ltd,359.52,03/05/2022,
Delivery Units,Adults and Health,Other Agencies - Third Party P,90460765,Thames Homecare Services Ltd,359.52,03/05/2022,
Delivery Units,Adults and Health,Other Agencies - Third Party P,90460766,Thames Homecare Services Ltd,149.8,03/05/2022,
Delivery Units,Adults and Health,Other Agencies - Third Party P,90460767,Thames Homecare Services Ltd,149.8,03/05/2022,
Delivery Units,Adults and Health,Other Agencies - Third Party P,90460772,Thames Homecare Services Ltd,256.8,03/05/2022,
Delivery Units,Adults and Health,Other Agencies - Third Party P,90460773,Thames Homecare Services Ltd,256.8,03/05/2022,
Delivery Units,Adults and Health,Other Agencies - Third Party P,90460774,Thames Homecare Services Ltd,299.6,03/05/2022,
Delivery Units,Adults and Health,Other Agencies - Third Party P,90460775,Thames Homecare Services Ltd,72.76,03/05/2022,
Delivery Units,Adults and Health,Other Agencies - Third Party P,90460776,Thames Homecare Services Ltd,329.56,03/05/2022,
Delivery Units,Adults and Health,Other Agencies - Third Party P,90460777,Thames Homecare Services Ltd,81.32,03/05/2022,
Delivery Units,Adults and Health,Other Agencies - Third Party P,90460778,Thames Homecare Services Ltd,269.64,03/05/2022,
Delivery Units,Adults and Health,Other Agencies - Third Party P,90460779,Thames Homecare Services Ltd,269.64,03/05/2022,
Delivery Units,Adults and Health,Other Agencies - Third Party P,90460780,Thames Homecare Services Ltd,299.6,03/05/2022,
Delivery Units,Adults and Health,Other Agencies - Third Party P,90460781,Thames Homecare Services Ltd,299.6,03/05/2022,
Delivery Units,Adults and Health,Other Agencies - Third Party P,90460782,Thames Homecare Services Ltd,209.72,03/05/2022,
Delivery Units,Adults and Health,Other Agencies - Third Party P,90460783,Thames Homecare Services Ltd,205.44,03/05/2022,
Delivery Units,Adults and Health,Other Agencies - Third Party P,90460784,Thames Homecare Services Ltd,415.16,03/05/2022,
Delivery Units,Adults and Health,Other Agencies - Third Party P,90460785,Thames Homecare Services Ltd,415.16,03/05/2022,
Delivery Units,Adults and Health,Other Agencies - Third Party P,90460788,Thames Homecare Services Ltd,325.28,03/05/2022,
Delivery Units,Adults and Health,Other Agencies - Third Party P,90460789,Thames Homecare Services Ltd,342.4,03/05/2022,
Delivery Units,Adults and Health,Other Agencies - Third Party P,90460790,Thames Homecare Services Ltd,530.72,03/05/2022,
Delivery Units,Adults and Health,Other Agencies - Third Party P,90460791,Thames Homecare Services Ltd,808.92,03/05/2022,
Delivery Units,Adults and Health,Other Agencies - Third Party P,90460792,Thames Homecare Services Ltd,543.56,03/05/2022,
Delivery Units,Adults and Health,Other Agencies - Third Party P,90460793,Thames Homecare Services Ltd,543.56,03/05/2022,
Delivery Units,Adults and Health,Other Agencies - Third Party P,90460794,Thames Homecare Services Ltd,299.6,03/05/2022,
Delivery Units,Adults and Health,Other Agencies - Third Party P,90460795,Thames Homecare Services Ltd,299.6,03/05/2022,
Delivery Units,Adults and Health,Other Agencies - Third Party P,90460798,Thames Homecare Services Ltd,239.68,03/05/2022,
Delivery Units,Adults and Health,Other Agencies - Third Party P,90460799,Thames Homecare Services Ltd,239.68,03/05/2022,
Delivery Units,Adults and Health,Other Agencies - Third Party P,90460800,Thames Homecare Services Ltd,569.24,03/05/2022,
Delivery Units,Adults and Health,Other Agencies - Third Party P,90460801,Thames Homecare Services Ltd,560.68,03/05/2022,
Delivery Units,Adults and Health,Other Agencies - Third Party P,90460804,Thames Homecare Services Ltd,316.72,03/05/2022,
Delivery Units,Adults and Health,Other Agencies - Third Party P,90460805,Thames Homecare Services Ltd,316.72,03/05/2022,
Delivery Units,Adults and Health,Other Agencies - Third Party P,90460806,Thames Homecare Services Ltd,64.2,03/05/2022,
Delivery Units,Adults and Health,Other Agencies - Third Party P,90460807,Thames Homecare Services Ltd,68.48,03/05/2022,
Delivery Units,Adults and Health,Other Agencies - Third Party P,90460808,Thames Homecare Services Ltd,209.72,03/05/2022,
Delivery Units,Adults and Health,Other Agencies - Third Party P,90460809,Thames Homecare Services Ltd,209.72,03/05/2022,
Delivery Units,Adults and Health,Other Agencies - Third Party P,90460812,Thames Homecare Services Ltd,158.36,03/05/2022,
Delivery Units,Adults and Health,Other Agencies - Third Party P,90460813,Thames Homecare Services Ltd,166.92,03/05/2022,
Delivery Units,Adults and Health,Other Agencies - Third Party P,90460818,Thames Homecare Services Ltd,316.72,03/05/2022,
Delivery Units,Adults and Health,Other Agencies - Third Party P,90460819,Thames Homecare Services Ltd,316.72,03/05/2022,
Delivery Units,Adults and Health,Other Agencies - Third Party P,90460820,Thames Homecare Services Ltd,184.04,03/05/2022,
Delivery Units,Adults and Health,Other Agencies - Third Party P,90460821,Thames Homecare Services Ltd,171.2,03/05/2022,
Delivery Units,Adults and Health,Other Agencies - Third Party P,90460822,Thames Homecare Services Ltd,282.48,03/05/2022,
Delivery Units,Adults and Health,Other Agencies - Third Party P,90460823,Thames Homecare Services Ltd,269.64,03/05/2022,
Delivery Units,Adults and Health,Other Agencies - Third Party P,90460824,Thames Homecare Services Ltd,162.64,03/05/2022,
Delivery Units,Adults and Health,Other Agencies - Third Party P,90460825,Thames Homecare Services Ltd,149.8,03/05/2022,
Delivery Units,Adults and Health,Other Agencies - Third Party P,90460826,Thames Homecare Services Ltd,188.32,03/05/2022,
Delivery Units,Adults and Health,Other Agencies - Third Party P,90460827,Thames Homecare Services Ltd,166.92,03/05/2022,
Delivery Units,Adults and Health,Other Agencies - Third Party P,90460828,Thames Homecare Services Ltd,179.76,03/05/2022,
Delivery Units,Adults and Health,Other Agencies - Third Party P,90460829,Thames Homecare Services Ltd,179.76,03/05/2022,
Delivery Units,Adults and Health,Other Agencies - Third Party P,90460830,Thames Homecare Services Ltd,141.24,03/05/2022,
Delivery Units,Adults and Health,Other Agencies - Third Party P,90460831,Thames Homecare Services Ltd,136.96,03/05/2022,
Delivery Units,Adults and Health,Other Agencies - Third Party P,90460832,Thames Homecare Services Ltd,209.72,03/05/2022,
Delivery Units,Adults and Health,Other Agencies - Third Party P,90460833,Thames Homecare Services Ltd,209.72,03/05/2022,
Delivery Units,Adults and Health,Other Agencies - Third Party P,90460834,Thames Homecare Services Ltd,329.56,03/05/2022,
Delivery Units,Adults and Health,Other Agencies - Third Party P,90460835,Thames Homecare Services Ltd,329.56,03/05/2022,
Delivery Units,Adults and Health,Other Agencies - Third Party P,90460836,Thames Homecare Services Ltd,209.72,03/05/2022,
Delivery Units,Adults and Health,Other Agencies - Third Party P,90460837,Thames Homecare Services Ltd,209.72,03/05/2022,
Delivery Units,Adults and Health,Other Agencies - Third Party P,90460838,Thames Homecare Services Ltd,419.44,03/05/2022,
Delivery Units,Adults and Health,Other Agencies - Third Party P,90460839,Thames Homecare Services Ltd,419.44,03/05/2022,
Delivery Units,Adults and Health,Other Agencies - Third Party P,90460840,Thames Homecare Services Ltd,269.64,03/05/2022,
Delivery Units,Adults and Health,Other Agencies - Third Party P,90460841,Thames Homecare Services Ltd,269.64,03/05/2022,
Delivery Units,Adults and Health,Other Agencies - Third Party P,90460842,Thames Homecare Services Ltd,291.04,03/05/2022,
Delivery Units,Adults and Health,Other Agencies - Third Party P,90460843,Thames Homecare Services Ltd,299.6,03/05/2022,
Delivery Units,Adults and Health,Other Agencies - Third Party P,90460844,Thames Homecare Services Ltd,329.56,03/05/2022,
Delivery Units,Adults and Health,Other Agencies - Third Party P,90460845,Thames Homecare Services Ltd,329.56,03/05/2022,
Delivery Units,Adults and Health,Other Agencies - Third Party P,90460846,Thames Homecare Services Ltd,184.04,03/05/2022,
Delivery Units,Adults and Health,Other Agencies - Third Party P,90460847,Thames Homecare Services Ltd,184.04,03/05/2022,
Delivery Units,Adults and Health,Other Agencies - Third Party P,90460850,Thames Homecare Services Ltd,269.64,03/05/2022,
Delivery Units,Adults and Health,Other Agencies - Third Party P,90460851,Thames Homecare Services Ltd,269.64,03/05/2022,
Delivery Units,Adults and Health,Other Agencies - Third Party P,90460852,Thames Homecare Services Ltd,958.72,03/05/2022,
Delivery Units,Adults and Health,Other Agencies - Third Party P,90460853,Thames Homecare Services Ltd,958.72,03/05/2022,
Delivery Units,Adults and Health,Other Agencies - Third Party P,90460854,Thames Homecare Services Ltd,483.64,03/05/2022,
Delivery Units,Adults and Health,Other Agencies - Third Party P,90460855,Thames Homecare Services Ltd,539.28,03/05/2022,
Delivery Units,Adults and Health,Other Agencies - Third Party P,90460858,Thames Homecare Services Ltd,115.56,03/05/2022,
Delivery Units,Adults and Health,Other Agencies - Third Party P,90460859,Thames Homecare Services Ltd,115.56,03/05/2022,
Delivery Units,Adults and Health,Other Agencies - Third Party P,90460860,Thames Homecare Services Ltd,34.24,03/05/2022,
Delivery Units,Adults and Health,Other Agencies - Third Party P,90460861,Thames Homecare Services Ltd,316.72,03/05/2022,
Delivery Units,Adults and Health,Other Agencies - Third Party P,90460862,Thames Homecare Services Ltd,316.72,03/05/2022,
Delivery Units,Adults and Health,Other Agencies - Third Party P,90460863,Thames Homecare Services Ltd,205.44,03/05/2022,
Delivery Units,Adults and Health,Other Agencies - Third Party P,90460864,Thames Homecare Services Ltd,239.68,03/05/2022,
Delivery Units,Adults and Health,Other Agencies - Third Party P,90460865,Thames Homecare Services Ltd,85.6,03/05/2022,
Delivery Units,Adults and Health,Other Agencies - Third Party P,90460866,Thames Homecare Services Ltd,299.6,03/05/2022,
Delivery Units,Adults and Health,Other Agencies - Third Party P,90460867,Thames Homecare Services Ltd,278.2,03/05/2022,
Delivery Units,Adults and Health,Other Agencies - Third Party P,90460868,Thames Homecare Services Ltd,128.4,03/05/2022,
Delivery Units,Adults and Health,Other Agencies - Third Party P,90460869,Thames Homecare Services Ltd,128.4,03/05/2022,
Delivery Units,Adults and Health,Other Agencies - Third Party P,90460870,Thames Homecare Services Ltd,209.72,03/05/2022,
Delivery Units,Adults and Health,Other Agencies - Third Party P,90460871,Thames Homecare Services Ltd,38.52,03/05/2022,
Delivery Units,Adults and Health,Other Agencies - Third Party P,90460872,Thames Homecare Services Ltd,38.52,03/05/2022,
Delivery Units,Adults and Health,Other Agencies - Third Party P,90460873,Thames Homecare Services Ltd,179.76,03/05/2022,
Delivery Units,Adults and Health,Other Agencies - Third Party P,90460874,Thames Homecare Services Ltd,179.76,03/05/2022,
Delivery Units,Adults and Health,Other Agencies - Third Party P,90460875,Thames Homecare Services Ltd,184.04,03/05/2022,
Delivery Units,Adults and Health,Other Agencies - Third Party P,90460876,Thames Homecare Services Ltd,184.04,03/05/2022,
Delivery Units,Adults and Health,Other Agencies - Third Party P,90460877,Thames Homecare Services Ltd,209.72,03/05/2022,
Delivery Units,Adults and Health,Other Agencies - Third Party P,90460878,Thames Homecare Services Ltd,209.72,03/05/2022,
Delivery Units,Adults and Health,Other Agencies - Third Party P,90460879,Thames Homecare Services Ltd,239.68,03/05/2022,
Delivery Units,Adults and Health,Other Agencies - Third Party P,90460880,Thames Homecare Services Ltd,239.68,03/05/2022,
Delivery Units,Adults and Health,Other Agencies - Third Party P,90460883,Thames Homecare Services Ltd,599.2,03/05/2022,
Delivery Units,Adults and Health,Other Agencies - Third Party P,90460884,Thames Homecare Services Ltd,564.96,03/05/2022,
Delivery Units,Adults and Health,Other Agencies - Third Party P,90460885,Thames Homecare Services Ltd,778.96,03/05/2022,
Delivery Units,Adults and Health,Other Agencies - Third Party P,90460886,Thames Homecare Services Ltd,778.96,03/05/2022,
Delivery Units,Adults and Health,Other Agencies - Third Party P,90460887,Thames Homecare Services Ltd,81.32,03/05/2022,
Delivery Units,Adults and Health,Other Agencies - Third Party P,90460888,Thames Homecare Services Ltd,89.88,03/05/2022,
Delivery Units,Adults and Health,Other Agencies - Third Party P,90460889,Thames Homecare Services Ltd,299.6,03/05/2022,
Delivery Units,Adults and Health,Other Agencies - Third Party P,90460890,Thames Homecare Services Ltd,299.6,03/05/2022,
Delivery Units,Adults and Health,Other Agencies - Third Party P,90460891,Thames Homecare Services Ltd,269.64,03/05/2022,
Delivery Units,Adults and Health,Other Agencies - Third Party P,90460892,Thames Homecare Services Ltd,269.64,03/05/2022,
Delivery Units,Adults and Health,Other Agencies - Third Party P,90460895,Thames Homecare Services Ltd,209.72,03/05/2022,
Delivery Units,Adults and Health,Other Agencies - Third Party P,90460896,Thames Homecare Services Ltd,175.48,03/05/2022,
Delivery Units,Adults and Health,Other Agencies - Third Party P,90460897,Thames Homecare Services Ltd,51.36,03/05/2022,
Delivery Units,Adults and Health,Other Agencies - Third Party P,90460898,Thames Homecare Services Ltd,51.36,03/05/2022,
Delivery Units,Adults and Health,Other Agencies - Third Party P,90460899,Thames Homecare Services Ltd,59.92,03/05/2022,
Delivery Units,Adults and Health,Other Agencies - Third Party P,90460900,Thames Homecare Services Ltd,59.92,03/05/2022,
Delivery Units,Adults and Health,Other Agencies - Third Party P,90460901,Thames Homecare Services Ltd,47.08,03/05/2022,
Delivery Units,Adults and Health,Other Agencies - Third Party P,90460902,Thames Homecare Services Ltd,171.2,03/05/2022,
Delivery Units,Adults and Health,Other Agencies - Third Party P,90460903,Thames Homecare Services Ltd,175.48,03/05/2022,
Delivery Units,Adults and Health,Other Agencies - Third Party P,90460904,Thames Homecare Services Ltd,85.6,03/05/2022,
Delivery Units,Adults and Health,Other Agencies - Third Party P,90460905,Thames Homecare Services Ltd,85.6,03/05/2022,
Delivery Units,Adults and Health,Other Agencies - Third Party P,90460906,Thames Homecare Services Ltd,209.72,03/05/2022,
Delivery Units,Adults and Health,Other Agencies - Third Party P,90460907,Thames Homecare Services Ltd,209.72,03/05/2022,
Delivery Units,Adults and Health,Other Agencies - Third Party P,90460908,Thames Homecare Services Ltd,286.76,03/05/2022,
Delivery Units,Adults and Health,Other Agencies - Third Party P,90460909,Thames Homecare Services Ltd,273.92,03/05/2022,
Delivery Units,Adults and Health,Other Agencies - Third Party P,90460910,Thames Homecare Services Ltd,98.44,03/05/2022,
Delivery Units,Adults and Health,Other Agencies - Third Party P,90460911,Thames Homecare Services Ltd,107,03/05/2022,
Delivery Units,Adults and Health,Other Agencies - Third Party P,90460914,Thames Homecare Services Ltd,21.4,03/05/2022,
Delivery Units,Adults and Health,Other Agencies - Third Party P,90460915,Thames Homecare Services Ltd,12.84,03/05/2022,
Delivery Units,Adults and Health,Other Agencies - Third Party P,90460916,Thames Homecare Services Ltd,269.64,03/05/2022,
Delivery Units,Adults and Health,Other Agencies - Third Party P,90460917,Thames Homecare Services Ltd,256.8,03/05/2022,
Delivery Units,Adults and Health,Other Agencies - Third Party P,90460920,Thames Homecare Services Ltd,256.8,03/05/2022,
Delivery Units,Adults and Health,Other Agencies - Third Party P,90460921,Thames Homecare Services Ltd,256.8,03/05/2022,
Delivery Units,Adults and Health,Other Agencies - Third Party P,90460922,Thames Homecare Services Ltd,175.48,03/05/2022,
Delivery Units,Adults and Health,Other Agencies - Third Party P,90460923,Thames Homecare Services Ltd,179.76,03/05/2022,
Delivery Units,Adults and Health,Other Agencies - Third Party P,90460924,Thames Homecare Services Ltd,286.76,03/05/2022,
Delivery Units,Adults and Health,Other Agencies - Third Party P,90460925,Thames Homecare Services Ltd,299.6,03/05/2022,
Delivery Units,Adults and Health,Other Agencies - Third Party P,90460926,Thames Homecare Services Ltd,179.76,03/05/2022,
Delivery Units,Adults and Health,Other Agencies - Third Party P,90460927,Thames Homecare Services Ltd,179.76,03/05/2022,
Delivery Units,Adults and Health,Other Agencies - Third Party P,90460932,Thames Homecare Services Ltd,475.08,03/05/2022,
Delivery Units,Adults and Health,Other Agencies - Third Party P,90460933,Thames Homecare Services Ltd,509.32,03/05/2022,
Delivery Units,Adults and Health,Other Agencies - Third Party P,90460934,Thames Homecare Services Ltd,107,03/05/2022,
Delivery Units,Adults and Health,Other Agencies - Third Party P,90460935,Thames Homecare Services Ltd,107,03/05/2022,
Delivery Units,Adults and Health,Other Agencies - Third Party P,90460936,Thames Homecare Services Ltd,239.68,03/05/2022,
Delivery Units,Adults and Health,Other Agencies - Third Party P,90460937,Thames Homecare Services Ltd,239.68,03/05/2022,
Delivery Units,Adults and Health,Other Agencies - Third Party P,90460939,Thames Homecare Services Ltd,209.72,03/05/2022,
Delivery Units,Adults and Health,Other Agencies - Third Party P,90460940,Thames Homecare Services Ltd,214,03/05/2022,
Delivery Units,Adults and Health,Other Agencies - Third Party P,90460945,Thames Homecare Services Ltd,107,03/05/2022,
Delivery Units,Adults and Health,Other Agencies - Third Party P,90460946,Thames Homecare Services Ltd,111.28,03/05/2022,
Delivery Units,Adults and Health,Other Agencies - Third Party P,90460947,Thames Homecare Services Ltd,299.6,03/05/2022,
Delivery Units,Adults and Health,Other Agencies - Third Party P,90460948,Thames Homecare Services Ltd,171.2,03/05/2022,
Delivery Units,Adults and Health,Other Agencies - Third Party P,90460949,Thames Homecare Services Ltd,539.28,03/05/2022,
Delivery Units,Adults and Health,Other Agencies - Third Party P,90460950,Thames Homecare Services Ltd,539.28,03/05/2022,
Delivery Units,Adults and Health,Other Agencies - Third Party P,90460951,Thames Homecare Services Ltd,239.68,03/05/2022,
Delivery Units,Adults and Health,Other Agencies - Third Party P,90460952,Thames Homecare Services Ltd,111.28,03/05/2022,
Delivery Units,Adults and Health,Other Agencies - Third Party P,90460953,Thames Homecare Services Ltd,273.92,03/05/2022,
Delivery Units,Adults and Health,Other Agencies - Third Party P,90460964,Thames Homecare Services Ltd,239.68,03/05/2022,
Delivery Units,Adults and Health,Other Agencies - Third Party P,90460965,Thames Homecare Services Ltd,239.68,03/05/2022,
Delivery Units,Adults and Health,Other Agencies - Third Party P,90460968,Thames Homecare Services Ltd,226.84,03/05/2022,
Delivery Units,Adults and Health,Other Agencies - Third Party P,90460969,Thames Homecare Services Ltd,226.84,03/05/2022,
Delivery Units,Adults and Health,Other Agencies - Third Party P,90460978,Thames Homecare Services Ltd,316.72,03/05/2022,
Delivery Units,Adults and Health,Other Agencies - Third Party P,90460979,Thames Homecare Services Ltd,316.72,03/05/2022,
Delivery Units,Adults and Health,Other Agencies - Third Party P,90460980,Thames Homecare Services Ltd,162.64,03/05/2022,
Delivery Units,Adults and Health,Other Agencies - Third Party P,90460981,Thames Homecare Services Ltd,162.64,03/05/2022,
Delivery Units,Adults and Health,Other Agencies - Third Party P,90460982,Thames Homecare Services Ltd,269.64,03/05/2022,
Delivery Units,Adults and Health,Other Agencies - Third Party P,90460983,Thames Homecare Services Ltd,269.64,03/05/2022,
Delivery Units,Adults and Health,Other Agencies - Third Party P,90460988,Thames Homecare Services Ltd,778.96,03/05/2022,
Delivery Units,Adults and Health,Other Agencies - Third Party P,90460989,Thames Homecare Services Ltd,778.96,03/05/2022,
Delivery Units,Adults and Health,Other Agencies - Third Party P,90460992,Thames Homecare Services Ltd,85.6,03/05/2022,
Delivery Units,Adults and Health,Other Agencies - Third Party P,90460993,Thames Homecare Services Ltd,42.8,03/05/2022,
Delivery Units,Adults and Health,Other Agencies - Third Party P,90460996,Thames Homecare Services Ltd,38.52,03/05/2022,
Delivery Units,Adults and Health,Other Agencies - Third Party P,90460997,Thames Homecare Services Ltd,107,03/05/2022,
Delivery Units,Adults and Health,Other Agencies - Third Party P,90460998,Thames Homecare Services Ltd,299.6,03/05/2022,
Delivery Units,Adults and Health,Other Agencies - Third Party P,90460999,Thames Homecare Services Ltd,299.6,03/05/2022,
Delivery Units,Adults and Health,Other Agencies - Third Party P,90461003,Thames Homecare Services Ltd,958.72,03/05/2022,
Delivery Units,Adults and Health,Other Agencies - Third Party P,90461004,Thames Homecare Services Ltd,958.72,03/05/2022,
Delivery Units,Adults and Health,Other Agencies - Third Party P,90461007,Thames Homecare Services Ltd,171.2,03/05/2022,
Delivery Units,Adults and Health,Other Agencies - Third Party P,90461008,Thames Homecare Services Ltd,158.36,03/05/2022,
Delivery Units,Adults and Health,Other Agencies - Third Party P,90461011,Thames Homecare Services Ltd,719.04,03/05/2022,
Delivery Units,Adults and Health,Other Agencies - Third Party P,90461012,Thames Homecare Services Ltd,778.96,03/05/2022,
Delivery Units,Adults and Health,Other Agencies - Third Party P,90461013,Thames Homecare Services Ltd,179.76,03/05/2022,
Delivery Units,Adults and Health,Other Agencies - Third Party P,90461014,Thames Homecare Services Ltd,179.76,03/05/2022,
Delivery Units,Adults and Health,Other Agencies - Third Party P,90459917,BRUNSWICK SUPPORTED LIVING SERVICES,"1,749.16",03/05/2022,
Delivery Units,Adults and Health,Other Agencies - Third Party P,90459891,Bluebird Care (Barnet),288.4,03/05/2022,
Delivery Units,Adults and Health,Other Agencies - Third Party P,90459934,CAREWATCH (BARNET),168.21,03/05/2022,
Delivery Units,Adults and Health,Other Agencies - Third Party P,90459935,CAREWATCH (BARNET),168.21,03/05/2022,
Delivery Units,Adults and Health,Other Agencies - Third Party P,90459936,CAREWATCH (BARNET),168.21,03/05/2022,
Delivery Units,Adults and Health,Other Agencies - Third Party P,90459937,CAREWATCH (BARNET),168.21,03/05/2022,
Delivery Units,Adults and Health,Other Agencies - Third Party P,90459938,CAREWATCH (BARNET),807.24,03/05/2022,
Delivery Units,Adults and Health,Other Agencies - Third Party P,90459939,CAREWATCH (BARNET),788.11,03/05/2022,
Delivery Units,Adults and Health,Other Agencies - Third Party P,90459940,CAREWATCH (BARNET),807.24,03/05/2022,
Delivery Units,Adults and Health,Other Agencies - Third Party P,90459941,CAREWATCH (BARNET),788.13,03/05/2022,
Delivery Units,Adults and Health,Other Agencies - Third Party P,90459942,CAREWATCH (BARNET),735.18,03/05/2022,
Delivery Units,Adults and Health,Other Agencies - Third Party P,90459943,CAREWATCH (BARNET),163.4,03/05/2022,
Delivery Units,Adults and Health,Other Agencies - Third Party P,90459944,CAREWATCH (BARNET),144.16,03/05/2022,
Delivery Units,Adults and Health,Other Agencies - Third Party P,90459945,CAREWATCH (BARNET),139.36,03/05/2022,
Delivery Units,Adults and Health,Other Agencies - Third Party P,90459946,CAREWATCH (BARNET),288.33,03/05/2022,
Delivery Units,Adults and Health,Other Agencies - Third Party P,90459947,CAREWATCH (BARNET),288.33,03/05/2022,
Delivery Units,Adults and Health,Other Agencies - Third Party P,90459948,CAREWATCH (BARNET),288.33,03/05/2022,
Delivery Units,Adults and Health,Other Agencies - Third Party P,90459949,CAREWATCH (BARNET),288.33,03/05/2022,
Delivery Units,Adults and Health,Other Agencies - Third Party P,90459950,CAREWATCH (BARNET),197.06,03/05/2022,
Delivery Units,Adults and Health,Other Agencies - Third Party P,90459951,CAREWATCH (BARNET),201.81,03/05/2022,
Delivery Units,Adults and Health,Other Agencies - Third Party P,90459952,CAREWATCH (BARNET),201.81,03/05/2022,
Delivery Units,Adults and Health,Other Agencies - Third Party P,90459953,CAREWATCH (BARNET),201.81,03/05/2022,
Delivery Units,Adults and Health,Other Agencies - Third Party P,90459954,CAREWATCH (BARNET),100.94,03/05/2022,
Delivery Units,Adults and Health,Other Agencies - Third Party P,90459955,CAREWATCH (BARNET),100.94,03/05/2022,
Delivery Units,Adults and Health,Other Agencies - Third Party P,90459956,CAREWATCH (BARNET),100.94,03/05/2022,
Delivery Units,Adults and Health,Other Agencies - Third Party P,90459957,CAREWATCH (BARNET),100.94,03/05/2022,
Delivery Units,Adults and Health,Other Agencies - Third Party P,90459958,CAREWATCH (BARNET),168.19,03/05/2022,
Delivery Units,Adults and Health,Other Agencies - Third Party P,90459959,CAREWATCH (BARNET),297.94,03/05/2022,
Delivery Units,Adults and Health,Other Agencies - Third Party P,90459960,CAREWATCH (BARNET),504.56,03/05/2022,
Delivery Units,Adults and Health,Other Agencies - Third Party P,90459961,CAREWATCH (BARNET),504.56,03/05/2022,
Delivery Units,Adults and Health,Other Agencies - Third Party P,90459962,CAREWATCH (BARNET),504.56,03/05/2022,
Delivery Units,Adults and Health,Other Agencies - Third Party P,90459963,CAREWATCH (BARNET),504.56,03/05/2022,
Delivery Units,Adults and Health,Other Agencies - Third Party P,90459964,CAREWATCH (BARNET),187.41,03/05/2022,
Delivery Units,Adults and Health,Other Agencies - Third Party P,90459965,CAREWATCH (BARNET),187.4,03/05/2022,
Delivery Units,Adults and Health,Other Agencies - Third Party P,90459966,CAREWATCH (BARNET),201.81,03/05/2022,
Delivery Units,Adults and Health,Other Agencies - Third Party P,90459967,CAREWATCH (BARNET),201.81,03/05/2022,
Delivery Units,Adults and Health,Other Agencies - Third Party P,90459968,CAREWATCH (BARNET),605.5,03/05/2022,
Delivery Units,Adults and Health,Other Agencies - Third Party P,90459969,CAREWATCH (BARNET),605.5,03/05/2022,
Delivery Units,Adults and Health,Other Agencies - Third Party P,90459970,CAREWATCH (BARNET),605.5,03/05/2022,
Delivery Units,Adults and Health,Other Agencies - Third Party P,90459971,CAREWATCH (BARNET),254.7,03/05/2022,
Delivery Units,Adults and Health,Other Agencies - Third Party P,90459972,CAREWATCH (BARNET),273.92,03/05/2022,
Delivery Units,Adults and Health,Other Agencies - Third Party P,90459973,CAREWATCH (BARNET),273.92,03/05/2022,
Delivery Units,Adults and Health,Other Agencies - Third Party P,90459974,CAREWATCH (BARNET),273.92,03/05/2022,
Delivery Units,Adults and Health,Other Agencies - Third Party P,90459975,CAREWATCH (BARNET),158.58,03/05/2022,
Delivery Units,Adults and Health,Other Agencies - Third Party P,90459976,CAREWATCH (BARNET),336.42,03/05/2022,
Delivery Units,Adults and Health,Other Agencies - Third Party P,90459977,CAREWATCH (BARNET),336.42,03/05/2022,
Delivery Units,Adults and Health,Other Agencies - Third Party P,90459978,CAREWATCH (BARNET),336.42,03/05/2022,
Delivery Units,Adults and Health,Other Agencies - Third Party P,90459979,CAREWATCH (BARNET),336.42,03/05/2022,
Delivery Units,Adults and Health,Other Agencies - Third Party P,90459980,CAREWATCH (BARNET),134.54,03/05/2022,
Delivery Units,Adults and Health,Other Agencies - Third Party P,90459981,CAREWATCH (BARNET),134.54,03/05/2022,
Delivery Units,Adults and Health,Other Agencies - Third Party P,90459982,CAREWATCH (BARNET),134.54,03/05/2022,
Delivery Units,Adults and Health,Other Agencies - Third Party P,90459983,CAREWATCH (BARNET),134.54,03/05/2022,
Delivery Units,Adults and Health,Other Agencies - Third Party P,90459988,CAREWATCH (BARNET),269.08,03/05/2022,
Delivery Units,Adults and Health,Other Agencies - Third Party P,90459989,CAREWATCH (BARNET),269.08,03/05/2022,
Delivery Units,Adults and Health,Other Agencies - Third Party P,90459990,CAREWATCH (BARNET),269.08,03/05/2022,
Delivery Units,Adults and Health,Other Agencies - Third Party P,90459991,CAREWATCH (BARNET),269.08,03/05/2022,
Delivery Units,Adults and Health,Other Agencies - Third Party P,90459992,CAREWATCH (BARNET),341.22,03/05/2022,
Delivery Units,Adults and Health,Other Agencies - Third Party P,90459993,CAREWATCH (BARNET),374.86,03/05/2022,
Delivery Units,Adults and Health,Other Agencies - Third Party P,90459994,CAREWATCH (BARNET),360.44,03/05/2022,
Delivery Units,Adults and Health,Other Agencies - Third Party P,90459995,CAREWATCH (BARNET),374.86,03/05/2022,
Delivery Units,Adults and Health,Other Agencies - Third Party P,90459996,CAREWATCH (BARNET),129.74,03/05/2022,
Delivery Units,Adults and Health,Other Agencies - Third Party P,90459997,CAREWATCH (BARNET),134.54,03/05/2022,
Delivery Units,Adults and Health,Other Agencies - Third Party P,90459998,CAREWATCH (BARNET),134.54,03/05/2022,
Delivery Units,Adults and Health,Other Agencies - Third Party P,90459999,CAREWATCH (BARNET),134.54,03/05/2022,
Delivery Units,Adults and Health,Other Agencies - Third Party P,90460000,CAREWATCH (BARNET),528.55,03/05/2022,
Delivery Units,Adults and Health,Other Agencies - Third Party P,90460001,CAREWATCH (BARNET),528.55,03/05/2022,
Delivery Units,Adults and Health,Other Agencies - Third Party P,90460002,CAREWATCH (BARNET),528.55,03/05/2022,
Delivery Units,Adults and Health,Other Agencies - Third Party P,90460003,CAREWATCH (BARNET),528.55,03/05/2022,
Delivery Units,Adults and Health,Other Agencies - Third Party P,90460004,CAREWATCH (BARNET),321.97,03/05/2022,
Delivery Units,Adults and Health,Other Agencies - Third Party P,90460005,CAREWATCH (BARNET),321.97,03/05/2022,
Delivery Units,Adults and Health,Other Agencies - Third Party P,90460006,CAREWATCH (BARNET),321.97,03/05/2022,
Delivery Units,Adults and Health,Other Agencies - Third Party P,90460007,CAREWATCH (BARNET),321.97,03/05/2022,
Delivery Units,Adults and Health,Other Agencies - Third Party P,90460008,CAREWATCH (BARNET),293.15,03/05/2022,
Delivery Units,Adults and Health,Other Agencies - Third Party P,90460009,CAREWATCH (BARNET),326.85,03/05/2022,
Delivery Units,Adults and Health,Other Agencies - Third Party P,90460010,CAREWATCH (BARNET),302.82,03/05/2022,
Delivery Units,Adults and Health,Other Agencies - Third Party P,90460011,CAREWATCH (BARNET),317.19,03/05/2022,
Delivery Units,Adults and Health,Other Agencies - Third Party P,90460012,CAREWATCH (BARNET),134.54,03/05/2022,
Delivery Units,Adults and Health,Other Agencies - Third Party P,90460013,CAREWATCH (BARNET),134.54,03/05/2022,
Delivery Units,Adults and Health,Other Agencies - Third Party P,90460014,CAREWATCH (BARNET),134.54,03/05/2022,
Delivery Units,Adults and Health,Other Agencies - Third Party P,90460015,CAREWATCH (BARNET),134.54,03/05/2022,
Delivery Units,Adults and Health,Other Agencies - Third Party P,90460016,CAREWATCH (BARNET),38.44,03/05/2022,
Delivery Units,Adults and Health,Other Agencies - Third Party P,90460017,CAREWATCH (BARNET),38.44,03/05/2022,
Delivery Units,Adults and Health,Other Agencies - Third Party P,90460018,CAREWATCH (BARNET),28.83,03/05/2022,
Delivery Units,Adults and Health,Other Agencies - Third Party P,90460019,CAREWATCH (BARNET),38.44,03/05/2022,
Delivery Units,Adults and Health,Other Agencies - Third Party P,90460020,CAREWATCH (BARNET),273.92,03/05/2022,
Delivery Units,Adults and Health,Other Agencies - Third Party P,90460021,CAREWATCH (BARNET),273.92,03/05/2022,
Delivery Units,Adults and Health,Other Agencies - Third Party P,90460022,CAREWATCH (BARNET),273.92,03/05/2022,
Delivery Units,Adults and Health,Other Agencies - Third Party P,90460023,CAREWATCH (BARNET),273.92,03/05/2022,
Delivery Units,Adults and Health,Other Agencies - Third Party P,90460024,CAREWATCH (BARNET),370.02,03/05/2022,
Delivery Units,Adults and Health,Other Agencies - Third Party P,90460025,CAREWATCH (BARNET),370.02,03/05/2022,
Delivery Units,Adults and Health,Other Agencies - Third Party P,90460026,CAREWATCH (BARNET),370.02,03/05/2022,
Delivery Units,Adults and Health,Other Agencies - Third Party P,90460027,CAREWATCH (BARNET),370.02,03/05/2022,
Delivery Units,Adults and Health,Other Agencies - Third Party P,90460028,CAREWATCH (BARNET),326.75,03/05/2022,
Delivery Units,Adults and Health,Other Agencies - Third Party P,90460029,CAREWATCH (BARNET),370.01,03/05/2022,
Delivery Units,Adults and Health,Other Agencies - Third Party P,90460030,CAREWATCH (BARNET),360.39,03/05/2022,
Delivery Units,Adults and Health,Other Agencies - Third Party P,90460031,CAREWATCH (BARNET),341.17,03/05/2022,
Delivery Units,Adults and Health,Other Agencies - Third Party P,90460032,CAREWATCH (BARNET),341.19,03/05/2022,
Delivery Units,Adults and Health,Other Agencies - Third Party P,90460033,CAREWATCH (BARNET),341.19,03/05/2022,
Delivery Units,Adults and Health,Other Agencies - Third Party P,90460034,CAREWATCH (BARNET),341.19,03/05/2022,
Delivery Units,Adults and Health,Other Agencies - Third Party P,90460035,CAREWATCH (BARNET),341.19,03/05/2022,
Delivery Units,Adults and Health,Other Agencies - Third Party P,90460040,CAREWATCH (BARNET),139.34,03/05/2022,
Delivery Units,Adults and Health,Other Agencies - Third Party P,90460041,CAREWATCH (BARNET),144.15,03/05/2022,
Delivery Units,Adults and Health,Other Agencies - Third Party P,90460042,CAREWATCH (BARNET),139.34,03/05/2022,
Delivery Units,Adults and Health,Other Agencies - Third Party P,90460043,CAREWATCH (BARNET),115.32,03/05/2022,
Delivery Units,Adults and Health,Other Agencies - Third Party P,90460044,CAREWATCH (BARNET),297.92,03/05/2022,
Delivery Units,Adults and Health,Other Agencies - Third Party P,90460045,CAREWATCH (BARNET),302.75,03/05/2022,
Delivery Units,Adults and Health,Other Agencies - Third Party P,90460046,CAREWATCH (BARNET),297.92,03/05/2022,
Delivery Units,Adults and Health,Other Agencies - Third Party P,90460047,CAREWATCH (BARNET),302.73,03/05/2022,
Delivery Units,Adults and Health,Other Agencies - Third Party P,90460048,CAREWATCH (BARNET),168.2,03/05/2022,
Delivery Units,Adults and Health,Other Agencies - Third Party P,90460049,CAREWATCH (BARNET),168.21,03/05/2022,
Delivery Units,Adults and Health,Other Agencies - Third Party P,90460050,CAREWATCH (BARNET),168.21,03/05/2022,
Delivery Units,Adults and Health,Other Agencies - Third Party P,90460051,CAREWATCH (BARNET),168.2,03/05/2022,
Delivery Units,Adults and Health,Other Agencies - Third Party P,90460052,CAREWATCH (BARNET),225.86,03/05/2022,
Delivery Units,Adults and Health,Other Agencies - Third Party P,90460053,CAREWATCH (BARNET),245.08,03/05/2022,
Delivery Units,Adults and Health,Other Agencies - Third Party P,90460054,CAREWATCH (BARNET),235.48,03/05/2022,
Delivery Units,Adults and Health,Other Agencies - Third Party P,90460055,CAREWATCH (BARNET),235.48,03/05/2022,
Delivery Units,Adults and Health,Other Agencies - Third Party P,90460060,CAREWATCH (BARNET),389.24,03/05/2022,
Delivery Units,Adults and Health,Other Agencies - Third Party P,90460061,CAREWATCH (BARNET),389.24,03/05/2022,
Delivery Units,Adults and Health,Other Agencies - Third Party P,90460062,CAREWATCH (BARNET),389.24,03/05/2022,
Delivery Units,Adults and Health,Other Agencies - Third Party P,90460063,CAREWATCH (BARNET),389.24,03/05/2022,
Delivery Units,Adults and Health,Other Agencies - Third Party P,90460064,CAREWATCH (BARNET),62.47,03/05/2022,
Delivery Units,Adults and Health,Other Agencies - Third Party P,90460065,CAREWATCH (BARNET),57.66,03/05/2022,
Delivery Units,Adults and Health,Other Agencies - Third Party P,90460066,CAREWATCH (BARNET),62.47,03/05/2022,
Delivery Units,Adults and Health,Other Agencies - Third Party P,90460067,CAREWATCH (BARNET),67.27,03/05/2022,
Delivery Units,Adults and Health,Other Agencies - Third Party P,90460068,CAREWATCH (BARNET),437.36,03/05/2022,
Delivery Units,Adults and Health,Other Agencies - Third Party P,90460069,CAREWATCH (BARNET),437.36,03/05/2022,
Delivery Units,Adults and Health,Other Agencies - Third Party P,90460070,CAREWATCH (BARNET),437.32,03/05/2022,
Delivery Units,Adults and Health,Other Agencies - Third Party P,90460071,CAREWATCH (BARNET),432.51,03/05/2022,
Delivery Units,Adults and Health,Other Agencies - Third Party P,90460072,CAREWATCH (BARNET),100.94,03/05/2022,
Delivery Units,Adults and Health,Other Agencies - Third Party P,90460073,CAREWATCH (BARNET),100.94,03/05/2022,
Delivery Units,Adults and Health,Other Agencies - Third Party P,90460074,CAREWATCH (BARNET),86.52,03/05/2022,
Delivery Units,Adults and Health,Other Agencies - Third Party P,90460075,CAREWATCH (BARNET),134.54,03/05/2022,
Delivery Units,Adults and Health,Other Agencies - Third Party P,90460076,CAREWATCH (BARNET),134.54,03/05/2022,
Delivery Units,Adults and Health,Other Agencies - Third Party P,90460077,CAREWATCH (BARNET),134.54,03/05/2022,
Delivery Units,Adults and Health,Other Agencies - Third Party P,90460078,CAREWATCH (BARNET),134.54,03/05/2022,
Delivery Units,Adults and Health,Other Agencies - Third Party P,90460079,CAREWATCH (BARNET),168.21,03/05/2022,
Delivery Units,Adults and Health,Other Agencies - Third Party P,90460080,CAREWATCH (BARNET),158.6,03/05/2022,
Delivery Units,Adults and Health,Other Agencies - Third Party P,90460081,CAREWATCH (BARNET),100.92,03/05/2022,
Delivery Units,Adults and Health,Other Agencies - Third Party P,90460082,CAREWATCH (BARNET),168.21,03/05/2022,
Delivery Units,Adults and Health,Other Agencies - Third Party P,90460083,CAREWATCH (BARNET),57.68,03/05/2022,
Delivery Units,Adults and Health,Other Agencies - Third Party P,90460084,CAREWATCH (BARNET),72.1,03/05/2022,
Delivery Units,Adults and Health,Other Agencies - Third Party P,90460085,CAREWATCH (BARNET),72.1,03/05/2022,
Delivery Units,Adults and Health,Other Agencies - Third Party P,90460086,CAREWATCH (BARNET),72.1,03/05/2022,
Delivery Units,Adults and Health,Other Agencies - Third Party P,90460087,CAREWATCH (BARNET),792.86,03/05/2022,
Delivery Units,Adults and Health,Other Agencies - Third Party P,90460088,CAREWATCH (BARNET),792.86,03/05/2022,
Delivery Units,Adults and Health,Other Agencies - Third Party P,90460089,CAREWATCH (BARNET),792.86,03/05/2022,
Delivery Units,Adults and Health,Other Agencies - Third Party P,90460090,CAREWATCH (BARNET),792.86,03/05/2022,
Delivery Units,Adults and Health,Other Agencies - Third Party P,90460091,CAREWATCH (BARNET),345.96,03/05/2022,
Delivery Units,Adults and Health,Other Agencies - Third Party P,90460092,CAREWATCH (BARNET),345.96,03/05/2022,
Delivery Units,Adults and Health,Other Agencies - Third Party P,90460093,CAREWATCH (BARNET),345.96,03/05/2022,
Delivery Units,Adults and Health,Other Agencies - Third Party P,90460094,CAREWATCH (BARNET),345.96,03/05/2022,
Delivery Units,Adults and Health,Other Agencies - Third Party P,90460095,CAREWATCH (BARNET),148.99,03/05/2022,
Delivery Units,Adults and Health,Other Agencies - Third Party P,90460096,CAREWATCH (BARNET),168.21,03/05/2022,
Delivery Units,Adults and Health,Other Agencies - Third Party P,90460097,CAREWATCH (BARNET),168.21,03/05/2022,
Delivery Units,Adults and Health,Other Agencies - Third Party P,90460098,CAREWATCH (BARNET),163.41,03/05/2022,
Delivery Units,Adults and Health,Other Agencies - Third Party P,90460099,CAREWATCH (BARNET),475.8,03/05/2022,
Delivery Units,Adults and Health,Other Agencies - Third Party P,90460100,CAREWATCH (BARNET),475.8,03/05/2022,
Delivery Units,Adults and Health,Other Agencies - Third Party P,90460101,CAREWATCH (BARNET),475.8,03/05/2022,
Delivery Units,Adults and Health,Other Agencies - Third Party P,90460102,CAREWATCH (BARNET),475.8,03/05/2022,
Delivery Units,Adults and Health,Other Agencies - Third Party P,90460111,CAREWATCH (BARNET),76.88,03/05/2022,
Delivery Units,Adults and Health,Other Agencies - Third Party P,90460112,CAREWATCH (BARNET),134.54,03/05/2022,
Delivery Units,Adults and Health,Other Agencies - Third Party P,90460113,CAREWATCH (BARNET),134.54,03/05/2022,
Delivery Units,Adults and Health,Other Agencies - Third Party P,90460114,CAREWATCH (BARNET),321.96,03/05/2022,
Delivery Units,Adults and Health,Other Agencies - Third Party P,90460115,CAREWATCH (BARNET),321.95,03/05/2022,
Delivery Units,Adults and Health,Other Agencies - Third Party P,90460116,CAREWATCH (BARNET),331.55,03/05/2022,
Delivery Units,Adults and Health,Other Agencies - Third Party P,90460117,CAREWATCH (BARNET),312.36,03/05/2022,
Delivery Units,Adults and Health,Other Agencies - Third Party P,90460118,CAREWATCH (BARNET),235.48,03/05/2022,
Delivery Units,Adults and Health,Other Agencies - Third Party P,90460119,CAREWATCH (BARNET),235.48,03/05/2022,
Delivery Units,Adults and Health,Other Agencies - Third Party P,90460120,CAREWATCH (BARNET),235.48,03/05/2022,
Delivery Units,Adults and Health,Other Agencies - Third Party P,90460121,CAREWATCH (BARNET),235.48,03/05/2022,
Delivery Units,Adults and Health,Other Agencies - Third Party P,90460122,CAREWATCH (BARNET),235.48,03/05/2022,
Delivery Units,Adults and Health,Other Agencies - Third Party P,90460123,CAREWATCH (BARNET),235.48,03/05/2022,
Delivery Units,Adults and Health,Other Agencies - Third Party P,90460124,CAREWATCH (BARNET),235.48,03/05/2022,
Delivery Units,Adults and Health,Other Agencies - Third Party P,90460125,CAREWATCH (BARNET),235.48,03/05/2022,
Delivery Units,Adults and Health,Other Agencies - Third Party P,90460126,CAREWATCH (BARNET),67.27,03/05/2022,
Delivery Units,Adults and Health,Other Agencies - Third Party P,90460127,CAREWATCH (BARNET),67.27,03/05/2022,
Delivery Units,Adults and Health,Other Agencies - Third Party P,90460128,CAREWATCH (BARNET),67.27,03/05/2022,
Delivery Units,Adults and Health,Other Agencies - Third Party P,90460129,CAREWATCH (BARNET),67.27,03/05/2022,
Delivery Units,Adults and Health,Other Agencies - Third Party P,90460130,CAREWATCH (BARNET),307.58,03/05/2022,
Delivery Units,Adults and Health,Other Agencies - Third Party P,90460131,CAREWATCH (BARNET),307.58,03/05/2022,
Delivery Units,Adults and Health,Other Agencies - Third Party P,90460132,CAREWATCH (BARNET),307.53,03/05/2022,
Delivery Units,Adults and Health,Other Agencies - Third Party P,90460133,CAREWATCH (BARNET),307.58,03/05/2022,
Delivery Units,Adults and Health,Other Agencies - Third Party P,90460134,CAREWATCH (BARNET),76.89,03/05/2022,
Delivery Units,Adults and Health,Other Agencies - Third Party P,90460135,CAREWATCH (BARNET),72.09,03/05/2022,
Delivery Units,Adults and Health,Other Agencies - Third Party P,90460136,CAREWATCH (BARNET),76.89,03/05/2022,
Delivery Units,Adults and Health,Other Agencies - Third Party P,90460137,CAREWATCH (BARNET),72.09,03/05/2022,
Delivery Units,Adults and Health,Other Agencies - Third Party P,90460138,CAREWATCH (BARNET),197.04,03/05/2022,
Delivery Units,Adults and Health,Other Agencies - Third Party P,90460139,CAREWATCH (BARNET),182.62,03/05/2022,
Delivery Units,Adults and Health,Other Agencies - Third Party P,90460140,CAREWATCH (BARNET),192.22,03/05/2022,
Delivery Units,Adults and Health,Other Agencies - Third Party P,90460141,CAREWATCH (BARNET),206.65,03/05/2022,
Delivery Units,Adults and Health,Other Agencies - Third Party P,90460142,CAREWATCH (BARNET),72.07,03/05/2022,
Delivery Units,Adults and Health,Other Agencies - Third Party P,90460143,CAREWATCH (BARNET),168.21,03/05/2022,
Delivery Units,Adults and Health,Other Agencies - Third Party P,90460144,CAREWATCH (BARNET),168.18,03/05/2022,
Delivery Units,Adults and Health,Other Agencies - Third Party P,90460145,CAREWATCH (BARNET),807.24,03/05/2022,
Delivery Units,Adults and Health,Other Agencies - Third Party P,90460146,CAREWATCH (BARNET),807.24,03/05/2022,
Delivery Units,Adults and Health,Other Agencies - Third Party P,90460147,CAREWATCH (BARNET),807.24,03/05/2022,
Delivery Units,Adults and Health,Other Agencies - Third Party P,90460148,CAREWATCH (BARNET),807.24,03/05/2022,
Delivery Units,Adults and Health,Other Agencies - Third Party P,90460149,CAREWATCH (BARNET),148.97,03/05/2022,
Delivery Units,Adults and Health,Other Agencies - Third Party P,90460150,CAREWATCH (BARNET),144.16,03/05/2022,
Delivery Units,Adults and Health,Other Agencies - Third Party P,90460151,CAREWATCH (BARNET),139.35,03/05/2022,
Delivery Units,Adults and Health,Other Agencies - Third Party P,90460152,CAREWATCH (BARNET),19.22,03/05/2022,
Delivery Units,Adults and Health,Other Agencies - Third Party P,90460153,CAREWATCH (BARNET),288.33,03/05/2022,
Delivery Units,Adults and Health,Other Agencies - Third Party P,90460154,CAREWATCH (BARNET),288.33,03/05/2022,
Delivery Units,Adults and Health,Other Agencies - Third Party P,90460155,CAREWATCH (BARNET),288.33,03/05/2022,
Delivery Units,Adults and Health,Other Agencies - Third Party P,90460156,CAREWATCH (BARNET),288.33,03/05/2022,
Delivery Units,Adults and Health,Other Agencies - Third Party P,90460157,CAREWATCH (BARNET),201.81,03/05/2022,
Delivery Units,Adults and Health,Other Agencies - Third Party P,90460158,CAREWATCH (BARNET),192.26,03/05/2022,
Delivery Units,Adults and Health,Other Agencies - Third Party P,90460159,CAREWATCH (BARNET),201.81,03/05/2022,
Delivery Units,Adults and Health,Other Agencies - Third Party P,90460160,CAREWATCH (BARNET),201.81,03/05/2022,
Delivery Units,Adults and Health,Other Agencies - Third Party P,90460161,CAREWATCH (BARNET),100.94,03/05/2022,
Delivery Units,Adults and Health,Other Agencies - Third Party P,90460162,CAREWATCH (BARNET),100.94,03/05/2022,
Delivery Units,Adults and Health,Other Agencies - Third Party P,90460163,CAREWATCH (BARNET),62.48,03/05/2022,
Delivery Units,Adults and Health,Other Agencies - Third Party P,90460164,CAREWATCH (BARNET),297.94,03/05/2022,
Delivery Units,Adults and Health,Other Agencies - Third Party P,90460165,CAREWATCH (BARNET),297.94,03/05/2022,
Delivery Units,Adults and Health,Other Agencies - Third Party P,90460166,CAREWATCH (BARNET),283.52,03/05/2022,
Delivery Units,Adults and Health,Other Agencies - Third Party P,90460167,CAREWATCH (BARNET),297.94,03/05/2022,
Delivery Units,Adults and Health,Other Agencies - Third Party P,90460168,CAREWATCH (BARNET),504.56,03/05/2022,
Delivery Units,Adults and Health,Other Agencies - Third Party P,90460169,CAREWATCH (BARNET),504.53,03/05/2022,
Delivery Units,Adults and Health,Other Agencies - Third Party P,90460170,CAREWATCH (BARNET),504.56,03/05/2022,
Delivery Units,Adults and Health,Other Agencies - Third Party P,90460171,CAREWATCH (BARNET),504.56,03/05/2022,
Delivery Units,Adults and Health,Other Agencies - Third Party P,90460172,CAREWATCH (BARNET),201.81,03/05/2022,
Delivery Units,Adults and Health,Other Agencies - Third Party P,90460173,CAREWATCH (BARNET),192.2,03/05/2022,
Delivery Units,Adults and Health,Other Agencies - Third Party P,90460174,CAREWATCH (BARNET),192.2,03/05/2022,
Delivery Units,Adults and Health,Other Agencies - Third Party P,90460175,CAREWATCH (BARNET),201.81,03/05/2022,
Delivery Units,Adults and Health,Other Agencies - Third Party P,90460176,CAREWATCH (BARNET),341.19,03/05/2022,
Delivery Units,Adults and Health,Other Agencies - Third Party P,90460177,CAREWATCH (BARNET),341.16,03/05/2022,
Delivery Units,Adults and Health,Other Agencies - Third Party P,90460178,CAREWATCH (BARNET),336.42,03/05/2022,
Delivery Units,Adults and Health,Other Agencies - Third Party P,90460179,CAREWATCH (BARNET),336.35,03/05/2022,
Delivery Units,Adults and Health,Other Agencies - Third Party P,90460180,CAREWATCH (BARNET),326.74,03/05/2022,
Delivery Units,Adults and Health,Other Agencies - Third Party P,90460181,CAREWATCH (BARNET),336.42,03/05/2022,
Delivery Units,Adults and Health,Other Agencies - Third Party P,90460182,CAREWATCH (BARNET),134.54,03/05/2022,
Delivery Units,Adults and Health,Other Agencies - Third Party P,90460183,CAREWATCH (BARNET),19.22,03/05/2022,
Delivery Units,Adults and Health,Other Agencies - Third Party P,90460184,CAREWATCH (BARNET),100.9,03/05/2022,
Delivery Units,Adults and Health,Other Agencies - Third Party P,90460185,CAREWATCH (BARNET),134.54,03/05/2022,
Delivery Units,Adults and Health,Other Agencies - Third Party P,90460190,CAREWATCH (BARNET),124.93,03/05/2022,
Delivery Units,Adults and Health,Other Agencies - Third Party P,90460191,CAREWATCH (BARNET),355.62,03/05/2022,
Delivery Units,Adults and Health,Other Agencies - Third Party P,90460192,CAREWATCH (BARNET),374.86,03/05/2022,
Delivery Units,Adults and Health,Other Agencies - Third Party P,90460193,CAREWATCH (BARNET),374.86,03/05/2022,
Delivery Units,Adults and Health,Other Agencies - Third Party P,90460194,CAREWATCH (BARNET),370.05,03/05/2022,
Delivery Units,Adults and Health,Other Agencies - Third Party P,90460195,CAREWATCH (BARNET),134.54,03/05/2022,
Delivery Units,Adults and Health,Other Agencies - Third Party P,90460196,CAREWATCH (BARNET),129.74,03/05/2022,
Delivery Units,Adults and Health,Other Agencies - Third Party P,90460197,CAREWATCH (BARNET),134.54,03/05/2022,
Delivery Units,Adults and Health,Other Agencies - Third Party P,90460198,CAREWATCH (BARNET),134.54,03/05/2022,
Delivery Units,Adults and Health,Other Agencies - Third Party P,90460199,CAREWATCH (BARNET),442.07,03/05/2022,
Delivery Units,Adults and Health,Other Agencies - Third Party P,90460200,CAREWATCH (BARNET),456.48,03/05/2022,
Delivery Units,Adults and Health,Other Agencies - Third Party P,90460201,CAREWATCH (BARNET),528.55,03/05/2022,
Delivery Units,Adults and Health,Other Agencies - Third Party P,90460202,CAREWATCH (BARNET),518.97,03/05/2022,
Delivery Units,Adults and Health,Other Agencies - Third Party P,90460203,CAREWATCH (BARNET),321.97,03/05/2022,
Delivery Units,Adults and Health,Other Agencies - Third Party P,90460204,CAREWATCH (BARNET),321.97,03/05/2022,
Delivery Units,Adults and Health,Other Agencies - Third Party P,90460205,CAREWATCH (BARNET),321.97,03/05/2022,
Delivery Units,Adults and Health,Other Agencies - Third Party P,90460206,CAREWATCH (BARNET),283.51,03/05/2022,
Delivery Units,Adults and Health,Other Agencies - Third Party P,90460207,CAREWATCH (BARNET),259.53,03/05/2022,
Delivery Units,Adults and Health,Other Agencies - Third Party P,90460208,CAREWATCH (BARNET),326.8,03/05/2022,
Delivery Units,Adults and Health,Other Agencies - Third Party P,90460209,CAREWATCH (BARNET),259.53,03/05/2022,
Delivery Units,Adults and Health,Other Agencies - Third Party P,90460210,CAREWATCH (BARNET),297.96,03/05/2022,
Delivery Units,Adults and Health,Other Agencies - Third Party P,90460211,CAREWATCH (BARNET),134.54,03/05/2022,
Delivery Units,Adults and Health,Other Agencies - Third Party P,90460212,CAREWATCH (BARNET),134.54,03/05/2022,
Delivery Units,Adults and Health,Other Agencies - Third Party P,90460213,CAREWATCH (BARNET),134.54,03/05/2022,
Delivery Units,Adults and Health,Other Agencies - Third Party P,90460214,CAREWATCH (BARNET),134.54,03/05/2022,
Delivery Units,Adults and Health,Other Agencies - Third Party P,90460215,CAREWATCH (BARNET),38.44,03/05/2022,
Delivery Units,Adults and Health,Other Agencies - Third Party P,90460216,CAREWATCH (BARNET),38.44,03/05/2022,
Delivery Units,Adults and Health,Other Agencies - Third Party P,90460217,CAREWATCH (BARNET),38.44,03/05/2022,
Delivery Units,Adults and Health,Other Agencies - Third Party P,90460218,CAREWATCH (BARNET),38.44,03/05/2022,
Delivery Units,Adults and Health,Other Agencies - Third Party P,90460219,CAREWATCH (BARNET),273.92,03/05/2022,
Delivery Units,Adults and Health,Other Agencies - Third Party P,90460220,CAREWATCH (BARNET),273.92,03/05/2022,
Delivery Units,Adults and Health,Other Agencies - Third Party P,90460221,CAREWATCH (BARNET),269.14,03/05/2022,
Delivery Units,Adults and Health,Other Agencies - Third Party P,90460222,CAREWATCH (BARNET),273.92,03/05/2022,
Delivery Units,Adults and Health,Other Agencies - Third Party P,90460223,CAREWATCH (BARNET),139.36,03/05/2022,
Delivery Units,Adults and Health,Other Agencies - Third Party P,90460224,CAREWATCH (BARNET),235.46,03/05/2022,
Delivery Units,Adults and Health,Other Agencies - Third Party P,90460225,CAREWATCH (BARNET),269.1,03/05/2022,
Delivery Units,Adults and Health,Other Agencies - Third Party P,90460226,CAREWATCH (BARNET),192.23,03/05/2022,
Delivery Units,Adults and Health,Other Agencies - Third Party P,90460227,CAREWATCH (BARNET),345.98,03/05/2022,
Delivery Units,Adults and Health,Other Agencies - Third Party P,90460228,CAREWATCH (BARNET),341.18,03/05/2022,
Delivery Units,Adults and Health,Other Agencies - Third Party P,90460229,CAREWATCH (BARNET),336.37,03/05/2022,
Delivery Units,Adults and Health,Other Agencies - Third Party P,90460230,CAREWATCH (BARNET),341.16,03/05/2022,
Delivery Units,Adults and Health,Other Agencies - Third Party P,90460231,CAREWATCH (BARNET),341.19,03/05/2022,
Delivery Units,Adults and Health,Other Agencies - Third Party P,90460232,CAREWATCH (BARNET),341.19,03/05/2022,
Delivery Units,Adults and Health,Other Agencies - Third Party P,90460233,CAREWATCH (BARNET),341.19,03/05/2022,
Delivery Units,Adults and Health,Other Agencies - Third Party P,90460234,CAREWATCH (BARNET),341.19,03/05/2022,
Delivery Units,Adults and Health,Other Agencies - Third Party P,90460239,CAREWATCH (BARNET),134.54,03/05/2022,
Delivery Units,Adults and Health,Other Agencies - Third Party P,90460240,CAREWATCH (BARNET),134.54,03/05/2022,
Delivery Units,Adults and Health,Other Agencies - Third Party P,90460241,CAREWATCH (BARNET),134.54,03/05/2022,
Delivery Units,Adults and Health,Other Agencies - Third Party P,90460242,CAREWATCH (BARNET),134.54,03/05/2022,
Delivery Units,Adults and Health,Other Agencies - Third Party P,90460243,CAREWATCH (BARNET),297.92,03/05/2022,
Delivery Units,Adults and Health,Other Agencies - Third Party P,90460244,CAREWATCH (BARNET),302.72,03/05/2022,
Delivery Units,Adults and Health,Other Agencies - Third Party P,90460245,CAREWATCH (BARNET),302.73,03/05/2022,
Delivery Units,Adults and Health,Other Agencies - Third Party P,90460246,CAREWATCH (BARNET),139.37,03/05/2022,
Delivery Units,Adults and Health,Other Agencies - Third Party P,90460247,CAREWATCH (BARNET),86.5,03/05/2022,
Delivery Units,Adults and Health,Other Agencies - Third Party P,90460248,CAREWATCH (BARNET),302.75,03/05/2022,
Delivery Units,Adults and Health,Other Agencies - Third Party P,90460249,CAREWATCH (BARNET),254.7,03/05/2022,
Delivery Units,Adults and Health,Other Agencies - Third Party P,90460250,CAREWATCH (BARNET),245.08,03/05/2022,
Delivery Units,Adults and Health,Other Agencies - Third Party P,90460251,CAREWATCH (BARNET),240.28,03/05/2022,
Delivery Units,Adults and Health,Other Agencies - Third Party P,90460252,CAREWATCH (BARNET),240.28,03/05/2022,
Delivery Units,Adults and Health,Other Agencies - Third Party P,90460257,CAREWATCH (BARNET),389.24,03/05/2022,
Delivery Units,Adults and Health,Other Agencies - Third Party P,90460258,CAREWATCH (BARNET),374.81,03/05/2022,
Delivery Units,Adults and Health,Other Agencies - Third Party P,90460259,CAREWATCH (BARNET),389.24,03/05/2022,
Delivery Units,Adults and Health,Other Agencies - Third Party P,90460260,CAREWATCH (BARNET),389.24,03/05/2022,
Delivery Units,Adults and Health,Other Agencies - Third Party P,90460261,CAREWATCH (BARNET),67.27,03/05/2022,
Delivery Units,Adults and Health,Other Agencies - Third Party P,90460262,CAREWATCH (BARNET),67.27,03/05/2022,
Delivery Units,Adults and Health,Other Agencies - Third Party P,90460263,CAREWATCH (BARNET),67.27,03/05/2022,
Delivery Units,Adults and Health,Other Agencies - Third Party P,90460264,CAREWATCH (BARNET),62.47,03/05/2022,
Delivery Units,Adults and Health,Other Agencies - Third Party P,90460265,CAREWATCH (BARNET),259.51,03/05/2022,
Delivery Units,Adults and Health,Other Agencies - Third Party P,90460266,CAREWATCH (BARNET),437.36,03/05/2022,
Delivery Units,Adults and Health,Other Agencies - Third Party P,90460267,CAREWATCH (BARNET),437.36,03/05/2022,
Delivery Units,Adults and Health,Other Agencies - Third Party P,90460268,CAREWATCH (BARNET),437.36,03/05/2022,
Delivery Units,Adults and Health,Other Agencies - Third Party P,90460269,CAREWATCH (BARNET),86.52,03/05/2022,
Delivery Units,Adults and Health,Other Agencies - Third Party P,90460270,CAREWATCH (BARNET),100.94,03/05/2022,
Delivery Units,Adults and Health,Other Agencies - Third Party P,90460271,CAREWATCH (BARNET),100.94,03/05/2022,
Delivery Units,Adults and Health,Other Agencies - Third Party P,90460272,CAREWATCH (BARNET),100.94,03/05/2022,
Delivery Units,Adults and Health,Other Agencies - Third Party P,90460273,CAREWATCH (BARNET),134.54,03/05/2022,
Delivery Units,Adults and Health,Other Agencies - Third Party P,90460274,CAREWATCH (BARNET),134.54,03/05/2022,
Delivery Units,Adults and Health,Other Agencies - Third Party P,90460275,CAREWATCH (BARNET),134.54,03/05/2022,
Delivery Units,Adults and Health,Other Agencies - Third Party P,90460276,CAREWATCH (BARNET),134.54,03/05/2022,
Delivery Units,Adults and Health,Other Agencies - Third Party P,90460277,CAREWATCH (BARNET),168.21,03/05/2022,
Delivery Units,Adults and Health,Other Agencies - Third Party P,90460278,CAREWATCH (BARNET),168.21,03/05/2022,
Delivery Units,Adults and Health,Other Agencies - Third Party P,90460279,CAREWATCH (BARNET),168.21,03/05/2022,
Delivery Units,Adults and Health,Other Agencies - Third Party P,90460280,CAREWATCH (BARNET),168.21,03/05/2022,
Delivery Units,Adults and Health,Other Agencies - Third Party P,90460281,CAREWATCH (BARNET),72.1,03/05/2022,
Delivery Units,Adults and Health,Other Agencies - Third Party P,90460282,CAREWATCH (BARNET),72.1,03/05/2022,
Delivery Units,Adults and Health,Other Agencies - Third Party P,90460283,CAREWATCH (BARNET),72.1,03/05/2022,
Delivery Units,Adults and Health,Other Agencies - Third Party P,90460284,CAREWATCH (BARNET),72.1,03/05/2022,
Delivery Units,Adults and Health,Other Agencies - Third Party P,90460285,CAREWATCH (BARNET),792.86,03/05/2022,
Delivery Units,Adults and Health,Other Agencies - Third Party P,90460286,CAREWATCH (BARNET),792.86,03/05/2022,
Delivery Units,Adults and Health,Other Agencies - Third Party P,90460287,CAREWATCH (BARNET),792.86,03/05/2022,
Delivery Units,Adults and Health,Other Agencies - Third Party P,90460288,CAREWATCH (BARNET),792.86,03/05/2022,
Delivery Units,Adults and Health,Other Agencies - Third Party P,90460289,CAREWATCH (BARNET),345.96,03/05/2022,
Delivery Units,Adults and Health,Other Agencies - Third Party P,90460290,CAREWATCH (BARNET),331.55,03/05/2022,
Delivery Units,Adults and Health,Other Agencies - Third Party P,90460291,CAREWATCH (BARNET),345.96,03/05/2022,
Delivery Units,Adults and Health,Other Agencies - Third Party P,90460292,CAREWATCH (BARNET),345.96,03/05/2022,
Delivery Units,Adults and Health,Other Agencies - Third Party P,90460293,CAREWATCH (BARNET),72.09,03/05/2022,
Delivery Units,Adults and Health,Other Agencies - Third Party P,90460294,CAREWATCH (BARNET),168.21,03/05/2022,
Delivery Units,Adults and Health,Other Agencies - Third Party P,90460295,CAREWATCH (BARNET),139.37,03/05/2022,
Delivery Units,Adults and Health,Other Agencies - Third Party P,90460296,CAREWATCH (BARNET),168.21,03/05/2022,
Delivery Units,Adults and Health,Other Agencies - Third Party P,90460297,CAREWATCH (BARNET),475.8,03/05/2022,
Delivery Units,Adults and Health,Other Agencies - Third Party P,90460298,CAREWATCH (BARNET),475.8,03/05/2022,
Delivery Units,Adults and Health,Other Agencies - Third Party P,90460299,CAREWATCH (BARNET),475.8,03/05/2022,
Delivery Units,Adults and Health,Other Agencies - Third Party P,90460300,CAREWATCH (BARNET),475.8,03/05/2022,
Delivery Units,Adults and Health,Other Agencies - Third Party P,90460303,CAREWATCH (BARNET),134.54,03/05/2022,
Delivery Units,Adults and Health,Other Agencies - Third Party P,90460304,CAREWATCH (BARNET),115.32,03/05/2022,
Delivery Units,Adults and Health,Other Agencies - Third Party P,90460305,CAREWATCH (BARNET),115.32,03/05/2022,
Delivery Units,Adults and Health,Other Agencies - Third Party P,90460306,CAREWATCH (BARNET),134.54,03/05/2022,
Delivery Units,Adults and Health,Other Agencies - Third Party P,90460307,CAREWATCH (BARNET),201.88,03/05/2022,
Delivery Units,Adults and Health,Other Agencies - Third Party P,90460308,CAREWATCH (BARNET),201.88,03/05/2022,
Delivery Units,Adults and Health,Other Agencies - Third Party P,90460309,CAREWATCH (BARNET),177.84,03/05/2022,
Delivery Units,Adults and Health,Other Agencies - Third Party P,90460314,CAREWATCH (BARNET),225.87,03/05/2022,
Delivery Units,Adults and Health,Other Agencies - Third Party P,90460315,CAREWATCH (BARNET),57.68,03/05/2022,
Delivery Units,Adults and Health,Other Agencies - Third Party P,90460317,CAREWATCH (BARNET),336.35,03/05/2022,
Delivery Units,Adults and Health,Other Agencies - Third Party P,90460318,CAREWATCH (BARNET),336.35,03/05/2022,
Delivery Units,Adults and Health,Other Agencies - Third Party P,90460319,CAREWATCH (BARNET),317.15,03/05/2022,
Delivery Units,Adults and Health,Other Agencies - Third Party P,90460320,CAREWATCH (BARNET),312.36,03/05/2022,
Delivery Units,Adults and Health,Other Agencies - Third Party P,90460321,CAREWATCH (BARNET),235.48,03/05/2022,
Delivery Units,Adults and Health,Other Agencies - Third Party P,90460322,CAREWATCH (BARNET),235.48,03/05/2022,
Delivery Units,Adults and Health,Other Agencies - Third Party P,90460323,CAREWATCH (BARNET),235.48,03/05/2022,
Delivery Units,Adults and Health,Other Agencies - Third Party P,90460324,CAREWATCH (BARNET),235.48,03/05/2022,
Delivery Units,Adults and Health,Other Agencies - Third Party P,90460325,CAREWATCH (BARNET),235.48,03/05/2022,
Delivery Units,Adults and Health,Other Agencies - Third Party P,90460326,CAREWATCH (BARNET),235.48,03/05/2022,
Delivery Units,Adults and Health,Other Agencies - Third Party P,90460327,CAREWATCH (BARNET),235.48,03/05/2022,
Delivery Units,Adults and Health,Other Agencies - Third Party P,90460328,CAREWATCH (BARNET),235.48,03/05/2022,
Delivery Units,Adults and Health,Other Agencies - Third Party P,90460329,CAREWATCH (BARNET),57.66,03/05/2022,
Delivery Units,Adults and Health,Other Agencies - Third Party P,90460330,CAREWATCH (BARNET),67.27,03/05/2022,
Delivery Units,Adults and Health,Other Agencies - Third Party P,90460331,CAREWATCH (BARNET),67.27,03/05/2022,
Delivery Units,Adults and Health,Other Agencies - Third Party P,90460332,CAREWATCH (BARNET),67.27,03/05/2022,
Delivery Units,Adults and Health,Other Agencies - Third Party P,90460333,CAREWATCH (BARNET),307.58,03/05/2022,
Delivery Units,Adults and Health,Other Agencies - Third Party P,90460334,CAREWATCH (BARNET),302.72,03/05/2022,
Delivery Units,Adults and Health,Other Agencies - Third Party P,90460335,CAREWATCH (BARNET),307.53,03/05/2022,
Delivery Units,Adults and Health,Other Agencies - Third Party P,90460336,CAREWATCH (BARNET),307.53,03/05/2022,
Delivery Units,Adults and Health,Other Agencies - Third Party P,90460337,CAREWATCH (BARNET),76.89,03/05/2022,
Delivery Units,Adults and Health,Other Agencies - Third Party P,90460338,CAREWATCH (BARNET),72.09,03/05/2022,
Delivery Units,Adults and Health,Other Agencies - Third Party P,90460339,CAREWATCH (BARNET),72.09,03/05/2022,
Delivery Units,Adults and Health,Other Agencies - Third Party P,90460340,CAREWATCH (BARNET),76.89,03/05/2022,
Delivery Units,Adults and Health,Other Agencies - Third Party P,90460341,CAREWATCH (BARNET),206.65,03/05/2022,
Delivery Units,Adults and Health,Other Agencies - Third Party P,90460342,CAREWATCH (BARNET),206.65,03/05/2022,
Delivery Units,Adults and Health,Other Agencies - Third Party P,90460343,CAREWATCH (BARNET),206.65,03/05/2022,
Delivery Units,Adults and Health,Other Agencies - Third Party P,90460344,CAREWATCH (BARNET),206.65,03/05/2022,
Delivery Units,Adults and Health,Other Agencies - Third Party P,90460522,Bluebird Care (Barnet),"1,400.00",03/05/2022,
Delivery Units,Adults and Health,Other Agencies - Third Party P,90460523,Bluebird Care (Barnet),252.35,03/05/2022,
Delivery Units,Adults and Health,Other Agencies - Third Party P,90460524,Bluebird Care (Barnet),517.34,03/05/2022,
Delivery Units,Adults and Health,Other Agencies - Third Party P,90460525,Bluebird Care (Barnet),267.8,03/05/2022,
Delivery Units,Adults and Health,Other Agencies - Third Party P,90460528,Bluebird Care (Barnet),288.4,03/05/2022,
Delivery Units,Adults and Health,Other Agencies - Third Party P,90460529,Bluebird Care (Barnet),659.2,03/05/2022,
Delivery Units,Adults and Health,Other Agencies - Third Party P,90460530,Bluebird Care (Barnet),252.35,03/05/2022,
Delivery Units,Adults and Health,Other Agencies - Third Party P,90460531,Bluebird Care (Barnet),216.3,03/05/2022,
Delivery Units,Adults and Health,Other Agencies - Third Party P,90460532,Bluebird Care (Barnet),92.7,03/05/2022,
Delivery Units,Adults and Health,Other Agencies - Third Party P,90460533,Bluebird Care (Barnet),288.4,03/05/2022,
Delivery Units,Adults and Health,Other Agencies - Third Party P,90460534,Bluebird Care (Barnet),216.3,03/05/2022,
Delivery Units,Adults and Health,Other Agencies - Third Party P,90460535,Bluebird Care (Barnet),252.35,03/05/2022,
Delivery Units,Adults and Health,Other Agencies - Third Party P,90460536,Bluebird Care (Barnet),"1,072.44",03/05/2022,
Delivery Units,Adults and Health,Other Agencies - Third Party P,90460537,Bluebird Care (Barnet),123.6,03/05/2022,
Delivery Units,Adults and Health,Other Agencies - Third Party P,90460538,Bluebird Care (Barnet),41.2,03/05/2022,
Delivery Units,Adults and Health,Other Agencies - Third Party P,90460539,Bluebird Care (Barnet),504.7,03/05/2022,
Delivery Units,Adults and Health,Other Agencies - Third Party P,90460541,Bluebird Care (Barnet),288.4,03/05/2022,
Delivery Units,Adults and Health,Other Agencies - Third Party P,90460543,Bluebird Care (Barnet),139.05,03/05/2022,
Delivery Units,Adults and Health,Other Agencies - Third Party P,90460544,Bluebird Care (Barnet),20.6,03/05/2022,
Delivery Units,Adults and Health,Other Agencies - Third Party P,90460545,Bluebird Care (Barnet),236.9,03/05/2022,
Delivery Units,Adults and Health,Other Agencies - Third Party P,90460546,Bluebird Care (Barnet),252.35,03/05/2022,
Delivery Units,Adults and Health,Other Agencies - Third Party P,90460547,Bluebird Care (Barnet),525.3,03/05/2022,
Delivery Units,Adults and Health,Other Agencies - Third Party P,90460549,Bluebird Care (Barnet),252.35,03/05/2022,
Delivery Units,Adults and Health,Other Agencies - Third Party P,90460551,Bluebird Care (Barnet),66.95,03/05/2022,
Delivery Units,Adults and Health,Other Agencies - Third Party P,90460552,Bluebird Care (Barnet),571.65,03/05/2022,
Delivery Units,Adults and Health,Other Agencies - Third Party P,90460553,Bluebird Care (Barnet),154.5,03/05/2022,
Delivery Units,Adults and Health,Other Agencies - Third Party P,90460554,Bluebird Care (Barnet),144.2,03/05/2022,
Delivery Units,Adults and Health,Other Agencies - Third Party P,90460556,Bluebird Care (Barnet),293.55,03/05/2022,
Delivery Units,Adults and Health,Other Agencies - Third Party P,90460557,Bluebird Care (Barnet),607.7,03/05/2022,
Delivery Units,Adults and Health,Other Agencies - Third Party P,90460560,Bluebird Care (Barnet),309,03/05/2022,
Delivery Units,Adults and Health,Other Agencies - Third Party P,90460561,Bluebird Care (Barnet),339.9,03/05/2022,
Delivery Units,Adults and Health,Other Agencies - Third Party P,90460562,Bluebird Care (Barnet),20.6,03/05/2022,
Delivery Units,Adults and Health,Other Agencies - Third Party P,90460566,Bluebird Care (Barnet),504.7,03/05/2022,
Delivery Units,Adults and Health,Other Agencies - Third Party P,90460568,Bluebird Care (Barnet),"1,400.00",03/05/2022,
Delivery Units,Adults and Health,Other Agencies - Third Party P,90460569,Bluebird Care (Barnet),252.35,03/05/2022,
Delivery Units,Adults and Health,Other Agencies - Third Party P,90460570,Bluebird Care (Barnet),61.8,03/05/2022,
Delivery Units,Adults and Health,Other Agencies - Third Party P,90460571,Bluebird Care (Barnet),267.8,03/05/2022,
Delivery Units,Adults and Health,Other Agencies - Third Party P,90460574,Bluebird Care (Barnet),628.3,03/05/2022,
Delivery Units,Adults and Health,Other Agencies - Third Party P,90460575,Bluebird Care (Barnet),236.9,03/05/2022,
Delivery Units,Adults and Health,Other Agencies - Third Party P,90460576,Bluebird Care (Barnet),216.3,03/05/2022,
Delivery Units,Adults and Health,Other Agencies - Third Party P,90460577,Bluebird Care (Barnet),92.7,03/05/2022,
Delivery Units,Adults and Health,Other Agencies - Third Party P,90460578,Bluebird Care (Barnet),288.4,03/05/2022,
Delivery Units,Adults and Health,Other Agencies - Third Party P,90460579,Bluebird Care (Barnet),216.3,03/05/2022,
Delivery Units,Adults and Health,Other Agencies - Third Party P,90460580,Bluebird Care (Barnet),252.35,03/05/2022,
Delivery Units,Adults and Health,Other Agencies - Third Party P,90460581,Bluebird Care (Barnet),"1,072.44",03/05/2022,
Delivery Units,Adults and Health,Other Agencies - Third Party P,90460582,Bluebird Care (Barnet),144.2,03/05/2022,
Delivery Units,Adults and Health,Other Agencies - Third Party P,90460583,Bluebird Care (Barnet),144.2,03/05/2022,
Delivery Units,Adults and Health,Other Agencies - Third Party P,90460584,Bluebird Care (Barnet),504.7,03/05/2022,
Delivery Units,Adults and Health,Other Agencies - Third Party P,90460586,Bluebird Care (Barnet),278.1,03/05/2022,
Delivery Units,Adults and Health,Other Agencies - Third Party P,90460588,Bluebird Care (Barnet),149.35,03/05/2022,
Delivery Units,Adults and Health,Other Agencies - Third Party P,90460589,Bluebird Care (Barnet),20.6,03/05/2022,
Delivery Units,Adults and Health,Other Agencies - Third Party P,90460590,Bluebird Care (Barnet),236.9,03/05/2022,
Delivery Units,Adults and Health,Other Agencies - Third Party P,90460591,Bluebird Care (Barnet),252.35,03/05/2022,
Delivery Units,Adults and Health,Other Agencies - Third Party P,90460592,Bluebird Care (Barnet),509.85,03/05/2022,
Delivery Units,Adults and Health,Other Agencies - Third Party P,90460594,Bluebird Care (Barnet),128.75,03/05/2022,
Delivery Units,Adults and Health,Other Agencies - Third Party P,90460596,Bluebird Care (Barnet),72.1,03/05/2022,
Delivery Units,Adults and Health,Other Agencies - Third Party P,90460597,Bluebird Care (Barnet),571.65,03/05/2022,
Delivery Units,Adults and Health,Other Agencies - Third Party P,90460598,Bluebird Care (Barnet),154.5,03/05/2022,
Delivery Units,Adults and Health,Other Agencies - Third Party P,90460600,Bluebird Care (Barnet),293.55,03/05/2022,
Delivery Units,Adults and Health,Other Agencies - Third Party P,90460601,Bluebird Care (Barnet),628.3,03/05/2022,
Delivery Units,Adults and Health,Other Agencies - Third Party P,90460604,Bluebird Care (Barnet),329.6,03/05/2022,
Delivery Units,Adults and Health,Other Agencies - Third Party P,90460605,Bluebird Care (Barnet),329.6,03/05/2022,
Delivery Units,Adults and Health,Other Agencies - Third Party P,90460606,Bluebird Care (Barnet),20.6,03/05/2022,
Delivery Units,Adults and Health,Other Agencies - Third Party P,90460610,Bluebird Care (Barnet),504.7,03/05/2022,
Delivery Units,Adults and Health,Other Agencies - Third Party P,90461018,Homecare Alliance Ltd,488.32,04/05/2022,
Delivery Units,Adults and Health,Other Agencies - Third Party P,90461020,Homecare Alliance Ltd,"1,220.80",04/05/2022,
Delivery Units,Adults and Health,Other Agencies - Third Party P,90461021,Homecare Alliance Ltd,"1,220.80",04/05/2022,
Delivery Units,Adults and Health,Other Agencies - Third Party P,90461037,Metro Homecare Ltd,350.33,04/05/2022,
Delivery Units,Adults and Health,Other Agencies - Third Party P,90461041,Metro Homecare Ltd,224.9,04/05/2022,
Delivery Units,Adults and Health,Other Agencies - Third Party P,90461042,Metro Homecare Ltd,"1,003.40",04/05/2022,
Delivery Units,Adults and Health,Other Agencies - Third Party P,90461045,Metro Homecare Ltd,272.48,04/05/2022,
Delivery Units,Adults and Health,Other Agencies - Third Party P,90461047,Metro Homecare Ltd,415.2,04/05/2022,
Delivery Units,Adults and Health,Other Agencies - Third Party P,90461054,Metro Homecare Ltd,415.2,04/05/2022,
Delivery Units,Adults and Health,Other Agencies - Third Party P,90461055,Metro Homecare Ltd,173,04/05/2022,
Delivery Units,Adults and Health,Other Agencies - Third Party P,90461057,Metro Homecare Ltd,"1,211.00",04/05/2022,
Delivery Units,Adults and Health,Other Agencies - Third Party P,90461059,Metro Homecare Ltd,363.3,04/05/2022,
Delivery Units,Adults and Health,Other Agencies - Third Party P,90461060,Metro Homecare Ltd,311.4,04/05/2022,
Delivery Units,Adults and Health,Other Agencies - Third Party P,90461063,Metro Homecare Ltd,155.7,04/05/2022,
Delivery Units,Adults and Health,Other Agencies - Third Party P,90461064,Metro Homecare Ltd,155.7,04/05/2022,
Delivery Units,Adults and Health,Other Agencies - Third Party P,90461065,Metro Homecare Ltd,116.78,04/05/2022,
Delivery Units,Adults and Health,Other Agencies - Third Party P,90461067,Metro Homecare Ltd,778.5,04/05/2022,
Delivery Units,Adults and Health,Other Agencies - Third Party P,90461068,Metro Homecare Ltd,830.4,04/05/2022,
Delivery Units,Adults and Health,Other Agencies - Third Party P,90461073,Metro Homecare Ltd,207.6,04/05/2022,
Delivery Units,Adults and Health,Other Agencies - Third Party P,90461088,Greek & Greek Cypriot Community of En,420.24,04/05/2022,
Delivery Units,Adults and Health,Other Agencies - Third Party P,90461089,Greek & Greek Cypriot Community of En,193.64,04/05/2022,
Delivery Units,Adults and Health,Other Agencies - Third Party P,90461096,Skillcare Ltd,152,04/05/2022,
Delivery Units,Adults and Health,Other Agencies - Third Party P,90461098,MI HOMECARE LIMITED,55.65,04/05/2022,
Delivery Units,Adults and Health,Other Agencies - Third Party P,90461099,MI HOMECARE LIMITED,180.86,04/05/2022,
Delivery Units,Adults and Health,Other Agencies - Third Party P,90461100,MI HOMECARE LIMITED,287.53,04/05/2022,
Delivery Units,Adults and Health,Other Agencies - Third Party P,90461105,MI HOMECARE LIMITED,245.79,04/05/2022,
Delivery Units,Adults and Health,Other Agencies - Third Party P,90461106,MI HOMECARE LIMITED,129.85,04/05/2022,
Delivery Units,Adults and Health,Other Agencies - Third Party P,90461107,MI HOMECARE LIMITED,"1,771.53",04/05/2022,
Delivery Units,Adults and Health,Other Agencies - Third Party P,90461110,MI HOMECARE LIMITED,278.25,04/05/2022,
Delivery Units,Adults and Health,Other Agencies - Third Party P,90461111,MI HOMECARE LIMITED,41.74,04/05/2022,
Delivery Units,Adults and Health,Other Agencies - Third Party P,90461112,MI HOMECARE LIMITED,194.78,04/05/2022,
Delivery Units,Adults and Health,Other Agencies - Third Party P,90461117,MI HOMECARE LIMITED,176.23,04/05/2022,
Delivery Units,Adults and Health,Other Agencies - Third Party P,90461118,MI HOMECARE LIMITED,241.15,04/05/2022,
Delivery Units,Adults and Health,Other Agencies - Third Party P,90461119,MI HOMECARE LIMITED,83.48,04/05/2022,
Delivery Units,Adults and Health,Other Agencies - Third Party P,90461121,MI HOMECARE LIMITED,194.78,04/05/2022,
Delivery Units,Adults and Health,Other Agencies - Third Party P,90461124,MI HOMECARE LIMITED,969.24,04/05/2022,
Delivery Units,Adults and Health,Other Agencies - Third Party P,90461125,MI HOMECARE LIMITED,37.1,04/05/2022,
Delivery Units,Adults and Health,Other Agencies - Third Party P,90461126,MI HOMECARE LIMITED,315.35,04/05/2022,
Delivery Units,Adults and Health,Other Agencies - Third Party P,90461131,MI HOMECARE LIMITED,194.78,04/05/2022,
Delivery Units,Adults and Health,Other Agencies - Third Party P,90461133,MI HOMECARE LIMITED,287.53,04/05/2022,
Delivery Units,Adults and Health,Other Agencies - Third Party P,90461136,MI HOMECARE LIMITED,194.78,04/05/2022,
Delivery Units,Adults and Health,Other Agencies - Third Party P,90461138,MI HOMECARE LIMITED,264.34,04/05/2022,
Delivery Units,Adults and Health,Other Agencies - Third Party P,90461139,MI HOMECARE LIMITED,282.89,04/05/2022,
Delivery Units,Adults and Health,Other Agencies - Third Party P,90461142,MI HOMECARE LIMITED,575.05,04/05/2022,
Delivery Units,Adults and Health,Other Agencies - Third Party P,90461143,MI HOMECARE LIMITED,319.99,04/05/2022,
Delivery Units,Adults and Health,Other Agencies - Third Party P,90461148,MI HOMECARE LIMITED,292.16,04/05/2022,
Delivery Units,Adults and Health,Other Agencies - Third Party P,90461149,MI HOMECARE LIMITED,245.79,04/05/2022,
Delivery Units,Adults and Health,Other Agencies - Third Party P,90461154,MI HOMECARE LIMITED,663.16,04/05/2022,
Delivery Units,Adults and Health,Other Agencies - Third Party P,90461155,MI HOMECARE LIMITED,292.16,04/05/2022,
Delivery Units,Adults and Health,Other Agencies - Third Party P,90461159,MI HOMECARE LIMITED,83.48,04/05/2022,
Delivery Units,Adults and Health,Other Agencies - Third Party P,90461160,MI HOMECARE LIMITED,287.53,04/05/2022,
Delivery Units,Adults and Health,Other Agencies - Third Party P,90461161,MI HOMECARE LIMITED,55.65,04/05/2022,
Delivery Units,Adults and Health,Other Agencies - Third Party P,90461162,MI HOMECARE LIMITED,204.05,04/05/2022,
Delivery Units,Adults and Health,Other Agencies - Third Party P,90461163,MI HOMECARE LIMITED,519.4,04/05/2022,
Delivery Units,Adults and Health,Other Agencies - Third Party P,90461167,MI HOMECARE LIMITED,329.26,04/05/2022,
Delivery Units,Adults and Health,Other Agencies - Third Party P,90461168,MI HOMECARE LIMITED,259.7,04/05/2022,
Delivery Units,Adults and Health,Other Agencies - Third Party P,90461171,MI HOMECARE LIMITED,162.31,04/05/2022,
Delivery Units,Adults and Health,Other Agencies - Third Party P,90461176,MI HOMECARE LIMITED,64.93,04/05/2022,
Delivery Units,Adults and Health,Other Agencies - Third Party P,90461181,MI HOMECARE LIMITED,315.35,04/05/2022,
Delivery Units,Adults and Health,Other Agencies - Third Party P,90461182,MI HOMECARE LIMITED,129.85,04/05/2022,
Delivery Units,Adults and Health,Other Agencies - Third Party P,90461186,MI HOMECARE LIMITED,83.48,04/05/2022,
Delivery Units,Adults and Health,Other Agencies - Third Party P,90461187,MI HOMECARE LIMITED,194.78,04/05/2022,
Delivery Units,Adults and Health,Other Agencies - Third Party P,90461188,MI HOMECARE LIMITED,227.24,04/05/2022,
Delivery Units,Adults and Health,Other Agencies - Third Party P,90461196,MI HOMECARE LIMITED,129.85,04/05/2022,
Delivery Units,Adults and Health,Other Agencies - Third Party P,90461197,MI HOMECARE LIMITED,255.06,04/05/2022,
Delivery Units,Adults and Health,Other Agencies - Third Party P,90461198,MI HOMECARE LIMITED,292.16,04/05/2022,
Delivery Units,Adults and Health,Other Agencies - Third Party P,90461202,MI HOMECARE LIMITED,324.63,04/05/2022,
Delivery Units,Adults and Health,Other Agencies - Third Party P,90461206,MI HOMECARE LIMITED,454.48,04/05/2022,
Delivery Units,Adults and Health,Other Agencies - Third Party P,90461209,MI HOMECARE LIMITED,278.25,04/05/2022,
Delivery Units,Adults and Health,Other Agencies - Third Party P,90461211,MI HOMECARE LIMITED,208.69,04/05/2022,
Delivery Units,Adults and Health,Other Agencies - Third Party P,90461212,MI HOMECARE LIMITED,194.78,04/05/2022,
Delivery Units,Adults and Health,Other Agencies - Third Party P,90461217,MI HOMECARE LIMITED,92.75,04/05/2022,
Delivery Units,Adults and Health,Other Agencies - Third Party P,90461220,MI HOMECARE LIMITED,329.26,04/05/2022,
Delivery Units,Adults and Health,Other Agencies - Third Party P,90461221,MI HOMECARE LIMITED,259.7,04/05/2022,
Delivery Units,Adults and Health,Other Agencies - Third Party P,90461222,MI HOMECARE LIMITED,222.6,04/05/2022,
Delivery Units,Adults and Health,Other Agencies - Third Party P,90461223,MI HOMECARE LIMITED,27.83,04/05/2022,
Delivery Units,Adults and Health,Other Agencies - Third Party P,90461224,MI HOMECARE LIMITED,176.23,04/05/2022,
Delivery Units,Adults and Health,Other Agencies - Third Party P,90461225,MI HOMECARE LIMITED,92.75,04/05/2022,
Delivery Units,Adults and Health,Other Agencies - Third Party P,90461227,MI HOMECARE LIMITED,194.78,04/05/2022,
Delivery Units,Adults and Health,Other Agencies - Third Party P,90461228,MI HOMECARE LIMITED,278.25,04/05/2022,
Delivery Units,Adults and Health,Other Agencies - Third Party P,90461230,MI HOMECARE LIMITED,347.81,04/05/2022,
Delivery Units,Adults and Health,Other Agencies - Third Party P,90461231,MI HOMECARE LIMITED,273.61,04/05/2022,
Delivery Units,Adults and Health,Other Agencies - Third Party P,90461234,MI HOMECARE LIMITED,259.7,04/05/2022,
Delivery Units,Adults and Health,Other Agencies - Third Party P,90461235,MI HOMECARE LIMITED,222.6,04/05/2022,
Delivery Units,Adults and Health,Other Agencies - Third Party P,90461236,MI HOMECARE LIMITED,55.65,04/05/2022,
Delivery Units,Adults and Health,Other Agencies - Third Party P,90461239,MI HOMECARE LIMITED,287.53,04/05/2022,
Delivery Units,Adults and Health,Other Agencies - Third Party P,90461242,MI HOMECARE LIMITED,862.58,04/05/2022,
Delivery Units,Adults and Health,Other Agencies - Third Party P,90461243,MI HOMECARE LIMITED,46.38,04/05/2022,
Delivery Units,Adults and Health,Other Agencies - Third Party P,90461245,MI HOMECARE LIMITED,241.15,04/05/2022,
Delivery Units,Adults and Health,Other Agencies - Third Party P,90461246,MI HOMECARE LIMITED,97.39,04/05/2022,
Delivery Units,Adults and Health,Other Agencies - Third Party P,90461250,MI HOMECARE LIMITED,37.1,04/05/2022,
Delivery Units,Adults and Health,Other Agencies - Third Party P,90461251,MI HOMECARE LIMITED,255.06,04/05/2022,
Delivery Units,Adults and Health,Other Agencies - Third Party P,90461252,MI HOMECARE LIMITED,245.79,04/05/2022,
Delivery Units,Adults and Health,Other Agencies - Third Party P,90461253,MI HOMECARE LIMITED,375.64,04/05/2022,
Delivery Units,Adults and Health,Other Agencies - Third Party P,90461254,MI HOMECARE LIMITED,250.43,04/05/2022,
Delivery Units,Adults and Health,Other Agencies - Third Party P,90461256,MI HOMECARE LIMITED,129.85,04/05/2022,
Delivery Units,Adults and Health,Other Agencies - Third Party P,90461257,MI HOMECARE LIMITED,774.46,04/05/2022,
Delivery Units,Adults and Health,Other Agencies - Third Party P,90461258,MI HOMECARE LIMITED,88.11,04/05/2022,
Delivery Units,Adults and Health,Other Agencies - Third Party P,90461261,MI HOMECARE LIMITED,324.63,04/05/2022,
Delivery Units,Adults and Health,Other Agencies - Third Party P,90461262,MI HOMECARE LIMITED,292.16,04/05/2022,
Delivery Units,Adults and Health,Other Agencies - Third Party P,90461265,MI HOMECARE LIMITED,162.31,04/05/2022,
Delivery Units,Adults and Health,Other Agencies - Third Party P,90461266,MI HOMECARE LIMITED,129.85,04/05/2022,
Delivery Units,Adults and Health,Other Agencies - Third Party P,90461268,MI HOMECARE LIMITED,148.4,04/05/2022,
Delivery Units,Adults and Health,Other Agencies - Third Party P,90461270,MI HOMECARE LIMITED,102.03,04/05/2022,
Delivery Units,Adults and Health,Other Agencies - Third Party P,90461273,MI HOMECARE LIMITED,92.75,04/05/2022,
Delivery Units,Adults and Health,Other Agencies - Third Party P,90461274,MI HOMECARE LIMITED,129.85,04/05/2022,
Delivery Units,Adults and Health,Other Agencies - Third Party P,90461276,MI HOMECARE LIMITED,259.7,04/05/2022,
Delivery Units,Adults and Health,Other Agencies - Third Party P,90461277,MI HOMECARE LIMITED,129.85,04/05/2022,
Delivery Units,Adults and Health,Other Agencies - Third Party P,90461278,MI HOMECARE LIMITED,180.86,04/05/2022,
Delivery Units,Adults and Health,Other Agencies - Third Party P,90461279,MI HOMECARE LIMITED,459.11,04/05/2022,
Delivery Units,Adults and Health,Other Agencies - Third Party P,90461282,MI HOMECARE LIMITED,129.85,04/05/2022,
Delivery Units,Adults and Health,Other Agencies - Third Party P,90461283,MI HOMECARE LIMITED,241.15,04/05/2022,
Delivery Units,Adults and Health,Other Agencies - Third Party P,90461284,MI HOMECARE LIMITED,"1,006.34",04/05/2022,
Delivery Units,Adults and Health,Other Agencies - Third Party P,90461289,MI HOMECARE LIMITED,259.7,04/05/2022,
Delivery Units,Adults and Health,Other Agencies - Third Party P,90461290,MI HOMECARE LIMITED,296.8,04/05/2022,
Delivery Units,Adults and Health,Other Agencies - Third Party P,90461291,MI HOMECARE LIMITED,13.91,04/05/2022,
Delivery Units,Adults and Health,Other Agencies - Third Party P,90461292,MI HOMECARE LIMITED,148.4,04/05/2022,
Delivery Units,Adults and Health,Other Agencies - Third Party P,90461293,MI HOMECARE LIMITED,153.04,04/05/2022,
Delivery Units,Adults and Health,Other Agencies - Third Party P,90461294,MI HOMECARE LIMITED,74.2,04/05/2022,
Delivery Units,Adults and Health,Other Agencies - Third Party P,90461295,MI HOMECARE LIMITED,231.88,04/05/2022,
Delivery Units,Adults and Health,Other Agencies - Third Party P,90461296,MI HOMECARE LIMITED,162.31,04/05/2022,
Delivery Units,Adults and Health,Other Agencies - Third Party P,90461297,MI HOMECARE LIMITED,129.85,04/05/2022,
Delivery Units,Adults and Health,Other Agencies - Third Party P,90461298,MI HOMECARE LIMITED,375.64,04/05/2022,
Delivery Units,Adults and Health,Other Agencies - Third Party P,90461299,MI HOMECARE LIMITED,222.6,04/05/2022,
Delivery Units,Adults and Health,Other Agencies - Third Party P,90461300,MI HOMECARE LIMITED,162.31,04/05/2022,
Delivery Units,Adults and Health,Other Agencies - Third Party P,90461301,MI HOMECARE LIMITED,143.76,04/05/2022,
Delivery Units,Adults and Health,Other Agencies - Third Party P,90461304,MI HOMECARE LIMITED,389.55,04/05/2022,
Delivery Units,Adults and Health,Other Agencies - Third Party P,90461308,MI HOMECARE LIMITED,83.48,04/05/2022,
Delivery Units,Adults and Health,Other Agencies - Third Party P,90461309,MI HOMECARE LIMITED,292.16,04/05/2022,
Delivery Units,Adults and Health,Other Agencies - Third Party P,90461311,MI HOMECARE LIMITED,129.85,04/05/2022,
Delivery Units,Adults and Health,Other Agencies - Third Party P,90461312,MI HOMECARE LIMITED,213.33,04/05/2022,
Delivery Units,Adults and Health,Other Agencies - Third Party P,90461314,MI HOMECARE LIMITED,227.24,04/05/2022,
Delivery Units,Adults and Health,Other Agencies - Third Party P,90461315,MI HOMECARE LIMITED,97.39,04/05/2022,
Delivery Units,Adults and Health,Other Agencies - Third Party P,90461322,MI HOMECARE LIMITED,227.24,04/05/2022,
Delivery Units,Adults and Health,Other Agencies - Third Party P,90461324,MI HOMECARE LIMITED,46.38,04/05/2022,
Delivery Units,Adults and Health,Other Agencies - Third Party P,90461325,MI HOMECARE LIMITED,194.78,04/05/2022,
Delivery Units,Adults and Health,Other Agencies - Third Party P,90461328,MI HOMECARE LIMITED,231.88,04/05/2022,
Delivery Units,Adults and Health,Other Agencies - Third Party P,90461332,MI HOMECARE LIMITED,134.49,04/05/2022,
Delivery Units,Adults and Health,Other Agencies - Third Party P,90461348,MI HOMECARE LIMITED,64.93,04/05/2022,
Delivery Units,Adults and Health,Other Services,1015476402,St Georges Home Care ltd,"3,096.80",04/05/2022,
Delivery Units,Adults and Health,Other Agencies - Third Party P,90461101,HARTWIG CARE LIMITED,333.48,04/05/2022,
Delivery Units,Adults and Health,Other Agencies - Third Party P,90461102,HARTWIG CARE LIMITED,333.48,04/05/2022,
Delivery Units,Adults and Health,Other Agencies - Third Party P,90461103,HARTWIG CARE LIMITED,238.15,04/05/2022,
Delivery Units,Adults and Health,Other Agencies - Third Party P,90461104,HARTWIG CARE LIMITED,257.2,04/05/2022,
Delivery Units,Adults and Health,Other Agencies - Third Party P,90461108,HARTWIG CARE LIMITED,85.73,04/05/2022,
Delivery Units,Adults and Health,Other Agencies - Third Party P,90461109,HARTWIG CARE LIMITED,85.73,04/05/2022,
Delivery Units,Adults and Health,Other Agencies - Third Party P,90461129,HARTWIG CARE LIMITED,542.94,04/05/2022,
Delivery Units,Adults and Health,Other Agencies - Third Party P,90461130,HARTWIG CARE LIMITED,481.03,04/05/2022,
Delivery Units,Adults and Health,Other Agencies - Third Party P,90461132,HARTWIG CARE LIMITED,457.3,04/05/2022,
Delivery Units,Adults and Health,Other Agencies - Third Party P,90461140,HARTWIG CARE LIMITED,204.84,04/05/2022,
Delivery Units,Adults and Health,Other Agencies - Third Party P,90461141,HARTWIG CARE LIMITED,204.84,04/05/2022,
Delivery Units,Adults and Health,Other Agencies - Third Party P,90461146,HARTWIG CARE LIMITED,195.29,04/05/2022,
Delivery Units,Adults and Health,Other Agencies - Third Party P,90461147,HARTWIG CARE LIMITED,195.29,04/05/2022,
Delivery Units,Adults and Health,Other Agencies - Third Party P,90461150,HARTWIG CARE LIMITED,100.03,04/05/2022,
Delivery Units,Adults and Health,Other Agencies - Third Party P,90461151,HARTWIG CARE LIMITED,100.03,04/05/2022,
Delivery Units,Adults and Health,Other Agencies - Third Party P,90461152,HARTWIG CARE LIMITED,476.3,04/05/2022,
Delivery Units,Adults and Health,Other Agencies - Third Party P,90461153,HARTWIG CARE LIMITED,414.38,04/05/2022,
Delivery Units,Adults and Health,Other Agencies - Third Party P,90461157,HARTWIG CARE LIMITED,266.7,04/05/2022,
Delivery Units,Adults and Health,Other Agencies - Third Party P,90461158,HARTWIG CARE LIMITED,266.7,04/05/2022,
Delivery Units,Adults and Health,Other Agencies - Third Party P,90461164,HARTWIG CARE LIMITED,438.22,04/05/2022,
Delivery Units,Adults and Health,Other Agencies - Third Party P,90461165,HARTWIG CARE LIMITED,438.22,04/05/2022,
Delivery Units,Adults and Health,Other Agencies - Third Party P,90461169,HARTWIG CARE LIMITED,204.84,04/05/2022,
Delivery Units,Adults and Health,Other Agencies - Third Party P,90461170,HARTWIG CARE LIMITED,204.84,04/05/2022,
Delivery Units,Adults and Health,Other Agencies - Third Party P,90461172,HARTWIG CARE LIMITED,319.1,04/05/2022,
Delivery Units,Adults and Health,Other Agencies - Third Party P,90461173,HARTWIG CARE LIMITED,309.57,04/05/2022,
Delivery Units,Adults and Health,Other Agencies - Third Party P,90461174,HARTWIG CARE LIMITED,76.2,04/05/2022,
Delivery Units,Adults and Health,Other Agencies - Third Party P,90461175,HARTWIG CARE LIMITED,76.2,04/05/2022,
Delivery Units,Adults and Health,Other Agencies - Third Party P,90461177,HARTWIG CARE LIMITED,114.33,04/05/2022,
Delivery Units,Adults and Health,Other Agencies - Third Party P,90461178,HARTWIG CARE LIMITED,190.54,04/05/2022,
Delivery Units,Adults and Health,Other Agencies - Third Party P,90461179,HARTWIG CARE LIMITED,233.45,04/05/2022,
